Workbook

Sheet Main
B10: 2019-08-02
B12: Sheet No. | C12: Template Name | D12: Summary
B13: 1 | C13: Future Intra | D13: For Intraday trading in F&O segment
B14: 2 | C14: Cash Intra | D14: For Intraday trading in cash market segment
B15: 3 | C15: Mid-cap Intra | D15: For Intraday trading in Mid-cap stocks
B16: 4 | C16: Bulk Deals | D16: Reveals Bulk Deals carried on NSE & BSE
B17: 5 | C17: Call Tracker
K27: `

Sheet Future Intra
M5: Back to Main Page
A6: FOR INTRA DAY TRADING | L6: =Main!B10 -> 2019-08-02
A9: Sr.no | B9: Sector | C9: Scrip | D9: CLOSE RATE | E9: Pivot Point | F9: Supports | I9: Resistances
B10: Sector | D10: Point | E10: Point | F10: S1 | G10: S2 | H10: S3 | I10: R1 | J10: R2 | K10: R3 | L10: HIGH | M10: LOW | N10: OI | O10: % Change in OI
A11: 1 | B11: Index | C11: BANKNIFTY | D11: 28499.30 | E11: 28521.28 | F11: 28118.57 | G11: 27737.83 | H11: 27335.12 | I11: 28902.02 | J11: 29304.73 | K11: 29685.47 | L11: 28924 | M11: 28140.55 | N11: 1736640 | O11: 16.04%
A12: 2 | B12: Index | C12: NIFTY | D12: 11015.35 | E12: 11004.95 | F12: 10911.50 | G12: 10807.65 | H12: 10714.20 | I12: 11108.80 | J12: 11202.25 | K12: 11306.10 | L12: 11098.4 | M12: 10901.1 | N12: 20010750 | O12: 7.89%
A13: 3 | B13: Index | C13: NIFTYIT | D13: 15423.00 | E13: 15481.00 | F13: 15292.00 | G13: 15161.00 | H13: 14972.00 | I13: 15612.00 | J13: 15801.00 | K13: 15932.00 | L13: 15670 | M13: 15350 | N13: 13950 | O13: 0.72%
A14: 4 | B14: Cement | C14: ACC | D14: 1522.65 | E14: 1528.15 | F14: 1500.90 | G14: 1479.15 | H14: 1451.90 | I14: 1549.90 | J14: 1577.15 | K14: 1598.90 | L14: 1555.4 | M14: 1506.4 | N14: 2302800 | O14: 3.04%
A15: 5 | B15: Others | C15: ADANIENT | D15: 125.70 | E15: 125.97 | F15: 122.68 | G15: 119.67 | H15: 116.38 | I15: 128.98 | J15: 132.27 | K15: 135.28 | L15: 129.25 | M15: 122.95 | N15: 29716000 | O15: 0.16%
A16: 6 | B16: Others | C16: ADANIPORTS | D16: 373.25 | E16: 373.63 | F16: 367.87 | G16: 362.48 | H16: 356.72 | I16: 379.02 | J16: 384.78 | K16: 390.17 | L16: 379.4 | M16: 368.25 | N16: 15087500 | O16: -1.57%
A17: 7 | B17: Power | C17: ADANIPOWER | D17: 59.50 | E17: 59.62 | F17: 58.03 | G17: 56.57 | H17: 54.98 | I17: 61.08 | J17: 62.67 | K17: 64.13 | L17: 61.2 | M17: 58.15 | N17: 111240000 | O17: -0.82%
A18: 8 | B18: Automobile | C18: AMARAJABAT | D18: 660.35 | E18: 661.23 | F18: 650.92 | G18: 641.48 | H18: 631.17 | I18: 670.67 | J18: 680.98 | K18: 690.42 | L18: 671.55 | M18: 651.8 | N18: 1778000 | O18: 8.18%
A19: 9 | B19: Cement | C19: AMBUJACEM | D19: 198.00 | E19: 198.58 | F19: 194.67 | G19: 191.33 | H19: 187.42 | I19: 201.92 | J19: 205.83 | K19: 209.17 | L19: 202.5 | M19: 195.25 | N19: 21357500 | O19: 3.60%
A20: 10 | B20: Others | C20: APOLLOHOSP | D20: 1364.20 | E20: 1362.45 | F20: 1344.40 | G20: 1324.60 | H20: 1306.55 | I20: 1382.25 | J20: 1400.30 | K20: 1420.10 | L20: 1380.5 | M20: 1342.65 | N20: 1279500 | O20: -0.31%
A21: 11 | B21: Automobile | C21: APOLLOTYRE | D21: 155.00 | E21: 155.32 | F21: 152.13 | G21: 149.27 | H21: 146.08 | I21: 158.18 | J21: 161.37 | K21: 164.23 | L21: 158.5 | M21: 152.45 | N21: 9720000 | O21: -2.20%
A22: 12 | B22: Textile | C22: ARVIND | D22: 56.70 | E22: 56.07 | F22: 54.93 | G22: 53.17 | H22: 52.03 | I22: 57.83 | J22: 58.97 | K22: 60.73 | L22: 57.2 | M22: 54.3 | N22: 8568000 | O22: -0.56%
A23: 13 | B23: Automobile | C23: ASHOKLEY | D23: 69.25 | E23: 69.95 | F23: 66.50 | G23: 63.75 | H23: 60.30 | I23: 72.70 | J23: 76.15 | K23: 78.90 | L23: 73.4 | M23: 67.2 | N23: 82572000 | O23: 7.13%
A24: 14 | B24: FMCG | C24: ASIANPAINT | D24: 1512.85 | E24: 1516.47 | F24: 1498.93 | G24: 1485.02 | H24: 1467.48 | I24: 1530.38 | J24: 1547.92 | K24: 1561.83 | L24: 1534 | M24: 1502.55 | N24: 6281400 | O24: -0.76%
A25: 15 | B25: Pharma | C25: AUROPHARMA | D25: 553.25 | E25: 556.15 | F25: 541.85 | G25: 530.45 | H25: 516.15 | I25: 567.55 | J25: 581.85 | K25: 593.25 | L25: 570.45 | M25: 544.75 | N25: 15683000 | O25: -0.27%
A26: 16 | B26: Banking | C26: AXISBANK | D26: 673.25 | E26: 674.20 | F26: 665.25 | G26: 657.25 | H26: 648.30 | I26: 682.20 | J26: 691.15 | K26: 699.15 | L26: 683.15 | M26: 666.2 | N26: 51595200 | O26: 2.29%
A27: 17 | B27: Automobile | C27: BAJAJ-AUTO | D27: 2551.90 | E27: 2533.33 | F27: 2502.57 | G27: 2453.23 | H27: 2422.47 | I27: 2582.67 | J27: 2613.43 | K27: 2662.77 | L27: 2564.1 | M27: 2484 | N27: 2194000 | O27: 1.73%
A28: 18 | B28: Finance | C28: BAJAJFINSV | D28: 7117.75 | E28: 7107.00 | F28: 7011.15 | G28: 6904.55 | H28: 6808.70 | I28: 7213.60 | J28: 7309.45 | K28: 7416.05 | L28: 7202.85 | M28: 7000.4 | N28: 904250 | O28: 0.28%
A29: 19 | B29: Finance | C29: BAJFINANCE | D29: 3237.85 | E29: 3230.52 | F29: 3189.78 | G29: 3141.72 | H29: 3100.98 | I29: 3278.58 | J29: 3319.32 | K29: 3367.38 | L29: 3271.25 | M29: 3182.45 | N29: 6669250 | O29: -3.69%
A30: 20 | B30: Automobile | C30: BALKRISIND | D30: 698.35 | E30: 694.58 | F30: 687.77 | G30: 677.18 | H30: 670.37 | I30: 705.17 | J30: 711.98 | K30: 722.57 | L30: 701.4 | M30: 684 | N30: 1938400 | O30: -1.58%
A31: 21 | B31: Banking | C31: BANKBARODA | D31: 105.75 | E31: 105.48 | F31: 103.27 | G31: 100.78 | H31: 98.57 | I31: 107.97 | J31: 110.18 | K31: 112.67 | L31: 107.7 | M31: 103 | N31: 56934000 | O31: 0.38%
A32: 22 | B32: Banking | C32: BANKINDIA | D32: 69.80 | E32: 70.12 | F32: 68.28 | G32: 66.77 | H32: 64.93 | I32: 71.63 | J32: 73.47 | K32: 74.98 | L32: 71.95 | M32: 68.6 | N32: 33582000 | O32: 6.77%
A33: 23 | B33: FMCG | C33: BATAINDIA | D33: 1301.85 | E33: 1305.60 | F33: 1292.60 | G33: 1283.35 | H33: 1270.35 | I33: 1314.85 | J33: 1327.85 | K33: 1337.10 | L33: 1318.6 | M33: 1296.35 | N33: 2478850 | O33: -1.23%
A34: 24 | B34: Capital_Goods | C34: BEL | D34: 97.75 | E34: 97.98 | F34: 95.42 | G34: 93.08 | H34: 90.52 | I34: 100.32 | J34: 102.88 | K34: 105.22 | L34: 100.55 | M34: 95.65 | N34: 38976000 | O34: -0.87%
A35: 25 | B35: FMCG | C35: BERGEPAINT | D35: 332.30 | E35: 331.03 | F35: 328.87 | G35: 325.43 | H35: 323.27 | I35: 334.47 | J35: 336.63 | K35: 340.07 | L35: 333.2 | M35: 327.6 | N35: 2138400 | O35: -0.41%
A36: 26 | B36: Automobile | C36: BHARATFORG | D36: 421.30 | E36: 420.62 | F36: 416.33 | G36: 411.37 | H36: 407.08 | I36: 425.58 | J36: 429.87 | K36: 434.83 | L36: 424.9 | M36: 415.65 | N36: 8014800 | O36: -1.26%
A37: 27 | B37: Telecom | C37: BHARTIARTL | D37: 324.55 | E37: 328.82 | F37: 318.43 | G37: 312.32 | H37: 301.93 | I37: 334.93 | J37: 345.32 | K37: 351.43 | L37: 339.2 | M37: 322.7 | N37: 32610918 | O37: -1.67%
A38: 28 | B38: Capital_Goods | C38: BHEL | D38: 57.90 | E38: 58.02 | F38: 56.68 | G38: 55.47 | H38: 54.13 | I38: 59.23 | J38: 60.57 | K38: 61.78 | L38: 59.35 | M38: 56.8 | N38: 49777500 | O38: 4.92%
A39: 29 | B39: Pharma | C39: BIOCON | D39: 224.60 | E39: 224.57 | F39: 222.03 | G39: 219.47 | H39: 216.93 | I39: 227.13 | J39: 229.67 | K39: 232.23 | L39: 227.1 | M39: 222 | N39: 12609000 | O39: -2.27%
A40: 30 | B40: Automobile | C40: BOSCHLTD | D40: 14586.60 | E40: 14476.90 | F40: 14319.45 | G40: 14052.30 | H40: 13894.85 | I40: 14744.05 | J40: 14901.50 | K40: 15168.65 | L40: 14634.35 | M40: 14209.75 | N40: 165570 | O40: -0.31%
A41: 31 | B41: Oil_Gas | C41: BPCL | D41: 336.65 | E41: 335.88 | F41: 333.17 | G41: 329.68 | H41: 326.97 | I41: 339.37 | J41: 342.08 | K41: 345.57 | L41: 338.6 | M41: 332.4 | N41: 13275000 | O41: -0.50%
A42: 32 | B42: FMCG | C42: BRITANNIA | D42: 2600.85 | E42: 2596.28 | F42: 2575.52 | G42: 2550.18 | H42: 2529.42 | I42: 2621.62 | J42: 2642.38 | K42: 2667.72 | L42: 2617.05 | M42: 2570.95 | N42: 2282800 | O42: -0.04%
A43: 33 | B43: Technology | C43: CADILAHC | D43: 226.85 | E43: 226.42 | F43: 222.83 | G43: 218.82 | H43: 215.23 | I43: 230.43 | J43: 234.02 | K43: 238.03 | L43: 230 | M43: 222.4 | N43: 13691200 | O43: -1.39%
A44: 34 | B44: Pharma | C44: CANBK | D44: 230.55 | E44: 231.75 | F44: 225.95 | G44: 221.35 | H44: 215.55 | I44: 236.35 | J44: 242.15 | K44: 246.75 | L44: 237.55 | M44: 227.15 | N44: 10022000 | O44: -0.44%
A45: 35 | B45: Banking | C45: CASTROLIND | D45: 116.20 | E45: 117.55 | F45: 114.10 | G45: 112.00 | H45: 108.55 | I45: 119.65 | J45: 123.10 | K45: 125.20 | L45: 121 | M45: 115.45 | N45: 8683600 | O45: 2.57%
A46: 36 | B46: Oil_Gas | C46: CENTURYTEX | D46: 877.75 | E46: 881.88 | F46: 864.27 | G46: 850.78 | H46: 833.17 | I46: 895.37 | J46: 912.98 | K46: 926.47 | L46: 899.5 | M46: 868.4 | N46: 3851400 | O46: 0.42%
A47: 37 | B47: Textile | C47: CESC | D47: 749.35 | E47: 744.28 | F47: 736.52 | G47: 723.68 | H47: 715.92 | I47: 757.12 | J47: 764.88 | K47: 777.72 | L47: 752.05 | M47: 731.45 | N47: 928000 | O47: -0.77%
A48: 38 | B48: Power | C48: CHOLAFIN | D48: 258.30 | E48: 260.20 | F48: 255.10 | G48: 251.90 | H48: 246.80 | I48: 263.40 | J48: 268.50 | K48: 271.70 | L48: 265.3 | M48: 257 | N48: 3665000 | O48: 4.71%
A49: 39 | B49: Finance | C49: CIPLA | D49: 514.95 | E49: 515.25 | F49: 510.20 | G49: 505.45 | H49: 500.40 | I49: 520.00 | J49: 525.05 | K49: 529.80 | L49: 520.3 | M49: 510.5 | N49: 12176000 | O49: -1.41%
A50: 40 | B50: Pharma | C50: COALINDIA | D50: 203.15 | E50: 203.08 | F50: 201.02 | G50: 198.88 | H50: 196.82 | I50: 205.22 | J50: 207.28 | K50: 209.42 | L50: 205.15 | M50: 200.95 | N50: 37534200 | O50: -2.15%
A51: 41 | B51: Others | C51: COLPAL | D51: 1184.40 | E51: 1183.53 | F51: 1176.87 | G51: 1169.33 | H51: 1162.67 | I51: 1191.07 | J51: 1197.73 | K51: 1205.27 | L51: 1190.2 | M51: 1176 | N51: 1988700 | O51: 1.32%
A52: 42 | B52: FMCG | C52: CONCOR | D52: 511.00 | E52: 507.55 | F52: 499.45 | G52: 487.90 | H52: 479.80 | I52: 519.10 | J52: 527.20 | K52: 538.75 | L52: 515.65 | M52: 496 | N52: 2110050 | O52: -4.12%
A53: 43 | B53: Others | C53: CUMMINSIND | D53: 691.10 | E53: 694.83 | F53: 680.67 | G53: 670.23 | H53: 656.07 | I53: 705.27 | J53: 719.43 | K53: 729.87 | L53: 709 | M53: 684.4 | N53: 2069200 | O53: 0.27%
A54: 44 | B54: Capital_Goods | C54: DABUR | D54: 426.10 | E54: 425.52 | F54: 422.68 | G54: 419.27 | H54: 416.43 | I54: 428.93 | J54: 431.77 | K54: 435.18 | L54: 428.35 | M54: 422.1 | N54: 13381250 | O54: 0.94%
A55: 45 | B55: FMCG | C55: DHFL | D55: 42.40 | E55: 42.53 | F55: 40.62 | G55: 38.83 | H55: 36.92 | I55: 44.32 | J55: 46.23 | K55: 48.02 | L55: 44.45 | M55: 40.75 | N55: 17148000 | O55: 2.12%
A56: 46 | B56: Finance | C56: DISHTV | D56: 25.85 | E56: 26.25 | F56: 24.95 | G56: 24.05 | H56: 22.75 | I56: 27.15 | J56: 28.45 | K56: 29.35 | L56: 27.55 | M56: 25.35 | N56: 105924000 | O56: -0.20%
A57: 47 | B57: Media | C57: DIVISLAB | D57: 1608.10 | E57: 1628.78 | F57: 1569.32 | G57: 1530.53 | H57: 1471.07 | I57: 1667.57 | J57: 1727.03 | K57: 1765.82 | L57: 1688.25 | M57: 1590 | N57: 2736000 | O57: -0.80%
A58: 48 | B58: Pharma | C58: DLF | D58: 173.45 | E58: 173.98 | F58: 170.02 | G58: 166.58 | H58: 162.62 | I58: 177.42 | J58: 181.38 | K58: 184.82 | L58: 177.95 | M58: 170.55 | N58: 36744400 | O58: 1.16%
A59: 49 | B59: Realty | C59: DRREDDY | D59: 2548.30 | E59: 2546.10 | F59: 2507.20 | G59: 2466.10 | H59: 2427.20 | I59: 2587.20 | J59: 2626.10 | K59: 2667.20 | L59: 2585 | M59: 2505 | N59: 3420500 | O59: -1.26%
A60: 50 | B60: Pharma | C60: EICHERMOT | D60: 16450.60 | E60: 16275.53 | F60: 15954.07 | G60: 15457.53 | H60: 15136.07 | I60: 16772.07 | J60: 17093.53 | K60: 17590.07 | L60: 16597 | M60: 15779 | N60: 423350 | O60: 2.95%
A61: 51 | B61: Automobile | C61: ENGINERSIN | D61: 98.10 | E61: 98.57 | F61: 96.03 | G61: 93.97 | H61: 91.43 | I61: 100.63 | J61: 103.17 | K61: 105.23 | L61: 101.1 | M61: 96.5 | N61: 6900000 | O61: -2.85%
A62: 52 | B62: Infrastructure | C62: EQUITAS | D62: 115.00 | E62: 114.52 | F62: 112.63 | G62: 110.27 | H62: 108.38 | I62: 116.88 | J62: 118.77 | K62: 121.13 | L62: 116.4 | M62: 112.15 | N62: 14576000 | O62: 2.65%
A63: 53 | B63: Finance | C63: ESCORTS | D63: 461.95 | E63: 461.80 | F63: 453.20 | G63: 444.45 | H63: 435.85 | I63: 470.55 | J63: 479.15 | K63: 487.90 | L63: 470.4 | M63: 453.05 | N63: 5647400 | O63: 0.29%
A64: 54 | B64: Automobile | C64: EXIDEIND | D64: 182.95 | E64: 183.20 | F64: 180.75 | G64: 178.55 | H64: 176.10 | I64: 185.40 | J64: 187.85 | K64: 190.05 | L64: 185.65 | M64: 181 | N64: 8640000 | O64: -0.58%
A65: 55 | B65: Automobile | C65: FEDERALBNK | D65: 90.00 | E65: 90.30 | F65: 87.90 | G65: 85.80 | H65: 83.40 | I65: 92.40 | J65: 94.80 | K65: 96.90 | L65: 92.7 | M65: 88.2 | N65: 39368000 | O65: 5.83%
A66: 56 | B66: Banking | C66: GAIL | D66: 128.15 | E66: 128.17 | F66: 125.53 | G66: 122.92 | H66: 120.28 | I66: 130.78 | J66: 133.42 | K66: 136.03 | L66: 130.8 | M66: 125.55 | N66: 39647622 | O66: -0.07%
A67: 57 | B67: Oil_Gas | C67: GLENMARK | D67: 423.65 | E67: 425.33 | F67: 416.72 | G67: 409.78 | H67: 401.17 | I67: 432.27 | J67: 440.88 | K67: 447.82 | L67: 433.95 | M67: 418.4 | N67: 5100000 | O67: -5.80%
A68: 58 | B68: Pharma | C68: GMRINFRA | D68: 14.80 | E68: 14.87 | F68: 14.58 | G68: 14.37 | H68: 14.08 | I68: 15.08 | J68: 15.37 | K68: 15.58 | L68: 15.15 | M68: 14.65 | N68: 148185000 | O68: -2.14%
A69: 59 | B69: Infrastructure | C69: GODREJCP | D69: 605.00 | E69: 607.52 | F69: 593.58 | G69: 582.17 | H69: 568.23 | I69: 618.93 | J69: 632.87 | K69: 644.28 | L69: 621.45 | M69: 596.1 | N69: 6243200 | O69: 6.57%
A70: 60 | B70: FMCG | C70: GRASIM | D70: 771.10 | E70: 770.00 | F70: 761.05 | G70: 751.00 | H70: 742.05 | I70: 780.05 | J70: 789.00 | K70: 799.05 | L70: 778.95 | M70: 759.95 | N70: 14203500 | O70: -0.37%
A71: 61 | B71: Cement | C71: HAVELLS | D71: 647.55 | E71: 646.83 | F71: 639.27 | G71: 630.98 | H71: 623.42 | I71: 655.12 | J71: 662.68 | K71: 670.97 | L71: 654.4 | M71: 638.55 | N71: 7053000 | O71: -2.73%
A72: 62 | B72: Others | C72: HCLTECH | D72: 1020.95 | E72: 1025.45 | F72: 1010.10 | G72: 999.25 | H72: 983.90 | I72: 1036.30 | J72: 1051.65 | K72: 1062.50 | L72: 1040.8 | M72: 1014.6 | N72: 8566600 | O72: -2.63%
A73: 63 | B73: Technology | C73: HDFC | D73: 2098.10 | E73: 2098.97 | F73: 2074.33 | G73: 2050.57 | H73: 2025.93 | I73: 2122.73 | J73: 2147.37 | K73: 2171.13 | L73: 2123.6 | M73: 2075.2 | N73: 28728000 | O73: 1.04%
A74: 64 | B74: Finance | C74: HDFCBANK | D74: 2233.95 | E74: 2231.08 | F74: 2213.17 | G74: 2192.38 | H74: 2174.47 | I74: 2251.87 | J74: 2269.78 | K74: 2290.57 | L74: 2249 | M74: 2210.3 | N74: 17532250 | O74: 7.87%
A75: 65 | B75: Banking | C75: HEROMOTOCO | D75: 2382.25 | E75: 2363.12 | F75: 2332.38 | G75: 2282.52 | H75: 2251.78 | I75: 2412.98 | J75: 2443.72 | K75: 2493.58 | L75: 2393.85 | M75: 2313.25 | N75: 2549600 | O75: 2.50%
A76: 66 | B76: Automobile | C76: HEXAWARE | D76: 352.90 | E76: 355.12 | F76: 347.38 | G76: 341.87 | H76: 334.13 | I76: 360.63 | J76: 368.37 | K76: 373.88 | L76: 362.85 | M76: 349.6 | N76: 2454000 | O76: 1.55%
A77: 67 | B77: Technology | C77: HINDALCO | D77: 182.50 | E77: 183.63 | F77: 178.27 | G77: 174.03 | H77: 168.67 | I77: 187.87 | J77: 193.23 | K77: 197.47 | L77: 189 | M77: 179.4 | N77: 35308000 | O77: 2.27%
A78: 68 | B78: Metals | C78: HINDPETRO | D78: 264.05 | E78: 263.23 | F78: 259.62 | G78: 255.18 | H78: 251.57 | I78: 267.67 | J78: 271.28 | K78: 275.72 | L78: 266.85 | M78: 258.8 | N78: 17203200 | O78: -0.52%
A79: 69 | B79: Oil_Gas | C79: HINDUNILVR | D79: 1736.70 | E79: 1733.68 | F79: 1718.57 | G79: 1700.43 | H79: 1685.32 | I79: 1751.82 | J79: 1766.93 | K79: 1785.07 | L79: 1748.8 | M79: 1715.55 | N79: 11136300 | O79: 0.74%
A80: 70 | B80: FMCG | C80: HINDZINC | D80: 212.10 | E80: 212.90 | F80: 209.35 | G80: 206.60 | H80: 203.05 | I80: 215.65 | J80: 219.20 | K80: 221.95 | L80: 216.45 | M80: 210.15 | N80: 6675200 | O80: -2.34%
A81: 71 | B81: Metals | C81: IBULHSGFIN | D81: 514.00 | E81: 518.08 | F81: 499.17 | G81: 484.33 | H81: 465.42 | I81: 532.92 | J81: 551.83 | K81: 566.67 | L81: 537 | M81: 503.25 | N81: 16840800 | O81: 0.77%
A82: 72 | B82: Finance | C82: ICICIBANK | D82: 419.10 | E82: 419.73 | F82: 411.47 | G82: 403.83 | H82: 395.57 | I82: 427.37 | J82: 435.63 | K82: 443.27 | L82: 428 | M82: 412.1 | N82: 79844875 | O82: -0.65%
A83: 73 | B83: Banking | C83: ICICIPRULI | D83: 386.20 | E83: 390.78 | F83: 375.27 | G83: 364.33 | H83: 348.82 | I83: 401.72 | J83: 417.23 | K83: 428.17 | L83: 406.3 | M83: 379.85 | N83: 5635500 | O83: 10.24%
A84: 74 | B84: Finance | C84: IDBI | D84: 27.95 | E84: 27.63 | F84: 26.87 | G84: 25.78 | H84: 25.02 | I84: 28.72 | J84: 29.48 | K84: 30.57 | L84: 28.4 | M84: 26.55 | N84: 23304000 | O84: -3.38%
A85: 75 | B85: Banking | C85: IDEA | D85: 6.65 | E85: 6.68 | F85: 6.42 | G85: 6.18 | H85: 5.92 | I85: 6.92 | J85: 7.18 | K85: 7.42 | L85: 6.95 | M85: 6.45 | N85: 430892000 | O85: 0.30%
A86: 76 | B86: Telecom | C86: IDFCFIRSTB | D86: 41.20 | E86: 41.17 | F86: 40.23 | G86: 39.27 | H86: 38.33 | I86: 42.13 | J86: 43.07 | K86: 44.03 | L86: 42.1 | M86: 40.2 | N86: 144360000 | O86: 2.58%
A87: 77 | B87: Banking | C87: IGL | D87: 301.70 | E87: 300.80 | F87: 297.20 | G87: 292.70 | H87: 289.10 | I87: 305.30 | J87: 308.90 | K87: 313.40 | L87: 304.4 | M87: 296.3 | N87: 4006750 | O87: 0.41%
A88: 78 | B88: Oil_Gas | C88: INDIGO | D88: 1555.25 | E88: 1557.47 | F88: 1537.78 | G88: 1520.32 | H88: 1500.63 | I88: 1574.93 | J88: 1594.62 | K88: 1612.08 | L88: 1577.15 | M88: 1540 | N88: 2637600 | O88: -0.29%
A89: 79 | B89: Others | C89: INDUSINDBK | D89: 1398.40 | E89: 1398.10 | F89: 1363.30 | G89: 1328.20 | H89: 1293.40 | I89: 1433.20 | J89: 1468.00 | K89: 1503.10 | L89: 1432.9 | M89: 1363 | N89: 10248800 | O89: 0.47%
A90: 80 | B90: Banking | C90: INFRATEL | D90: 251.50 | E90: 250.10 | F90: 245.95 | G90: 240.40 | H90: 236.25 | I90: 255.65 | J90: 259.80 | K90: 265.35 | L90: 254.25 | M90: 244.55 | N90: 7294000 | O90: -2.36%
A91: 81 | B91: Telecom | C91: INFY | D91: 773.45 | E91: 777.63 | F91: 764.07 | G91: 754.68 | H91: 741.12 | I91: 787.02 | J91: 800.58 | K91: 809.97 | L91: 791.2 | M91: 768.25 | N91: 60324000 | O91: -1.77%
A92: 82 | B92: Technology | C92: IOC | D92: 136.45 | E92: 137.35 | F92: 133.45 | G92: 130.45 | H92: 126.55 | I92: 140.35 | J92: 144.25 | K92: 147.25 | L92: 141.25 | M92: 134.35 | N92: 59759000 | O92: -0.93%
A93: 83 | B93: Oil_Gas | C93: ITC | D93: 269.00 | E93: 269.28 | F93: 267.17 | G93: 265.33 | H93: 263.22 | I93: 271.12 | J93: 273.23 | K93: 275.07 | L93: 271.4 | M93: 267.45 | N93: 86736000 | O93: 0.82%
A94: 84 | B94: FMCG | C94: JINDALSTEL | D94: 129.45 | E94: 130.18 | F94: 125.97 | G94: 122.48 | H94: 118.27 | I94: 133.67 | J94: 137.88 | K94: 141.37 | L94: 134.4 | M94: 126.7 | N94: 32960000 | O94: 3.69%
A95: 85 | B95: Metals | C95: JSWSTEEL | D95: 226.50 | E95: 228.80 | F95: 220.75 | G95: 215.00 | H95: 206.95 | I95: 234.55 | J95: 242.60 | K95: 248.35 | L95: 236.85 | M95: 223.05 | N95: 51764000 | O95: 1.52%
A96: 86 | B96: Metals | C96: JUBLFOOD | D96: 1180.70 | E96: 1182.92 | F96: 1160.03 | G96: 1139.37 | H96: 1116.48 | I96: 1203.58 | J96: 1226.47 | K96: 1247.13 | L96: 1205.8 | M96: 1162.25 | N96: 2781500 | O96: -1.61%
A97: 87 | B97: Others | C97: JUSTDIAL | D97: 674.40 | E97: 678.63 | F97: 660.27 | G97: 646.13 | H97: 627.77 | I97: 692.77 | J97: 711.13 | K97: 725.27 | L97: 697 | M97: 664.5 | N97: 2452800 | O97: -0.96%
A98: 88 | B98: Others | C98: KAJARIACER | D98: 466.15 | E98: 465.88 | F98: 459.27 | G98: 452.38 | H98: 445.77 | I98: 472.77 | J98: 479.38 | K98: 486.27 | L98: 472.5 | M98: 459 | N98: 1883700 | O98: -2.82%
A99: 89 | B99: Others | C99: KOTAKBANK | D99: 1501.70 | E99: 1503.57 | F99: 1486.28 | G99: 1470.87 | H99: 1453.58 | I99: 1518.98 | J99: 1536.27 | K99: 1551.68 | L99: 1520.85 | M99: 1488.15 | N99: 9262400 | O99: 3.59%
A100: 90 | B100: Banking | C100: BSOFT | D100: 75.70 | E100: 75.75 | F100: 74.70 | G100: 73.70 | H100: 72.65 | I100: 76.75 | J100: 77.80 | K100: 78.80 | L100: 76.8 | M100: 74.75 | N100: 2560200 | O100: 11.80%
A101: 91 | B101: Finance | C101: L&TFH | D101: 96.75 | E101: 97.28 | F101: 93.67 | G101: 90.58 | H101: 86.97 | I101: 100.37 | J101: 103.98 | K101: 107.07 | L101: 100.9 | M101: 94.2 | N101: 32683500 | O101: -0.22%
A102: 92 | B102: Finance | C102: LICHSGFIN | D102: 504.00 | E102: 504.37 | F102: 495.93 | G102: 487.87 | H102: 479.43 | I102: 512.43 | J102: 520.87 | K102: 528.93 | L102: 512.8 | M102: 496.3 | N102: 7491000 | O102: 0.77%
A103: 93 | B103: Capital_Goods | C103: LT | D103: 1365.15 | E103: 1366.22 | F103: 1342.93 | G103: 1320.72 | H103: 1297.43 | I103: 1388.43 | J103: 1411.72 | K103: 1433.93 | L103: 1389.5 | M103: 1344 | N103: 14034375 | O103: 1.90%
A104: 94 | B104: Pharma | C104: LUPIN | D104: 759.10 | E104: 760.27 | F104: 746.58 | G104: 734.07 | H104: 720.38 | I104: 772.78 | J104: 786.47 | K104: 798.98 | L104: 773.95 | M104: 747.75 | N104: 8322300 | O104: -1.04%
A105: 95 | B105: Automobile | C105: M&M | D105: 549.75 | E105: 547.78 | F105: 542.62 | G105: 535.48 | H105: 530.32 | I105: 554.92 | J105: 560.08 | K105: 567.22 | L105: 552.95 | M105: 540.65 | N105: 23279000 | O105: 0.81%
A106: 96 | B106: Finance | C106: M&MFIN | D106: 299.40 | E106: 299.27 | F106: 292.08 | G106: 284.77 | H106: 277.58 | I106: 306.58 | J106: 313.77 | K106: 321.08 | L106: 306.45 | M106: 291.95 | N106: 14618750 | O106: 0.14%
A107: 97 | B107: Finance | C107: MANAPPURAM | D107: 114.90 | E107: 114.08 | F107: 112.77 | G107: 110.63 | H107: 109.32 | I107: 116.22 | J107: 117.53 | K107: 119.67 | L107: 115.4 | M107: 111.95 | N107: 14466000 | O107: 4.37%
A108: 98 | B108: FMCG | C108: MARICO | D108: 363.90 | E108: 362.75 | F108: 352.65 | G108: 341.40 | H108: 331.30 | I108: 374.00 | J108: 384.10 | K108: 395.35 | L108: 372.85 | M108: 351.5 | N108: 10132200 | O108: 1.56%
A109: 99 | B109: Automobile | C109: MARUTI | D109: 5514.30 | E109: 5480.02 | F109: 5414.28 | G109: 5314.27 | H109: 5248.53 | I109: 5580.03 | J109: 5645.77 | K109: 5745.78 | L109: 5545.75 | M109: 5380 | N109: 3913875 | O109: 1.85%
A110: 100 | B110: FMCG | C110: MCDOWELL-N | D110: 579.05 | E110: 580.95 | F110: 569.05 | G110: 559.05 | H110: 547.15 | I110: 590.95 | J110: 602.85 | K110: 612.85 | L110: 592.85 | M110: 570.95 | N110: 10343750 | O110: -0.70%
A111: 101 | B111: Others | C111: MCX | D111: 802.10 | E111: 803.23 | F111: 786.42 | G111: 770.73 | H111: 753.92 | I111: 818.92 | J111: 835.73 | K111: 851.42 | L111: 820.05 | M111: 787.55 | N111: 1516900 | O111: 0.05%
A112: 102 | B112: Finance | C112: MFSL | D112: 407.85 | E112: 410.82 | F112: 399.43 | G112: 391.02 | H112: 379.63 | I112: 419.23 | J112: 430.62 | K112: 439.03 | L112: 422.2 | M112: 402.4 | N112: 2515200 | O112: -3.01%
A113: 103 | B113: Oil_Gas | C113: MGL | D113: 789.85 | E113: 793.52 | F113: 772.13 | G113: 754.42 | H113: 733.03 | I113: 811.23 | J113: 832.62 | K113: 850.33 | L113: 814.9 | M113: 775.8 | N113: 1110000 | O113: 2.10%
A114: 104 | B114: Technology | C114: MINDTREE | D114: 692.90 | E114: 699.67 | F114: 680.03 | G114: 667.17 | H114: 647.53 | I114: 712.53 | J114: 732.17 | K114: 745.03 | L114: 719.3 | M114: 686.8 | N114: 1967400 | O114: 2.37%
A115: 105 | B115: Automobile | C115: MOTHERSUMI | D115: 104.45 | E115: 104.43 | F115: 103.12 | G115: 101.78 | H115: 100.47 | I115: 105.77 | J115: 107.08 | K115: 108.42 | L115: 105.75 | M115: 103.1 | N115: 29208300 | O115: 3.90%
A116: 106 | B116: Automobile | C116: MRF | D116: 53625.00 | E116: 53668.57 | F116: 53256.43 | G116: 52887.87 | H116: 52475.73 | I116: 54037.13 | J116: 54449.27 | K116: 54817.83 | L116: 54080.7 | M116: 53300 | N116: 31230 | O116: 1.07%
A117: 107 | B117: Finance | C117: MUTHOOTFIN | D117: 613.55 | E117: 611.85 | F117: 606.90 | G117: 600.25 | H117: 595.30 | I117: 618.50 | J117: 623.45 | K117: 630.10 | L117: 616.8 | M117: 605.2 | N117: 2479500 | O117: -6.08%
A118: 108 | B118: Metals | C118: NATIONALUM | D118: 44.25 | E118: 44.35 | F118: 43.75 | G118: 43.25 | H118: 42.65 | I118: 44.85 | J118: 45.45 | K118: 45.95 | L118: 44.95 | M118: 43.85 | N118: 36680000 | O118: 3.47%
A119: 109 | B119: Infrastructure | C119: NBCC | D119: 43.95 | E119: 43.65 | F119: 42.40 | G119: 40.85 | H119: 39.60 | I119: 45.20 | J119: 46.45 | K119: 48.00 | L119: 44.9 | M119: 42.1 | N119: 37255500 | O119: 1.93%
A120: 110 | B120: Infrastructure | C120: NCC | D120: 70.35 | E120: 70.62 | F120: 68.48 | G120: 66.62 | H120: 64.48 | I120: 72.48 | J120: 74.62 | K120: 76.48 | L120: 72.75 | M120: 68.75 | N120: 39560000 | O120: 0.02%
A121: 111 | B121: FMCG | C121: NESTLEIND | D121: 11593.00 | E121: 11571.38 | F121: 11472.62 | G121: 11352.23 | H121: 11253.47 | I121: 11691.77 | J121: 11790.53 | K121: 11910.92 | L121: 11670.15 | M121: 11451 | N121: 347000 | O121: 0.65%
A122: 112 | B122: Technology | C122: NIITTECH | D122: 1203.75 | E122: 1202.17 | F122: 1192.68 | G122: 1181.62 | H122: 1172.13 | I122: 1213.23 | J122: 1222.72 | K122: 1233.78 | L122: 1211.65 | M122: 1191.1 | N122: 1145250 | O122: -4.92%
A123: 113 | B123: Metals | C123: NMDC | D123: 109.10 | E123: 109.08 | F123: 107.67 | G123: 106.23 | H123: 104.82 | I123: 110.52 | J123: 111.93 | K123: 113.37 | L123: 110.5 | M123: 107.65 | N123: 27018000 | O123: -1.18%
A124: 114 | B124: Power | C124: NTPC | D124: 125.10 | E124: 124.68 | F124: 123.77 | G124: 122.43 | H124: 121.52 | I124: 126.02 | J124: 126.93 | K124: 128.27 | L124: 125.6 | M124: 123.35 | N124: 81806400 | O124: -1.66%
A125: 115 | B125: Technology | C125: OFSS | D125: 3278.95 | E125: 3297.43 | F125: 3233.17 | G125: 3187.38 | H125: 3123.12 | I125: 3343.22 | J125: 3407.48 | K125: 3453.27 | L125: 3361.7 | M125: 3251.65 | N125: 211200 | O125: -3.63%
A126: 116 | B126: Oil_Gas | C126: OIL | D126: 157.90 | E126: 157.72 | F126: 156.53 | G126: 155.17 | H126: 153.98 | I126: 159.08 | J126: 160.27 | K126: 161.63 | L126: 158.9 | M126: 156.35 | N126: 7753119 | O126: -2.85%
A127: 117 | B127: Oil_Gas | C127: ONGC | D127: 137.15 | E127: 137.47 | F127: 135.03 | G127: 132.92 | H127: 130.48 | I127: 139.58 | J127: 142.02 | K127: 144.13 | L127: 139.9 | M127: 135.35 | N127: 64447500 | O127: 1.27%
A128: 118 | B128: Textile | C128: PAGEIND | D128: 18203.95 | E128: 18144.27 | F128: 17938.93 | G128: 17673.92 | H128: 17468.58 | I128: 18409.28 | J128: 18614.62 | K128: 18879.63 | L128: 18349.6 | M128: 17879.25 | N128: 193575 | O128: 0.36%
A129: 119 | B129: Pharma | C129: PEL | D129: 1772.85 | E129: 1765.67 | F129: 1723.28 | G129: 1673.72 | H129: 1631.33 | I129: 1815.23 | J129: 1857.62 | K129: 1907.18 | L129: 1808.05 | M129: 1716.1 | N129: 3360958 | O129: 3.30%
A130: 120 | B130: Oil_Gas | C130: PETRONET | D130: 232.85 | E130: 232.38 | F130: 230.57 | G130: 228.28 | H130: 226.47 | I130: 234.67 | J130: 236.48 | K130: 238.77 | L130: 234.2 | M130: 230.1 | N130: 18780000 | O130: 0.66%
A131: 121 | B131: Finance | C131: PFC | D131: 107.00 | E131: 107.50 | F131: 105.20 | G131: 103.40 | H131: 101.10 | I131: 109.30 | J131: 111.60 | K131: 113.40 | L131: 109.8 | M131: 105.7 | N131: 44584200 | O131: 1.63%
A132: 122 | B132: FMCG | C132: PIDILITIND | D132: 1214.50 | E132: 1221.55 | F132: 1194.45 | G132: 1174.40 | H132: 1147.30 | I132: 1241.60 | J132: 1268.70 | K132: 1288.75 | L132: 1248.65 | M132: 1201.5 | N132: 2775500 | O132: 0.58%
A133: 123 | B133: Banking | C133: PNB | D133: 67.80 | E133: 68.00 | F133: 66.40 | G133: 65.00 | H133: 63.40 | I133: 69.40 | J133: 71.00 | K133: 72.40 | L133: 69.6 | M133: 66.6 | N133: 103768000 | O133: 1.97%
A134: 124 | B134: Power | C134: POWERGRID | D134: 212.30 | E134: 211.92 | F134: 209.98 | G134: 207.67 | H134: 205.73 | I134: 214.23 | J134: 216.17 | K134: 218.48 | L134: 213.85 | M134: 209.6 | N134: 27520000 | O134: 4.89%
A135: 125 | B135: Media | C135: PVR | D135: 1493.50 | E135: 1499.40 | F135: 1464.85 | G135: 1436.20 | H135: 1401.65 | I135: 1528.05 | J135: 1562.60 | K135: 1591.25 | L135: 1533.95 | M135: 1470.75 | N135: 1142000 | O135: -3.87%
A136: 126 | B136: Cement | C136: RAMCOCEM | D136: 709.00 | E136: 709.37 | F136: 694.73 | G136: 680.47 | H136: 665.83 | I136: 723.63 | J136: 738.27 | K136: 752.53 | L136: 724 | M136: 695.1 | N136: 1080000 | O136: -2.03%
A137: 127 | B137: Textile | C137: RAYMOND | D137: 641.80 | E137: 645.70 | F137: 630.15 | G137: 618.50 | H137: 602.95 | I137: 657.35 | J137: 672.90 | K137: 684.55 | L137: 661.25 | M137: 634.05 | N137: 2024800 | O137: -1.67%
A138: 128 | B138: Banking | C138: RBLBANK | D138: 398.00 | E138: 398.78 | F138: 387.87 | G138: 377.73 | H138: 366.82 | I138: 408.92 | J138: 419.83 | K138: 429.97 | L138: 409.7 | M138: 388.65 | N138: 12877200 | O138: -0.73%
A139: 129 | B139: Power | C139: RECLTD | D139: 136.35 | E139: 137.08 | F139: 133.67 | G139: 130.98 | H139: 127.57 | I139: 139.77 | J139: 143.18 | K139: 145.87 | L139: 140.5 | M139: 134.4 | N139: 28050000 | O139: -0.76%
A140: 130 | B140: Finance | C140: RELCAPITAL | D140: 48.50 | E140: 49.62 | F140: 45.78 | G140: 43.07 | H140: 39.23 | I140: 52.33 | J140: 56.17 | K140: 58.88 | L140: 53.45 | M140: 46.9 | N140: 12075000 | O140: -2.14%
A141: 131 | B141: Oil_Gas | C141: RELIANCE | D141: 1178.65 | E141: 1171.55 | F141: 1157.20 | G141: 1135.75 | H141: 1121.40 | I141: 1193.00 | J141: 1207.35 | K141: 1228.80 | L141: 1185.9 | M141: 1150.1 | N141: 46337500 | O141: 2.58%
A142: 132 | B142: Power | C142: RELINFRA | D142: 47.45 | E142: 48.20 | F142: 45.30 | G142: 43.15 | H142: 40.25 | I142: 50.35 | J142: 53.25 | K142: 55.40 | L142: 51.1 | M142: 46.05 | N142: 11928000 | O142: -1.81%
A143: 133 | B143: Metals | C143: SAIL | D143: 41.80 | E143: 41.77 | F143: 41.28 | G143: 40.77 | H143: 40.28 | I143: 42.28 | J143: 42.77 | K143: 43.28 | L143: 42.25 | M143: 41.25 | N143: 95784000 | O143: 2.23%
A144: 134 | B144: Banking | C144: SBIN | D144: 319.15 | E144: 321.68 | F144: 310.57 | G144: 301.98 | H144: 290.87 | I144: 330.27 | J144: 341.38 | K144: 349.97 | L144: 332.8 | M144: 313.1 | N144: 82842000 | O144: 13.08%
A145: 135 | B145: Cement | C145: SHREECEM | D145: 20044.10 | E145: 19981.65 | F145: 19833.35 | G145: 19622.60 | H145: 19474.30 | I145: 20192.40 | J145: 20340.70 | K145: 20551.45 | L145: 20129.95 | M145: 19770.9 | N145: 153800 | O145: 1.12%
A146: 136 | B146: Capital_Goods | C146: SIEMENS | D146: 1125.90 | E146: 1130.23 | F146: 1104.12 | G146: 1082.33 | H146: 1056.22 | I146: 1152.02 | J146: 1178.13 | K146: 1199.92 | L146: 1156.35 | M146: 1108.45 | N146: 1307900 | O146: 11.17%
A147: 137 | B147: Textile | C147: SRF | D147: 2633.60 | E147: 2636.37 | F147: 2567.23 | G147: 2500.87 | H147: 2431.73 | I147: 2702.73 | J147: 2771.87 | K147: 2838.23 | L147: 2705.5 | M147: 2570 | N147: 895000 | O147: -3.35%
A148: 138 | B148: Finance | C148: SRTRANSFIN | D148: 973.45 | E148: 974.82 | F148: 962.03 | G148: 950.62 | H148: 937.83 | I148: 986.23 | J148: 999.02 | K148: 1010.43 | L148: 987.6 | M148: 963.4 | N148: 4765200 | O148: -4.78%
A149: 139 | B149: Pharma | C149: STAR | D149: 384.60 | E149: 377.23 | F149: 366.02 | G149: 347.43 | H149: 336.22 | I149: 395.82 | J149: 407.03 | K149: 425.62 | L149: 388.45 | M149: 358.65 | N149: 3896400 | O149: 12.63%
A150: 140 | B150: Pharma | C150: SUNPHARMA | D150: 424.35 | E150: 422.43 | F150: 417.92 | G150: 411.48 | H150: 406.97 | I150: 428.87 | J150: 433.38 | K150: 439.82 | L150: 426.95 | M150: 416 | N150: 49702400 | O150: -1.15%
A151: 141 | B151: Media | C151: SUNTV | D151: 455.50 | E151: 460.12 | F151: 443.63 | G151: 431.77 | H151: 415.28 | I151: 471.98 | J151: 488.47 | K151: 500.33 | L151: 476.6 | M151: 448.25 | N151: 5268000 | O151: -2.82%
A152: 142 | B152: Fertilisers | C152: TATACHEM | D152: 569.15 | E152: 572.32 | F152: 562.03 | G152: 554.92 | H152: 544.63 | I152: 579.43 | J152: 589.72 | K152: 596.83 | L152: 582.6 | M152: 565.2 | N152: 2182500 | O152: 0.00%
A153: 143 | B153: Technology | C153: TATAELXSI | D153: 617.75 | E153: 623.03 | F153: 606.07 | G153: 594.38 | H153: 577.42 | I153: 634.72 | J153: 651.68 | K153: 663.37 | L153: 640 | M153: 611.35 | N153: 2737800 | O153: 3.47%
A154: 144 | B154: FMCG | C154: TATAGLOBAL | D154: 260.35 | E154: 258.38 | F154: 252.97 | G154: 245.58 | H154: 240.17 | I154: 265.77 | J154: 271.18 | K154: 278.57 | L154: 263.8 | M154: 251 | N154: 6523200 | O154: 4.27%
A155: 145 | B155: Automobile | C155: TATAMOTORS | D155: 130.30 | E155: 131.47 | F155: 126.43 | G155: 122.57 | H155: 117.53 | I155: 135.33 | J155: 140.37 | K155: 144.23 | L155: 136.5 | M155: 127.6 | N155: 72942000 | O155: 3.48%
A156: 146 | B156: Automobile | C156: TATAMTRDVR | D156: 63.00 | E156: 63.33 | F156: 61.22 | G156: 59.43 | H156: 57.32 | I156: 65.12 | J156: 67.23 | K156: 69.02 | L156: 65.45 | M156: 61.55 | N156: 29484000 | O156: -0.18%
A157: 147 | B157: Power | C157: TATAPOWER | D157: 60.00 | E157: 59.90 | F157: 58.90 | G157: 57.80 | H157: 56.80 | I157: 61.00 | J157: 62.00 | K157: 63.10 | L157: 60.9 | M157: 58.8 | N157: 54621000 | O157: 0.88%
A158: 148 | B158: Metals | C158: TATASTEEL | D158: 421.20 | E158: 422.95 | F158: 413.65 | G158: 406.10 | H158: 396.80 | I158: 430.50 | J158: 439.80 | K158: 447.35 | L158: 432.25 | M158: 415.4 | N158: 31346184 | O158: -0.90%
A159: 149 | B159: Technology | C159: TCS | D159: 2190.65 | E159: 2196.18 | F159: 2170.62 | G159: 2150.58 | H159: 2125.02 | I159: 2216.22 | J159: 2241.78 | K159: 2261.82 | L159: 2221.75 | M159: 2176.15 | N159: 16324250 | O159: 0.82%
A160: 150 | B160: Technology | C160: TECHM | D160: 629.30 | E160: 629.03 | F160: 622.47 | G160: 615.63 | H160: 609.07 | I160: 635.87 | J160: 642.43 | K160: 649.27 | L160: 635.6 | M160: 622.2 | N160: 16222800 | O160: -0.10%
A161: 151 | B161: FMCG | C161: TITAN | D161: 1063.00 | E161: 1060.52 | F161: 1049.53 | G161: 1036.07 | H161: 1025.08 | I161: 1073.98 | J161: 1084.97 | K161: 1098.43 | L161: 1071.5 | M161: 1047.05 | N161: 10330500 | O161: 3.12%
A162: 152 | B162: Pharma | C162: TORNTPHARM | D162: 1673.65 | E162: 1670.20 | F162: 1660.45 | G162: 1647.25 | H162: 1637.50 | I162: 1683.40 | J162: 1693.15 | K162: 1706.35 | L162: 1679.95 | M162: 1657 | N162: 663000 | O162: -3.49%
A163: 153 | B163: Power | C163: TORNTPOWER | D163: 305.70 | E163: 304.65 | F163: 302.05 | G163: 298.40 | H163: 295.80 | I163: 308.30 | J163: 310.90 | K163: 314.55 | L163: 307.25 | M163: 301 | N163: 3633000 | O163: -0.90%
A164: 154 | B164: Automobile | C164: TVSMOTOR | D164: 355.35 | E164: 356.83 | F164: 348.62 | G164: 341.88 | H164: 333.67 | I164: 363.57 | J164: 371.78 | K164: 378.52 | L164: 365.05 | M164: 350.1 | N164: 7789100 | O164: 3.46%
A165: 155 | B165: FMCG | C165: UBL | D165: 1395.50 | E165: 1397.87 | F165: 1383.03 | G165: 1370.57 | H165: 1355.73 | I165: 1410.33 | J165: 1425.17 | K165: 1437.63 | L165: 1412.7 | M165: 1385.4 | N165: 1217300 | O165: 13.14%
A166: 156 | B166: Finance | C166: UJJIVAN | D166: 280.00 | E166: 275.03 | F166: 268.52 | G166: 257.03 | H166: 250.52 | I166: 286.52 | J166: 293.03 | K166: 304.52 | L166: 281.55 | M166: 263.55 | N166: 6041600 | O166: 12.88%
A167: 157 | B167: Cement | C167: ULTRACEMCO | D167: 4252.45 | E167: 4258.65 | F167: 4180.50 | G167: 4108.55 | H167: 4030.40 | I167: 4330.60 | J167: 4408.75 | K167: 4480.70 | L167: 4336.8 | M167: 4186.7 | N167: 2382800 | O167: 0.56%
A168: 158 | B168: Banking | C168: UNIONBANK | D168: 65.35 | E168: 65.78 | F168: 63.87 | G168: 62.38 | H168: 60.47 | I168: 67.27 | J168: 69.18 | K168: 70.67 | L168: 67.7 | M168: 64.3 | N168: 31843000 | O168: 3.29%
A169: 159 | B169: Fertilisers | C169: UPL | D169: 578.00 | E169: 577.83 | F169: 561.67 | G169: 545.33 | H169: 529.17 | I169: 594.17 | J169: 610.33 | K169: 626.67 | L169: 594 | M169: 561.5 | N169: 13176900 | O169: 4.04%
A170: 160 | B170: Metals | C170: VEDL | D170: 146.30 | E170: 147.72 | F170: 143.03 | G170: 139.77 | H170: 135.08 | I170: 150.98 | J170: 155.67 | K170: 158.93 | L170: 152.4 | M170: 144.45 | N170: 74514000 | O170: 4.20%
A171: 161 | B171: Capital_Goods | C171: VOLTAS | D171: 604.20 | E171: 597.17 | F171: 585.78 | G171: 567.37 | H171: 555.98 | I171: 615.58 | J171: 626.97 | K171: 645.38 | L171: 608.55 | M171: 578.75 | N171: 4444000 | O171: 17.26%
A172: 162 | B172: Technology | C172: WIPRO | D172: 269.95 | E172: 271.07 | F172: 266.43 | G172: 262.92 | H172: 258.28 | I172: 274.58 | J172: 279.22 | K172: 282.73 | L172: 275.7 | M172: 267.55 | N172: 30617600 | O172: 3.17%
A173: 163 | B173: Banking | C173: YESBANK | D173: 88.80 | E173: 88.77 | F173: 85.93 | G173: 83.07 | H173: 80.23 | I173: 91.63 | J173: 94.47 | K173: 97.33 | L173: 91.6 | M173: 85.9 | N173: 127875000 | O173: 2.80%
A174: 164 | B174: Media | C174: ZEEL | D174: 348.30 | E174: 349.22 | F174: 335.48 | G174: 322.67 | H174: 308.93 | I174: 362.03 | J174: 375.77 | K174: 388.58 | L174: 362.95 | M174: 336.4 | N174: 21082100 | O174: 3.64%
A190: Pivot Point: This is trigger point for intra day buy/sell based on the price range of the previous day
A191: As per the tool,the trader should take BUY position just above Pivot and keep the stop loss of pivot point and the first target would be Resistance 1(R1)
A192: If R1 is crossed then R2 becomes the next target with stop loss of at R1
A193: Similarly if price goes below pivot point then the trader should sell and keep a stop loss of pivot point and the first target would be S1
A194: If S1 is crossed then S2 becomes the next target with stop loss of at S1
A196: Disclaimer:
A197: This document has been prepared by the Retail Research Desk of Asit C Mehta
A198: Investment Intermediates Ltd. and is meant for use of the recipient only
A199: and is not for circulation. This document is not to be reported or
A200: copied or made available to others. It should not be considered to be
A201: taken as an offer to sell or a solicitation to buy any security. The
A202: information contained herein is from sources believed reliable. We do
A203: not represent that it is accurate or complete and it should not be
A204: relied upon as such. We may from time to time have positions in and buy
A205: and sell securities referred to herein

Sheet Cash Intra
M5: Back to Main Page
A6: FOR INTRA DAY TRADING | K6: =Main!B10 -> 2019-08-02
A8: Sr.no | B8: Scrip | C8: CLOSE RATE | D8: Pivot Point | E8: Supports | H8: Resistances
C9: Point | E9: S1 | F9: S2 | G9: S3 | H9: R1 | I9: R2 | J9: R3 | K9: HIGH | L9: LOW | M9: Total Trade Quanity in Lakhs
A10: 1 | B10: Nifty 50 | C10: 10980 | D10: 10979.25 | E10: 10881.75 | F10: 10783.50 | G10: 10686.00 | H10: 11077.50 | I10: 11175.00 | J10: 11273.25 | K10: 11076.75 | L10: 10881
A11: 2 | B11: Nifty Bank | C11: 28367.25 | D11: 28411.43 | E11: 28003.17 | F11: 27639.08 | G11: 27230.82 | H11: 28775.52 | I11: 29183.78 | J11: 29547.87 | K11: 28819.7 | L11: 28047.35
A12: 3 | B12: Nifty CPSE | C12: 1993 | D12: 1994.72 | E12: 1970.83 | F12: 1948.67 | G12: 1924.78 | H12: 2016.88 | I12: 2040.77 | J12: 2062.93 | K12: 2018.6 | L12: 1972.55
A13: 4 | B13: Nifty Infra | C13: 3048.15 | D13: 3054.77 | E13: 3016.83 | F13: 2985.52 | G13: 2947.58 | H13: 3086.08 | I13: 3124.02 | J13: 3155.33 | K13: 3092.7 | L13: 3023.45
A14: 5 | B14: Nifty IT | C14: 15332.1 | D14: 15401.13 | E14: 15208.72 | F14: 15085.33 | G14: 14892.92 | H14: 15524.52 | I14: 15716.93 | J14: 15840.32 | K14: 15593.55 | L14: 15277.75
A15: 6 | B15: Nifty PSE | C15: 3199.8 | D15: 3198.28 | E15: 3169.07 | F15: 3138.33 | G15: 3109.12 | H15: 3229.02 | I15: 3258.23 | J15: 3288.97 | K15: 3227.5 | L15: 3167.55
A16: 7 | B16: Nifty Midcap 50 | C16: 4301.9 | D16: 4305.73 | E16: 4248.77 | F16: 4195.63 | G16: 4138.67 | H16: 4358.87 | I16: 4415.83 | J16: 4468.97 | K16: 4362.7 | L16: 4252.6
A17: 8 | B17: ABB | C17: 1352.65 | D17: 1362.35 | E17: 1332.75 | F17: 1312.85 | G17: 1283.25 | H17: 1382.25 | I17: 1411.85 | J17: 1431.75 | K17: 1391.95 | L17: 1342.45 | M17: 0.50873
A18: 9 | B18: ACC | C18: 1515.3 | D18: 1523.57 | E18: 1490.73 | F18: 1466.17 | G18: 1433.33 | H18: 1548.13 | I18: 1580.97 | J18: 1605.53 | K18: 1556.4 | L18: 1499 | M18: 8.05812
A19: 10 | B19: AUBANK | C19: 657.2 | D19: 660.93 | E19: 648.92 | F19: 640.63 | G19: 628.62 | H19: 669.22 | I19: 681.23 | J19: 689.52 | K19: 672.95 | L19: 652.65 | M19: 1.07709
A20: 11 | B20: ADANIPORTS | C20: 371.1 | D20: 371.75 | E20: 365.65 | F20: 360.20 | G20: 354.10 | H20: 377.20 | I20: 383.30 | J20: 388.75 | K20: 377.85 | L20: 366.3 | M20: 17.20133
A21: 12 | B21: ADANIPOWER | C21: 59.4 | D21: 59.53 | E21: 57.97 | F21: 56.53 | G21: 54.97 | H21: 60.97 | I21: 62.53 | J21: 63.97 | K21: 61.1 | L21: 58.1 | M21: 111.53236
A22: 13 | B22: ABCAPITAL | C22: 82.4 | D22: 82.60 | E22: 81.80 | F22: 81.20 | G22: 80.40 | H22: 83.20 | I22: 84.00 | J22: 84.60 | K22: 83.4 | L22: 82 | M22: 8.52473
A23: 14 | B23: ABFRL | C23: 187.25 | D23: 187.73 | E23: 184.07 | F23: 180.88 | G23: 177.22 | H23: 190.92 | I23: 194.58 | J23: 197.77 | K23: 191.4 | L23: 184.55 | M23: 6.20056
A24: 15 | B24: AJANTPHARM | C24: 956 | D24: 934.33 | E24: 903.87 | F24: 851.73 | G24: 821.27 | H24: 986.47 | I24: 1016.93 | J24: 1069.07 | K24: 964.8 | L24: 882.2 | M24: 15.45308
A25: 16 | B25: ALKEM | C25: 1715.6 | D25: 1736.87 | E25: 1676.93 | F25: 1638.27 | G25: 1578.33 | H25: 1775.53 | I25: 1835.47 | J25: 1874.13 | K25: 1796.8 | L25: 1698.2 | M25: 0.32259
A26: 17 | B26: AMARAJABAT | C26: 665.6 | D26: 671.22 | E26: 652.88 | F26: 640.17 | G26: 621.83 | H26: 683.93 | I26: 702.27 | J26: 714.98 | K26: 689.55 | L26: 658.5 | M26: 18.27494
A27: 18 | B27: AMBUJACEM | C27: 196.8 | D27: 197.62 | E27: 193.28 | F27: 189.77 | G27: 185.43 | H27: 201.13 | I27: 205.47 | J27: 208.98 | K27: 201.95 | L27: 194.1 | M27: 40.09344
A28: 19 | B28: APOLLOHOSP | C28: 1365.55 | D28: 1362.68 | E28: 1343.87 | F28: 1322.18 | G28: 1303.37 | H28: 1384.37 | I28: 1403.18 | J28: 1424.87 | K28: 1381.5 | L28: 1341 | M28: 4.92611
A29: 20 | B29: APOLLOTYRE | C29: 154.15 | D29: 154.60 | E29: 151.30 | F29: 148.45 | G29: 145.15 | H29: 157.45 | I29: 160.75 | J29: 163.60 | K29: 157.9 | L29: 151.75 | M29: 26.24505
A30: 21 | B30: ASHOKLEY | C30: 68.85 | D30: 69.72 | E30: 66.28 | F30: 63.72 | G30: 60.28 | H30: 72.28 | I30: 75.72 | J30: 78.28 | K30: 73.15 | L30: 67.15 | M30: 587.74538
A31: 22 | B31: ASIANPAINT | C31: 1504.7 | D31: 1509.93 | E31: 1488.42 | F31: 1472.13 | G31: 1450.62 | H31: 1526.22 | I31: 1547.73 | J31: 1564.02 | K31: 1531.45 | L31: 1493.65 | M31: 22.63295
A32: 23 | B32: AUROPHARMA | C32: 550.6 | D32: 553.90 | E32: 540.05 | F32: 529.50 | G32: 515.65 | H32: 564.45 | I32: 578.30 | J32: 588.85 | K32: 567.75 | L32: 543.35 | M32: 24.49709
A33: 24 | B33: DMART | C33: 1483.6 | D33: 1479.53 | E33: 1444.07 | F33: 1404.53 | G33: 1369.07 | H33: 1519.07 | I33: 1554.53 | J33: 1594.07 | K33: 1515 | L33: 1440 | M33: 7.88582
A34: 25 | B34: AXISBANK | C34: 669.3 | D34: 670.90 | E34: 661.05 | F34: 652.80 | G34: 642.95 | H34: 679.15 | I34: 689.00 | J34: 697.25 | K34: 680.75 | L34: 662.65 | M34: 170.0121
A35: 26 | B35: BAJAJ-AUTO | C35: 2537.65 | D35: 2521.28 | E35: 2489.97 | F35: 2442.28 | G35: 2410.97 | H35: 2568.97 | I35: 2600.28 | J35: 2647.97 | K35: 2552.6 | L35: 2473.6 | M35: 6.25372
A36: 27 | B36: BAJFINANCE | C36: 3222.1 | D36: 3219.03 | E36: 3177.07 | F36: 3132.03 | G36: 3090.07 | H36: 3264.07 | I36: 3306.03 | J36: 3351.07 | K36: 3261 | L36: 3174 | M36: 18.92516
A37: 28 | B37: BAJAJFINSV | C37: 7082 | D37: 7077.45 | E37: 6975.10 | F37: 6868.20 | G37: 6765.85 | H37: 7184.35 | I37: 7286.70 | J37: 7393.60 | K37: 7179.8 | L37: 6970.55 | M37: 3.65797
A38: 29 | B38: BAJAJHLDNG | C38: 3354.25 | D38: 3373.73 | E38: 3320.52 | F38: 3286.78 | G38: 3233.57 | H38: 3407.47 | I38: 3460.68 | J38: 3494.42 | K38: 3426.95 | L38: 3340 | M38: 0.24386
A39: 30 | B39: BALKRISIND | C39: 704.35 | D39: 701.80 | E39: 694.60 | F39: 684.85 | G39: 677.65 | H39: 711.55 | I39: 718.75 | J39: 728.50 | K39: 709 | L39: 692.05 | M39: 3.60087
A40: 31 | B40: BANDHANBNK | C40: 480.25 | D40: 480.07 | E40: 475.23 | F40: 470.22 | G40: 465.38 | H40: 485.08 | I40: 489.92 | J40: 494.93 | K40: 484.9 | L40: 475.05 | M40: 10.55339
A41: 32 | B41: BANKBARODA | C41: 105.55 | D41: 105.17 | E41: 103.18 | F41: 100.82 | G41: 98.83 | H41: 107.53 | I41: 109.52 | J41: 111.88 | K41: 107.15 | L41: 102.8 | M41: 225.16129
A42: 33 | B42: BANKINDIA | C42: 70.2 | D42: 70.47 | E42: 68.98 | F42: 67.77 | G42: 66.28 | H42: 71.68 | I42: 73.17 | J42: 74.38 | K42: 71.95 | L42: 69.25 | M42: 86.92057
A43: 34 | B43: BATAINDIA | C43: 1301.8 | D43: 1303.38 | E43: 1290.82 | F43: 1279.83 | G43: 1267.27 | H43: 1314.37 | I43: 1326.93 | J43: 1337.92 | K43: 1315.95 | L43: 1292.4 | M43: 5.47149
A44: 35 | B44: BERGEPAINT | C44: 331.55 | D44: 330.88 | E44: 328.27 | F44: 324.98 | G44: 322.37 | H44: 334.17 | I44: 336.78 | J44: 340.07 | K44: 333.5 | L44: 327.6 | M44: 7.37911
A45: 36 | B45: BEL | C45: 98.75 | D45: 99.08 | E45: 96.37 | F45: 93.98 | G45: 91.27 | H45: 101.47 | I45: 104.18 | J45: 106.57 | K45: 101.8 | L45: 96.7 | M45: 129.28194
A46: 37 | B46: BHARATFORG | C46: 420.2 | D46: 419.52 | E46: 415.33 | F46: 410.47 | G46: 406.28 | H46: 424.38 | I46: 428.57 | J46: 433.43 | K46: 423.7 | L46: 414.65 | M46: 7.72632
A47: 38 | B47: BHEL | C47: 57.55 | D47: 57.73 | E47: 56.37 | F47: 55.18 | G47: 53.82 | H47: 58.92 | I47: 60.28 | J47: 61.47 | K47: 59.1 | L47: 56.55 | M47: 66.44276
A48: 39 | B48: BPCL | C48: 343.65 | D48: 343.00 | E48: 339.85 | F48: 336.05 | G48: 332.90 | H48: 346.80 | I48: 349.95 | J48: 353.75 | K48: 346.15 | L48: 339.2 | M48: 30.63358
A49: 40 | B49: BHARTIARTL | C49: 323.9 | D49: 327.93 | E49: 317.12 | F49: 310.33 | G49: 299.52 | H49: 334.72 | I49: 345.53 | J49: 352.32 | K49: 338.75 | L49: 321.15 | M49: 97.739
A50: 41 | B50: INFRATEL | C50: 250.95 | D50: 249.63 | E50: 245.32 | F50: 239.68 | G50: 235.37 | H50: 255.27 | I50: 259.58 | J50: 265.22 | K50: 253.95 | L50: 244 | M50: 50.9797
A51: 42 | B51: BIOCON | C51: 223.55 | D51: 223.75 | E51: 221.05 | F51: 218.55 | G51: 215.85 | H51: 226.25 | I51: 228.95 | J51: 231.45 | K51: 226.45 | L51: 221.25 | M51: 34.23702
A52: 43 | B52: BBTC | C52: 801.95 | D52: 809.68 | E52: 784.37 | F52: 766.78 | G52: 741.47 | H52: 827.27 | I52: 852.58 | J52: 870.17 | K52: 835 | L52: 792.1 | M52: 0.69247
A53: 44 | B53: BOSCHLTD | C53: 14643.1 | D53: 14536.27 | E53: 14372.53 | F53: 14101.97 | G53: 13938.23 | H53: 14806.83 | I53: 14970.57 | J53: 15241.13 | K53: 14700 | L53: 14265.7 | M53: 0.15351
A54: 45 | B54: BRITANNIA | C54: 2600.9 | D54: 2598.85 | E54: 2577.10 | F54: 2553.30 | G54: 2531.55 | H54: 2622.65 | I54: 2644.40 | J54: 2668.20 | K54: 2620.6 | L54: 2575.05 | M54: 3.32895
A55: 46 | B55: CADILAHC | C55: 226.3 | D55: 225.82 | E55: 222.48 | F55: 218.67 | G55: 215.33 | H55: 229.63 | I55: 232.97 | J55: 236.78 | K55: 229.15 | L55: 222 | M55: 15.08064
A56: 47 | B56: CANBK | C56: 231.7 | D56: 232.47 | E56: 227.73 | F56: 223.77 | G56: 219.03 | H56: 236.43 | I56: 241.17 | J56: 245.13 | K56: 237.2 | L56: 228.5 | M56: 44.24336
A57: 48 | B57: CASTROLIND | C57: 118.25 | D57: 119.75 | E57: 116.30 | F57: 114.35 | G57: 110.90 | H57: 121.70 | I57: 125.15 | J57: 127.10 | K57: 123.2 | L57: 117.8 | M57: 13.93721
A58: 49 | B58: CHOLAFIN | C58: 259.6 | D58: 260.70 | E58: 254.90 | F58: 250.20 | G58: 244.40 | H58: 265.40 | I58: 271.20 | J58: 275.90 | K58: 266.5 | L58: 256 | M58: 24.73592
A59: 50 | B59: CIPLA | C59: 512.45 | D59: 513.70 | E59: 507.95 | F59: 503.45 | G59: 497.70 | H59: 518.20 | I59: 523.95 | J59: 528.45 | K59: 519.45 | L59: 509.2 | M59: 12.89007
A60: 51 | B60: COALINDIA | C60: 202.45 | D60: 202.73 | E60: 200.22 | F60: 197.98 | G60: 195.47 | H60: 204.97 | I60: 207.48 | J60: 209.72 | K60: 205.25 | L60: 200.5 | M60: 60.18424
A61: 52 | B61: COLPAL | C61: 1183.1 | D61: 1183.42 | E61: 1173.58 | F61: 1164.07 | G61: 1154.23 | H61: 1192.93 | I61: 1202.77 | J61: 1212.28 | K61: 1193.25 | L61: 1173.9 | M61: 2.38493
A62: 53 | B62: CONCOR | C62: 515.45 | D62: 511.83 | E62: 503.67 | F62: 491.88 | G62: 483.72 | H62: 523.62 | I62: 531.78 | J62: 543.57 | K62: 520 | L62: 500.05 | M62: 13.68061
A63: 54 | B63: COROMANDEL | C63: 375.9 | D63: 370.97 | E63: 362.93 | F63: 349.97 | G63: 341.93 | H63: 383.93 | I63: 391.97 | J63: 404.93 | K63: 379 | L63: 358 | M63: 1.95614
A64: 55 | B64: CROMPTON | C64: 228.15 | D64: 229.48 | E64: 226.02 | F64: 223.88 | G64: 220.42 | H64: 231.62 | I64: 235.08 | J64: 237.22 | K64: 232.95 | L64: 227.35 | M64: 7.04825
A65: 56 | B65: CUMMINSIND | C65: 693.4 | D65: 698.15 | E65: 683.35 | F65: 673.30 | G65: 658.50 | H65: 708.20 | I65: 723.00 | J65: 733.05 | K65: 712.95 | L65: 688.1 | M65: 1.91024
A66: 57 | B66: DLF | C66: 172.4 | D66: 173.45 | E66: 169.30 | F66: 166.20 | G66: 162.05 | H66: 176.55 | I66: 180.70 | J66: 183.80 | K66: 177.6 | L66: 170.35 | M66: 101.07821
A67: 58 | B67: DABUR | C67: 425.4 | D67: 425.08 | E67: 422.17 | F67: 418.93 | G67: 416.02 | H67: 428.32 | I67: 431.23 | J67: 434.47 | K67: 428 | L67: 421.85 | M67: 18.48165
A68: 59 | B68: DHFL | C68: 48.65 | D68: 48.98 | E68: 47.07 | F68: 45.48 | G68: 43.57 | H68: 50.57 | I68: 52.48 | J68: 54.07 | K68: 50.9 | L68: 47.4 | M68: 142.57476
A69: 60 | B69: DBL | C69: 413.2 | D69: 412.90 | E69: 406.60 | F69: 400.00 | G69: 393.70 | H69: 419.50 | I69: 425.80 | J69: 432.40 | K69: 419.2 | L69: 406.3 | M69: 1.39785
A70: 61 | B70: DISHTV | C70: 25.7 | D70: 26.13 | E70: 24.87 | F70: 24.03 | G70: 22.77 | H70: 26.97 | I70: 28.23 | J70: 29.07 | K70: 27.4 | L70: 25.3 | M70: 316.82563
A71: 62 | B71: DIVISLAB | C71: 1615.35 | D71: 1620.05 | E71: 1592.60 | F71: 1569.85 | G71: 1542.40 | H71: 1642.80 | I71: 1670.25 | J71: 1693.00 | K71: 1647.5 | L71: 1597.3 | M71: 4.7013
A72: 63 | B72: DRREDDY | C72: 2533.75 | D72: 2535.60 | E72: 2498.20 | F72: 2462.65 | G72: 2425.25 | H72: 2571.15 | I72: 2608.55 | J72: 2644.10 | K72: 2573 | L72: 2500.05 | M72: 9.76249
A73: 64 | B73: EDELWEISS | C73: 150.35 | D73: 148.22 | E73: 144.43 | F73: 138.52 | G73: 134.73 | H73: 154.13 | I73: 157.92 | J73: 163.83 | K73: 152 | L73: 142.3 | M73: 13.53774
A74: 65 | B74: EICHERMOT | C74: 16562.8 | D74: 16369.60 | E74: 15979.20 | F74: 15395.60 | G74: 15005.20 | H74: 16953.20 | I74: 17343.60 | J74: 17927.20 | K74: 16760 | L74: 15786 | M74: 2.56828
A75: 66 | B75: ENDURANCE | C75: 907.9 | D75: 899.90 | E75: 872.85 | F75: 837.80 | G75: 810.75 | H75: 934.95 | I75: 962.00 | J75: 997.05 | K75: 926.95 | L75: 864.85 | M75: 0.44473
A76: 67 | B76: ENGINERSIN | C76: 97.5 | D76: 98.07 | E76: 95.38 | F76: 93.27 | G76: 90.58 | H76: 100.18 | I76: 102.87 | J76: 104.98 | K76: 100.75 | L76: 95.95 | M76: 18.62276
A77: 68 | B77: ESCORTS | C77: 459.6 | D77: 459.52 | E77: 451.18 | F77: 442.77 | G77: 434.43 | H77: 467.93 | I77: 476.27 | J77: 484.68 | K77: 467.85 | L77: 451.1 | M77: 24.96272
A78: 69 | B78: EXIDEIND | C78: 182.25 | D78: 182.60 | E78: 180.20 | F78: 178.15 | G78: 175.75 | H78: 184.65 | I78: 187.05 | J78: 189.10 | K78: 185 | L78: 180.55 | M78: 10.96843
A79: 70 | B79: FEDERALBNK | C79: 89.5 | D79: 89.73 | E79: 87.52 | F79: 85.53 | G79: 83.32 | H79: 91.72 | I79: 93.93 | J79: 95.92 | K79: 91.95 | L79: 87.75 | M79: 132.54721
A80: 71 | B80: FCONSUMER | C80: 28.25 | D80: 28.27 | E80: 27.73 | F80: 27.22 | G80: 26.68 | H80: 28.78 | I80: 29.32 | J80: 29.83 | K80: 28.8 | L80: 27.75 | M80: 8.81419
A81: 72 | B81: FRETAIL | C81: 412.3 | D81: 413.50 | E81: 406.80 | F81: 401.30 | G81: 394.60 | H81: 419.00 | I81: 425.70 | J81: 431.20 | K81: 420.2 | L81: 408 | M81: 4.58017
A82: 73 | B82: GAIL | C82: 128.6 | D82: 128.47 | E82: 125.83 | F82: 123.07 | G82: 120.43 | H82: 131.23 | I82: 133.87 | J82: 136.63 | K82: 131.1 | L82: 125.7 | M82: 106.39265
A83: 74 | B83: GMRINFRA | C83: 15 | D83: 15.02 | E83: 14.78 | F83: 14.57 | G83: 14.33 | H83: 15.23 | I83: 15.47 | J83: 15.68 | K83: 15.25 | L83: 14.8 | M83: 254.65414
A84: 75 | B84: GICRE | C84: 186.5 | D84: 187.52 | E84: 182.28 | F84: 178.07 | G84: 172.83 | H84: 191.73 | I84: 196.97 | J84: 201.18 | K84: 192.75 | L84: 183.3 | M84: 1.0828
A85: 76 | B85: GSKCONS | C85: 7378.6 | D85: 7379.50 | E85: 7299.10 | F85: 7219.60 | G85: 7139.20 | H85: 7459.00 | I85: 7539.40 | J85: 7618.90 | K85: 7459.9 | L85: 7300 | M85: 0.24848
A86: 77 | B86: GLENMARK | C86: 423.2 | D86: 424.53 | E86: 416.07 | F86: 408.93 | G86: 400.47 | H86: 431.67 | I86: 440.13 | J86: 447.27 | K86: 433 | L86: 417.4 | M86: 7.97884
A87: 78 | B87: GODREJAGRO | C87: 436.45 | D87: 438.00 | E87: 431.95 | F87: 427.45 | G87: 421.40 | H87: 442.50 | I87: 448.55 | J87: 453.05 | K87: 444.05 | L87: 433.5 | M87: 0.45703
A88: 79 | B88: GODREJCP | C88: 603.55 | D88: 606.72 | E88: 593.43 | F88: 583.32 | G88: 570.03 | H88: 616.83 | I88: 630.12 | J88: 640.23 | K88: 620 | L88: 596.6 | M88: 19.71966
A89: 80 | B89: GODREJIND | C89: 453.9 | D89: 455.32 | E89: 446.63 | F89: 439.37 | G89: 430.68 | H89: 462.58 | I89: 471.27 | J89: 478.53 | K89: 464 | L89: 448.05 | M89: 4.14461
A90: 81 | B90: GRAPHITE | C90: 308 | D90: 309.92 | E90: 300.08 | F90: 292.17 | G90: 282.33 | H90: 317.83 | I90: 327.67 | J90: 335.58 | K90: 319.75 | L90: 302 | M90: 15.21388
A91: 82 | B91: GRASIM | C91: 774.55 | D91: 773.97 | E91: 764.93 | F91: 755.32 | G91: 746.28 | H91: 783.58 | I91: 792.62 | J91: 802.23 | K91: 783 | L91: 764.35 | M91: 10.34634
A92: 83 | B92: GRUH | C92: 244.7 | D92: 245.00 | E92: 241.80 | F92: 238.90 | G92: 235.70 | H92: 247.90 | I92: 251.10 | J92: 254.00 | K92: 248.2 | L92: 242.1 | M92: 11.04968
A93: 84 | B93: GSPL | C93: 211.1 | D93: 211.93 | E93: 207.12 | F93: 203.13 | G93: 198.32 | H93: 215.92 | I93: 220.73 | J93: 224.72 | K93: 216.75 | L93: 207.95 | M93: 4.67793
A94: 85 | B94: HEG | C94: 1006.05 | D94: 1001.02 | E94: 980.03 | F94: 954.02 | G94: 933.03 | H94: 1027.03 | I94: 1048.02 | J94: 1074.03 | K94: 1022 | L94: 975 | M94: 4.74306
A95: 86 | B95: HCLTECH | C95: 1021.55 | D95: 1026.37 | E95: 1010.28 | F95: 999.02 | G95: 982.93 | H95: 1037.63 | I95: 1053.72 | J95: 1064.98 | K95: 1042.45 | L95: 1015.1 | M95: 17.45006
A96: 87 | B96: HDFCAMC | C96: 2136.4 | D96: 2150.60 | E96: 2113.80 | F96: 2091.20 | G96: 2054.40 | H96: 2173.20 | I96: 2210.00 | J96: 2232.60 | K96: 2187.4 | L96: 2128 | M96: 3.03073
A97: 88 | B97: HDFCBANK | C97: 2221.8 | D97: 2219.60 | E97: 2199.20 | F97: 2176.60 | G97: 2156.20 | H97: 2242.20 | I97: 2262.60 | J97: 2285.20 | K97: 2240 | L97: 2197 | M97: 45.60419
A98: 89 | B98: HDFCLIFE | C98: 487.95 | D98: 490.35 | E98: 478.70 | F98: 469.45 | G98: 457.80 | H98: 499.60 | I98: 511.25 | J98: 520.50 | K98: 502 | L98: 481.1 | M98: 26.261
A99: 90 | B99: HAVELLS | C99: 647.75 | D99: 646.70 | E99: 639.40 | F99: 631.05 | G99: 623.75 | H99: 655.05 | I99: 662.35 | J99: 670.70 | K99: 654 | L99: 638.35 | M99: 17.42201
A100: 91 | B100: HEROMOTOCO | C100: 2368.55 | D100: 2350.32 | E100: 2319.63 | F100: 2270.72 | G100: 2240.03 | H100: 2399.23 | I100: 2429.92 | J100: 2478.83 | K100: 2381 | L100: 2301.4 | M100: 9.68967
A101: 92 | B101: HEXAWARE | C101: 354.9 | D101: 357.57 | E101: 350.53 | F101: 346.17 | G101: 339.13 | H101: 361.93 | I101: 368.97 | J101: 373.33 | K101: 364.6 | L101: 353.2 | M101: 3.22026
A102: 93 | B102: HINDALCO | C102: 182.75 | D102: 184.10 | E102: 178.95 | F102: 175.15 | G102: 170.00 | H102: 187.90 | I102: 193.05 | J102: 196.85 | K102: 189.25 | L102: 180.3 | M102: 118.80072
A103: 94 | B103: HINDPETRO | C103: 263.4 | D103: 262.53 | E103: 259.07 | F103: 254.73 | G103: 251.27 | H103: 266.87 | I103: 270.33 | J103: 274.67 | K103: 266 | L103: 258.2 | M103: 38.93105
A104: 95 | B104: HINDUNILVR | C104: 1731.3 | D104: 1728.67 | E104: 1712.63 | F104: 1693.97 | G104: 1677.93 | H104: 1747.33 | I104: 1763.37 | J104: 1782.03 | K104: 1744.7 | L104: 1710 | M104: 10.72498
A105: 96 | B105: HINDZINC | C105: 211.5 | D105: 212.47 | E105: 208.53 | F105: 205.57 | G105: 201.63 | H105: 215.43 | I105: 219.37 | J105: 222.33 | K105: 216.4 | L105: 209.5 | M105: 5.67145
A106: 97 | B106: HUDCO | C106: 33.5 | D106: 33.57 | E106: 32.83 | F106: 32.17 | G106: 31.43 | H106: 34.23 | I106: 34.97 | J106: 35.63 | K106: 34.3 | L106: 32.9 | M106: 7.03766
A107: 98 | B107: HDFC | C107: 2086.8 | D107: 2088.83 | E107: 2061.77 | F107: 2036.73 | G107: 2009.67 | H107: 2113.87 | I107: 2140.93 | J107: 2165.97 | K107: 2115.9 | L107: 2063.8 | M107: 36.34666
A108: 99 | B108: ICICIBANK | C108: 417.05 | D108: 418.02 | E108: 409.68 | F108: 402.32 | G108: 393.98 | H108: 425.38 | I108: 433.72 | J108: 441.08 | K108: 426.35 | L108: 410.65 | M108: 182.69866
A109: 100 | B109: ICICIGI | C109: 1151.45 | D109: 1170.58 | E109: 1117.17 | F109: 1082.88 | G109: 1029.47 | H109: 1204.87 | I109: 1258.28 | J109: 1292.57 | K109: 1224 | L109: 1136.3 | M109: 2.42
A110: 101 | B110: ICICIPRULI | C110: 390.3 | D110: 395.15 | E110: 379.40 | F110: 368.50 | G110: 352.75 | H110: 406.05 | I110: 421.80 | J110: 432.70 | K110: 410.9 | L110: 384.25 | M110: 50.46329
A111: 102 | B111: IDBI | C111: 28.25 | D111: 27.98 | E111: 27.32 | F111: 26.38 | G111: 25.72 | H111: 28.92 | I111: 29.58 | J111: 30.52 | K111: 28.65 | L111: 27.05 | M111: 76.68523
A112: 103 | B112: IDFCFIRSTB | C112: 41.55 | D112: 41.52 | E112: 40.63 | F112: 39.72 | G112: 38.83 | H112: 42.43 | I112: 43.32 | J112: 44.23 | K112: 42.4 | L112: 40.6 | M112: 142.17805
A113: 104 | B113: ITC | C113: 267.55 | D113: 268.25 | E113: 265.80 | F113: 264.05 | G113: 261.60 | H113: 270.00 | I113: 272.45 | J113: 274.20 | K113: 270.7 | L113: 266.5 | M113: 59.25611
A114: 105 | B114: IBULHSGFIN | C114: 521.95 | D114: 526.63 | E114: 509.37 | F114: 496.78 | G114: 479.52 | H114: 539.22 | I114: 556.48 | J114: 569.07 | K114: 543.9 | L114: 514.05 | M114: 138.588
A115: 106 | B115: IBVENTURES | C115: 220.05 | D115: 223.15 | E115: 198.30 | F115: 176.55 | G115: 151.70 | H115: 244.90 | I115: 269.75 | J115: 291.50 | K115: 248 | L115: 201.4 | M115: 36.68346
A116: 107 | B116: INDIANB | C116: 187.1 | D116: 186.68 | E116: 184.37 | F116: 181.63 | G116: 179.32 | H116: 189.42 | I116: 191.73 | J116: 194.47 | K116: 189 | L116: 183.95 | M116: 5.70304
A117: 108 | B117: INDHOTEL | C117: 140.7 | D117: 141.32 | E117: 138.88 | F117: 137.07 | G117: 134.63 | H117: 143.13 | I117: 145.57 | J117: 147.38 | K117: 143.75 | L117: 139.5 | M117: 2.62925
A118: 109 | B118: IOC | C118: 136.95 | D118: 137.98 | E118: 134.07 | F118: 131.18 | G118: 127.27 | H118: 140.87 | I118: 144.78 | J118: 147.67 | K118: 141.9 | L118: 135.1 | M118: 105.82005
A119: 110 | B119: IGL | C119: 304.15 | D119: 304.18 | E119: 299.97 | F119: 295.78 | G119: 291.57 | H119: 308.37 | I119: 312.58 | J119: 316.77 | K119: 308.4 | L119: 300 | M119: 11.00905
A120: 111 | B120: INDUSINDBK | C120: 1398.65 | D120: 1399.55 | E120: 1364.10 | F120: 1329.55 | G120: 1294.10 | H120: 1434.10 | I120: 1469.55 | J120: 1504.10 | K120: 1435 | L120: 1365 | M120: 95.3203
A121: 112 | B121: NAUKRI | C121: 2217.15 | D121: 2227.20 | E121: 2199.95 | F121: 2182.75 | G121: 2155.50 | H121: 2244.40 | I121: 2271.65 | J121: 2288.85 | K121: 2254.45 | L121: 2210 | M121: 1.62793
A122: 113 | B122: INFY | C122: 768.85 | D122: 773.88 | E122: 759.37 | F122: 749.88 | G122: 735.37 | H122: 783.37 | I122: 797.88 | J122: 807.37 | K122: 788.4 | L122: 764.4 | M122: 100.66407
A123: 114 | B123: INDIGO | C123: 1551.6 | D123: 1555.20 | E123: 1535.40 | F123: 1519.20 | G123: 1499.40 | H123: 1571.40 | I123: 1591.20 | J123: 1607.40 | K123: 1575 | L123: 1539 | M123: 8.82991
A124: 115 | B124: JSWENERGY | C124: 67.3 | D124: 67.58 | E124: 65.57 | F124: 63.83 | G124: 61.82 | H124: 69.32 | I124: 71.33 | J124: 73.07 | K124: 69.6 | L124: 65.85 | M124: 12.14078
A125: 116 | B125: JSWSTEEL | C125: 225.25 | D125: 227.92 | E125: 220.03 | F125: 214.82 | G125: 206.93 | H125: 233.13 | I125: 241.02 | J125: 246.23 | K125: 235.8 | L125: 222.7 | M125: 77.6851
A126: 117 | B126: JINDALSTEL | C126: 128.65 | D126: 129.87 | E126: 125.33 | F126: 122.02 | G126: 117.48 | H126: 133.18 | I126: 137.72 | J126: 141.03 | K126: 134.4 | L126: 126.55 | M126: 170.04827
A127: 118 | B127: JUBLFOOD | C127: 1188.85 | D127: 1195.28 | E127: 1174.57 | F127: 1160.28 | G127: 1139.57 | H127: 1209.57 | I127: 1230.28 | J127: 1244.57 | K127: 1216 | L127: 1181 | M127: 8.11244
A128: 119 | B128: JUBILANT | C128: 439.45 | D128: 439.75 | E128: 434.70 | F128: 429.95 | G128: 424.90 | H128: 444.50 | I128: 449.55 | J128: 454.30 | K128: 444.8 | L128: 435 | M128: 3.70027
A129: 120 | B129: KOTAKBANK | C129: 1495.8 | D129: 1500.27 | E129: 1481.53 | F129: 1467.27 | G129: 1448.53 | H129: 1514.53 | I129: 1533.27 | J129: 1547.53 | K129: 1519 | L129: 1486 | M129: 22.57753
A130: 121 | B130: L&TFH | C130: 96.2 | D130: 96.92 | E130: 93.48 | F130: 90.77 | G130: 87.33 | H130: 99.63 | I130: 103.07 | J130: 105.78 | K130: 100.35 | L130: 94.2 | M130: 103.9263
A131: 122 | B131: LTTS | C131: 1459.4 | D131: 1458.12 | E131: 1442.33 | F131: 1425.27 | G131: 1409.48 | H131: 1475.18 | I131: 1490.97 | J131: 1508.03 | K131: 1473.9 | L131: 1441.05 | M131: 0.60194
A132: 123 | B132: LICHSGFIN | C132: 508.4 | D132: 509.38 | E132: 500.22 | F132: 492.03 | G132: 482.87 | H132: 517.57 | I132: 526.73 | J132: 534.92 | K132: 518.55 | L132: 501.2 | M132: 19.55897
A133: 124 | B133: LTI | C133: 1507.15 | D133: 1507.07 | E133: 1494.18 | F133: 1481.22 | G133: 1468.33 | H133: 1520.03 | I133: 1532.92 | J133: 1545.88 | K133: 1519.95 | L133: 1494.1 | M133: 0.66424
A134: 125 | B134: LT | C134: 1358.05 | D134: 1361.02 | E134: 1336.03 | F134: 1314.02 | G134: 1289.03 | H134: 1383.03 | I134: 1408.02 | J134: 1430.03 | K134: 1386 | L134: 1339 | M134: 27.74996
A135: 126 | B135: LUPIN | C135: 759.05 | D135: 759.57 | E135: 746.13 | F135: 733.22 | G135: 719.78 | H135: 772.48 | I135: 785.92 | J135: 798.83 | K135: 773 | L135: 746.65 | M135: 10.16301
A136: 127 | B136: MRF | C136: 53355.6 | D136: 53444.65 | E136: 53010.95 | F136: 52666.30 | G136: 52232.60 | H136: 53789.30 | I136: 54223.00 | J136: 54567.65 | K136: 53878.35 | L136: 53100 | M136: 0.05918
A137: 128 | B137: MGL | C137: 796.6 | D137: 801.18 | E137: 779.42 | F137: 762.23 | G137: 740.47 | H137: 818.37 | I137: 840.13 | J137: 857.32 | K137: 822.95 | L137: 784 | M137: 4.58291
A138: 129 | B138: M&MFIN | C138: 298.6 | D138: 298.63 | E138: 291.12 | F138: 283.63 | G138: 276.12 | H138: 306.12 | I138: 313.63 | J138: 321.12 | K138: 306.15 | L138: 291.15 | M138: 20.87725
A139: 130 | B139: M&M | C139: 548.55 | D139: 546.55 | E139: 541.30 | F139: 534.05 | G139: 528.80 | H139: 553.80 | I139: 559.05 | J139: 566.30 | K139: 551.8 | L139: 539.3 | M139: 27.37518
A140: 131 | B140: MANAPPURAM | C140: 114.8 | D140: 114.08 | E140: 112.52 | F140: 110.23 | G140: 108.67 | H140: 116.37 | I140: 117.93 | J140: 120.22 | K140: 115.65 | L140: 111.8 | M140: 51.48164
A141: 132 | B141: MRPL | C141: 56.55 | D141: 56.68 | E141: 54.37 | F141: 52.18 | G141: 49.87 | H141: 58.87 | I141: 61.18 | J141: 63.37 | K141: 59 | L141: 54.5 | M141: 6.71311
A142: 133 | B142: MARICO | C142: 362.6 | D142: 361.47 | E142: 351.53 | F142: 340.47 | G142: 330.53 | H142: 372.53 | I142: 382.47 | J142: 393.53 | K142: 371.4 | L142: 350.4 | M142: 52.52286
A143: 134 | B143: MARUTI | C143: 5572.6 | D143: 5545.87 | E143: 5476.73 | F143: 5380.87 | G143: 5311.73 | H143: 5641.73 | I143: 5710.87 | J143: 5806.73 | K143: 5615 | L143: 5450 | M143: 11.34178
A144: 135 | B144: MFSL | C144: 406.45 | D144: 409.65 | E144: 398.80 | F144: 391.15 | G144: 380.30 | H144: 417.30 | I144: 428.15 | J144: 435.80 | K144: 420.5 | L144: 402 | M144: 4.72366
A145: 136 | B145: MINDTREE | C145: 691.95 | D145: 697.65 | E145: 679.30 | F145: 666.65 | G145: 648.30 | H145: 710.30 | I145: 728.65 | J145: 741.30 | K145: 716 | L145: 685 | M145: 11.90224
A146: 137 | B146: MOTHERSUMI | C146: 105.4 | D146: 105.53 | E146: 104.27 | F146: 103.13 | G146: 101.87 | H146: 106.67 | I146: 107.93 | J146: 109.07 | K146: 106.8 | L146: 104.4 | M146: 38.40895
A147: 138 | B147: MPHASIS | C147: 911.65 | D147: 918.23 | E147: 898.47 | F147: 885.28 | G147: 865.52 | H147: 931.42 | I147: 951.18 | J147: 964.37 | K147: 938 | L147: 905.05 | M147: 2.12172
A148: 139 | B148: MUTHOOTFIN | C148: 610.3 | D148: 609.78 | E148: 601.67 | F148: 593.03 | G148: 584.92 | H148: 618.42 | I148: 626.53 | J148: 635.17 | K148: 617.9 | L148: 601.15 | M148: 13.50687
A149: 140 | B149: NATCOPHARM | C149: 509.95 | D149: 511.47 | E149: 503.78 | F149: 497.62 | G149: 489.93 | H149: 517.63 | I149: 525.32 | J149: 531.48 | K149: 519.15 | L149: 505.3 | M149: 0.55499
A150: 141 | B150: NBCC | C150: 43.9 | D150: 43.48 | E150: 42.27 | F150: 40.63 | G150: 39.42 | H150: 45.12 | I150: 46.33 | J150: 47.97 | K150: 44.7 | L150: 41.85 | M150: 130.31126
A151: 142 | B151: NHPC | C151: 21.8 | D151: 21.87 | E151: 21.63 | F151: 21.47 | G151: 21.23 | H151: 22.03 | I151: 22.27 | J151: 22.43 | K151: 22.1 | L151: 21.7 | M151: 12.44361
A152: 143 | B152: NMDC | C152: 108.65 | D152: 108.92 | E152: 107.23 | F152: 105.82 | G152: 104.13 | H152: 110.33 | I152: 112.02 | J152: 113.43 | K152: 110.6 | L152: 107.5 | M152: 41.60673
A153: 144 | B153: NTPC | C153: 126.85 | D153: 126.58 | E153: 125.42 | F153: 123.98 | G153: 122.82 | H153: 128.02 | I153: 129.18 | J153: 130.62 | K153: 127.75 | L153: 125.15 | M153: 111.38203
A154: 145 | B154: NATIONALUM | C154: 44.85 | D154: 44.85 | E154: 44.40 | F154: 43.95 | G154: 43.50 | H154: 45.30 | I154: 45.75 | J154: 46.20 | K154: 45.3 | L154: 44.4 | M154: 62.75154
A155: 146 | B155: OBEROIRLTY | C155: 562.55 | D155: 560.93 | E155: 547.37 | F155: 532.18 | G155: 518.62 | H155: 576.12 | I155: 589.68 | J155: 604.87 | K155: 574.5 | L155: 545.75 | M155: 5.19407
A156: 147 | B156: ONGC | C156: 136.9 | D156: 137.25 | E156: 134.75 | F156: 132.60 | G156: 130.10 | H156: 139.40 | I156: 141.90 | J156: 144.05 | K156: 139.75 | L156: 135.1 | M156: 91.0569
A157: 148 | B157: OIL | C157: 159.3 | D157: 159.10 | E157: 157.75 | F157: 156.20 | G157: 154.85 | H157: 160.65 | I157: 162.00 | J157: 163.55 | K157: 160.45 | L157: 157.55 | M157: 11.46139
A158: 149 | B158: OFSS | C158: 3261.95 | D158: 3300.63 | E158: 3211.32 | F158: 3160.68 | G158: 3071.37 | H158: 3351.27 | I158: 3440.58 | J158: 3491.22 | K158: 3389.95 | L158: 3250 | M158: 0.34762
A159: 150 | B159: PIIND | C159: 1115.45 | D159: 1110.28 | E159: 1092.47 | F159: 1069.48 | G159: 1051.67 | H159: 1133.27 | I159: 1151.08 | J159: 1174.07 | K159: 1128.1 | L159: 1087.3 | M159: 1.39428
A160: 151 | B160: PNBHOUSING | C160: 714.45 | D160: 712.48 | E160: 696.97 | F160: 679.48 | G160: 663.97 | H160: 729.97 | I160: 745.48 | J160: 762.97 | K160: 728 | L160: 695 | M160: 9.63664
A161: 152 | B161: PAGEIND | C161: 18435.55 | D161: 18336.25 | E161: 18169.70 | F161: 17903.85 | G161: 17737.30 | H161: 18602.10 | I161: 18768.65 | J161: 19034.50 | K161: 18502.8 | L161: 18070.4 | M161: 0.20586
A162: 153 | B162: PETRONET | C162: 235.7 | D162: 235.60 | E162: 233.30 | F162: 230.90 | G162: 228.60 | H162: 238.00 | I162: 240.30 | J162: 242.70 | K162: 237.9 | L162: 233.2 | M162: 12.92409
A163: 154 | B163: PFIZER | C163: 2996.05 | D163: 2955.70 | E163: 2871.35 | F163: 2746.65 | G163: 2662.30 | H163: 3080.40 | I163: 3164.75 | J163: 3289.45 | K163: 3040.05 | L163: 2831 | M163: 0.64718
A164: 155 | B164: PIDILITIND | C164: 1211.4 | D164: 1218.08 | E164: 1191.67 | F164: 1171.93 | G164: 1145.52 | H164: 1237.82 | I164: 1264.23 | J164: 1283.97 | K164: 1244.5 | L164: 1198.35 | M164: 7.4301
A165: 156 | B165: PEL | C165: 1765.4 | D165: 1763.87 | E165: 1719.88 | F165: 1674.37 | G165: 1630.38 | H165: 1809.38 | I165: 1853.37 | J165: 1898.88 | K165: 1807.85 | L165: 1718.35 | M165: 13.18803
A166: 157 | B166: PFC | C166: 106.4 | D166: 107.07 | E166: 104.73 | F166: 103.07 | G166: 100.73 | H166: 108.73 | I166: 111.07 | J166: 112.73 | K166: 109.4 | L166: 105.4 | M166: 66.53271
A167: 158 | B167: POWERGRID | C167: 214 | D167: 213.35 | E167: 210.45 | F167: 206.90 | G167: 204.00 | H167: 216.90 | I167: 219.80 | J167: 223.35 | K167: 216.25 | L167: 209.8 | M167: 152.2632
A168: 159 | B168: PRESTIGE | C168: 260.65 | D168: 257.23 | E168: 246.77 | F168: 232.88 | G168: 222.42 | H168: 271.12 | I168: 281.58 | J168: 295.47 | K168: 267.7 | L168: 243.35 | M168: 1.95224
A169: 160 | B169: PGHH | C169: 10749.55 | D169: 10834.85 | E169: 10519.70 | F169: 10289.85 | G169: 9974.70 | H169: 11064.70 | I169: 11379.85 | J169: 11609.70 | K169: 11150 | L169: 10605 | M169: 0.17227
A170: 161 | B170: PNB | C170: 67.5 | D170: 67.70 | E170: 66.20 | F170: 64.90 | G170: 63.40 | H170: 69.00 | I170: 70.50 | J170: 71.80 | K170: 69.2 | L170: 66.4 | M170: 216.63053
A171: 162 | B171: QUESS | C171: 454.65 | D171: 449.55 | E171: 436.10 | F171: 417.55 | G171: 404.10 | H171: 468.10 | I171: 481.55 | J171: 500.10 | K171: 463 | L171: 431 | M171: 7.11536
A172: 163 | B172: RBLBANK | C172: 395.45 | D172: 396.78 | E172: 385.77 | F172: 376.08 | G172: 365.07 | H172: 406.47 | I172: 417.48 | J172: 427.17 | K172: 407.8 | L172: 387.1 | M172: 62.68517
A173: 164 | B173: RECLTD | C173: 136.3 | D173: 137.13 | E173: 133.27 | F173: 130.23 | G173: 126.37 | H173: 140.17 | I173: 144.03 | J173: 147.07 | K173: 141 | L173: 134.1 | M173: 43.28253
A174: 165 | B174: RAJESHEXPO | C174: 685.15 | D174: 688.90 | E174: 680.90 | F174: 676.65 | G174: 668.65 | H174: 693.15 | I174: 701.15 | J174: 705.40 | K174: 696.9 | L174: 684.65 | M174: 2.0476
A175: 166 | B175: RELCAPITAL | C175: 50.3 | D175: 51.17 | E175: 48.13 | F175: 45.97 | G175: 42.93 | H175: 53.33 | I175: 56.37 | J175: 58.53 | K175: 54.2 | L175: 49 | M175: 297.24756
A176: 167 | B176: RELIANCE | C176: 1180.25 | D176: 1172.93 | E176: 1157.67 | F176: 1135.08 | G176: 1119.82 | H176: 1195.52 | I176: 1210.78 | J176: 1233.37 | K176: 1188.2 | L176: 1150.35 | M176: 103.44862
A177: 168 | B177: RELINFRA | C177: 50.1 | D177: 49.87 | E177: 46.93 | F177: 43.77 | G177: 40.83 | H177: 53.03 | I177: 55.97 | J177: 59.13 | K177: 52.8 | L177: 46.7 | M177: 483.5635
A178: 169 | B178: RPOWER | C178: 3.5 | D178: 3.55 | E178: 3.30 | F178: 3.10 | G178: 2.85 | H178: 3.75 | I178: 4.00 | J178: 4.20 | K178: 3.8 | L178: 3.35 | M178: 337.46996
A179: 170 | B179: SBILIFE | C179: 777 | D179: 777.72 | E179: 751.83 | F179: 726.67 | G179: 700.78 | H179: 802.88 | I179: 828.77 | J179: 853.93 | K179: 803.6 | L179: 752.55 | M179: 7.89834
A180: 171 | B180: SRF | C180: 2638.7 | D180: 2636.75 | E180: 2568.50 | F180: 2498.30 | G180: 2430.05 | H180: 2706.95 | I180: 2775.20 | J180: 2845.40 | K180: 2705 | L180: 2566.55 | M180: 2.90887
A181: 172 | B181: SHREECEM | C181: 20001.75 | D181: 19947.58 | E181: 19745.17 | F181: 19488.58 | G181: 19286.17 | H181: 20204.17 | I181: 20406.58 | J181: 20663.17 | K181: 20150 | L181: 19691 | M181: 0.48049
A182: 173 | B182: SRTRANSFIN | C182: 967.35 | D182: 971.78 | E182: 958.87 | F182: 950.38 | G182: 937.47 | H182: 980.27 | I182: 993.18 | J182: 1001.67 | K182: 984.7 | L182: 963.3 | M182: 12.74941
A183: 174 | B183: SIEMENS | C183: 1119.5 | D183: 1124.48 | E183: 1097.02 | F183: 1074.53 | G183: 1047.07 | H183: 1146.97 | I183: 1174.43 | J183: 1196.92 | K183: 1151.95 | L183: 1102 | M183: 3.91524
A184: 175 | B184: SBIN | C184: 317.15 | D184: 320.00 | E184: 308.50 | F184: 299.85 | G184: 288.35 | H184: 328.65 | I184: 340.15 | J184: 348.80 | K184: 331.5 | L184: 311.35 | M184: 408.53304
A185: 176 | B185: SAIL | C185: 42.1 | D185: 42.02 | E185: 41.48 | F185: 40.87 | G185: 40.33 | H185: 42.63 | I185: 43.17 | J185: 43.78 | K185: 42.55 | L185: 41.4 | M185: 157.51851
A186: 177 | B186: STRTECH | C186: 149.1 | D186: 149.13 | E186: 146.47 | F186: 143.83 | G186: 141.17 | H186: 151.77 | I186: 154.43 | J186: 157.07 | K186: 151.8 | L186: 146.5 | M186: 8.28009
A187: 178 | B187: SPARC | C187: 159.85 | D187: 159.33 | E187: 157.37 | F187: 154.88 | G187: 152.92 | H187: 161.82 | I187: 163.78 | J187: 166.27 | K187: 161.3 | L187: 156.85 | M187: 4.2434
A188: 179 | B188: SUNPHARMA | C188: 425.1 | D188: 423.62 | E188: 419.48 | F188: 413.87 | G188: 409.73 | H188: 429.23 | I188: 433.37 | J188: 438.98 | K188: 427.75 | L188: 418 | M188: 36.3511
A189: 180 | B189: SUNTV | C189: 457.75 | D189: 462.80 | E189: 446.60 | F189: 435.45 | G189: 419.25 | H189: 473.95 | I189: 490.15 | J189: 501.30 | K189: 479 | L189: 451.65 | M189: 19.00537
A190: 181 | B190: SYNGENE | C190: 298.95 | D190: 298.82 | E190: 292.68 | F190: 286.42 | G190: 280.28 | H190: 305.08 | I190: 311.22 | J190: 317.48 | K190: 304.95 | L190: 292.55 | M190: 2.02447
A191: 182 | B191: TVSMOTOR | C191: 358.45 | D191: 359.75 | E191: 352.70 | F191: 346.95 | G191: 339.90 | H191: 365.50 | I191: 372.55 | J191: 378.30 | K191: 366.8 | L191: 354 | M191: 20.26382
A192: 183 | B192: TATACHEM | C192: 566.65 | D192: 570.60 | E192: 559.20 | F192: 551.75 | G192: 540.35 | H192: 578.05 | I192: 589.45 | J192: 596.90 | K192: 582 | L192: 563.15 | M192: 4.38718
A193: 184 | B193: TCS | C193: 2180.05 | D193: 2187.93 | E193: 2158.37 | F193: 2136.68 | G193: 2107.12 | H193: 2209.62 | I193: 2239.18 | J193: 2260.87 | K193: 2217.5 | L193: 2166.25 | M193: 23.75236
A194: 185 | B194: TATAGLOBAL | C194: 258.75 | D194: 257.25 | E194: 252.00 | F194: 245.25 | G194: 240.00 | H194: 264.00 | I194: 269.25 | J194: 276.00 | K194: 262.5 | L194: 250.5 | M194: 53.62278
A195: 186 | B195: TATAMTRDVR | C195: 62.75 | D195: 63.20 | E195: 60.95 | F195: 59.15 | G195: 56.90 | H195: 65.00 | I195: 67.25 | J195: 69.05 | K195: 65.45 | L195: 61.4 | M195: 47.9533
A196: 187 | B196: TATAMOTORS | C196: 129.55 | D196: 131.13 | E196: 125.97 | F196: 122.38 | G196: 117.22 | H196: 134.72 | I196: 139.88 | J196: 143.47 | K196: 136.3 | L196: 127.55 | M196: 389.91424
A197: 188 | B197: TATAPOWER | C197: 59.75 | D197: 59.70 | E197: 58.55 | F197: 57.35 | G197: 56.20 | H197: 60.90 | I197: 62.05 | J197: 63.25 | K197: 60.85 | L197: 58.5 | M197: 64.67008
A198: 189 | B198: TATASTEEL | C198: 420 | D198: 422.23 | E198: 412.57 | F198: 405.13 | G198: 395.47 | H198: 429.67 | I198: 439.33 | J198: 446.77 | K198: 431.9 | L198: 414.8 | M198: 94.21985
A199: 190 | B199: TECHM | C199: 625.65 | D199: 626.03 | E199: 618.62 | F199: 611.58 | G199: 604.17 | H199: 633.07 | I199: 640.48 | J199: 647.52 | K199: 633.45 | L199: 619 | M199: 39.82949
A200: 191 | B200: NIACL | C200: 111.6 | D200: 111.95 | E200: 110.35 | F200: 109.10 | G200: 107.50 | H200: 113.20 | I200: 114.80 | J200: 116.05 | K200: 113.55 | L200: 110.7 | M200: 0.54908
A201: 192 | B201: RAMCOCEM | C201: 717.9 | D201: 719.03 | E201: 698.07 | F201: 678.23 | G201: 657.27 | H201: 738.87 | I201: 759.83 | J201: 779.67 | K201: 740 | L201: 699.2 | M201: 4.40152
A202: 193 | B202: TITAN | C202: 1057.3 | D202: 1056.02 | E202: 1042.68 | F202: 1028.07 | G202: 1014.73 | H202: 1070.63 | I202: 1083.97 | J202: 1098.58 | K202: 1069.35 | L202: 1041.4 | M202: 23.21381
A203: 194 | B203: TORNTPHARM | C203: 1667.9 | D203: 1667.55 | E203: 1653.45 | F203: 1639.00 | G203: 1624.90 | H203: 1682.00 | I203: 1696.10 | J203: 1710.55 | K203: 1681.65 | L203: 1653.1 | M203: 2.27702
A204: 195 | B204: TORNTPOWER | C204: 303.75 | D204: 302.90 | E204: 300.00 | F204: 296.25 | G204: 293.35 | H204: 306.65 | I204: 309.55 | J204: 313.30 | K204: 305.8 | L204: 299.15 | M204: 5.22164
A205: 196 | B205: UPL | C205: 576.8 | D205: 576.78 | E205: 560.62 | F205: 544.43 | G205: 528.27 | H205: 592.97 | I205: 609.13 | J205: 625.32 | K205: 592.95 | L205: 560.6 | M205: 151.12906
... 30 more rows

Sheet MidCap Intra
L5: Back To Main Page
A6: FOR INTRA DAY TRADING | K6: =Main!B10 -> 2019-08-02
A9: Sr.no | B9: Scrip | C9: CLOSE RATE | D9: Pivot Point | E9: Supports | H9: Resistances
C10: Point | E10: S1 | F10: S2 | G10: S3 | H10: R1 | I10: R2 | J10: R3 | K10: HIGH | L10: LOW | M10: Total Trade Quanity in Lakhs
A11: 1 | B11: 3MINDIA | C11: 20704.1 | D11: 20875.80 | E11: 20458.30 | F11: 20212.50 | G11: 19795.00 | H11: 21121.60 | I11: 21539.10 | J11: 21784.90 | K11: 21293.3 | L11: 20630 | M11: 0.00663
A12: 2 | B12: ABB | C12: 1352.65 | D12: 1362.35 | E12: 1332.75 | F12: 1312.85 | G12: 1283.25 | H12: 1382.25 | I12: 1411.85 | J12: 1431.75 | K12: 1391.95 | L12: 1342.45 | M12: 0.50873
A13: 3 | B13: ACC | C13: 1515.3 | D13: 1523.57 | E13: 1490.73 | F13: 1466.17 | G13: 1433.33 | H13: 1548.13 | I13: 1580.97 | J13: 1605.53 | K13: 1556.4 | L13: 1499 | M13: 8.05812
A14: 4 | B14: AIAENG | C14: 1721.45 | D14: 1718.65 | E14: 1705.30 | F14: 1689.15 | G14: 1675.80 | H14: 1734.80 | I14: 1748.15 | J14: 1764.30 | K14: 1732 | L14: 1702.5 | M14: 0.3794
A15: 5 | B15: APLAPOLLO | C15: 1384.85 | D15: 1391.35 | E15: 1344.70 | F15: 1304.55 | G15: 1257.90 | H15: 1431.50 | I15: 1478.15 | J15: 1518.30 | K15: 1438 | L15: 1351.2 | M15: 0.0959
A16: 6 | B16: AUBANK | C16: 657.2 | D16: 660.93 | E16: 648.92 | F16: 640.63 | G16: 628.62 | H16: 669.22 | I16: 681.23 | J16: 689.52 | K16: 672.95 | L16: 652.65 | M16: 1.07709
A17: 7 | B17: AAVAS | C17: 1466.5 | D17: 1471.52 | E17: 1442.98 | F17: 1419.47 | G17: 1390.93 | H17: 1495.03 | I17: 1523.57 | J17: 1547.08 | K17: 1500.05 | L17: 1448 | M17: 0.4841
A18: 8 | B18: ADANIGREEN | C18: 45.6 | D18: 46.15 | E18: 44.55 | F18: 43.50 | G18: 41.90 | H18: 47.20 | I18: 48.80 | J18: 49.85 | K18: 47.75 | L18: 45.1 | M18: 5.03495
A19: 9 | B19: ADANIPORTS | C19: 371.1 | D19: 371.75 | E19: 365.65 | F19: 360.20 | G19: 354.10 | H19: 377.20 | I19: 383.30 | J19: 388.75 | K19: 377.85 | L19: 366.3 | M19: 17.20133
A20: 10 | B20: ADANIPOWER | C20: 59.4 | D20: 59.53 | E20: 57.97 | F20: 56.53 | G20: 54.97 | H20: 60.97 | I20: 62.53 | J20: 63.97 | K20: 61.1 | L20: 58.1 | M20: 111.53236
A21: 11 | B21: ADANITRANS | C21: 203.5 | D21: 205.77 | E21: 198.73 | F21: 193.97 | G21: 186.93 | H21: 210.53 | I21: 217.57 | J21: 222.33 | K21: 212.8 | L21: 201 | M21: 0.69649
A22: 12 | B22: ABCAPITAL | C22: 82.4 | D22: 82.60 | E22: 81.80 | F22: 81.20 | G22: 80.40 | H22: 83.20 | I22: 84.00 | J22: 84.60 | K22: 83.4 | L22: 82 | M22: 8.52473
A23: 13 | B23: ABFRL | C23: 187.25 | D23: 187.73 | E23: 184.07 | F23: 180.88 | G23: 177.22 | H23: 190.92 | I23: 194.58 | J23: 197.77 | K23: 191.4 | L23: 184.55 | M23: 6.20056
A24: 14 | B24: ADVENZYMES | C24: 151.05 | D24: 150.12 | E24: 148.23 | F24: 145.42 | G24: 143.53 | H24: 152.93 | I24: 154.82 | J24: 157.63 | K24: 152 | L24: 147.3 | M24: 0.79614
A25: 15 | B25: AEGISCHEM | C25: 196.45 | D25: 194.22 | E25: 188.43 | F25: 180.42 | G25: 174.63 | H25: 202.23 | I25: 208.02 | J25: 216.03 | K25: 200 | L25: 186.2 | M25: 2.59499
A26: 16 | B26: AJANTPHARM | C26: 956 | D26: 934.33 | E26: 903.87 | F26: 851.73 | G26: 821.27 | H26: 986.47 | I26: 1016.93 | J26: 1069.07 | K26: 964.8 | L26: 882.2 | M26: 15.45308
A27: 17 | B27: AKZOINDIA | C27: 1722.15 | D27: 1726.47 | E27: 1707.93 | F27: 1693.72 | G27: 1675.18 | H27: 1740.68 | I27: 1759.22 | J27: 1773.43 | K27: 1745 | L27: 1712.25 | M27: 0.01155
A28: 18 | B28: APLLTD | C28: 521.5 | D28: 522.50 | E28: 515.30 | F28: 509.10 | G28: 501.90 | H28: 528.70 | I28: 535.90 | J28: 542.10 | K28: 529.7 | L28: 516.3 | M28: 0.1405
A29: 19 | B29: ALKEM | C29: 1715.6 | D29: 1736.87 | E29: 1676.93 | F29: 1638.27 | G29: 1578.33 | H29: 1775.53 | I29: 1835.47 | J29: 1874.13 | K29: 1796.8 | L29: 1698.2 | M29: 0.32259
A30: 20 | B30: ALBK | C30: 37.6 | D30: 37.52 | E30: 37.08 | F30: 36.57 | G30: 36.13 | H30: 38.03 | I30: 38.47 | J30: 38.98 | K30: 37.95 | L30: 37 | M30: 22.30746
A31: 21 | B31: ALLCARGO | C31: 95.45 | D31: 95.42 | E31: 93.38 | F31: 91.32 | G31: 89.28 | H31: 97.48 | I31: 99.52 | J31: 101.58 | K31: 97.45 | L31: 93.35 | M31: 0.44548
A32: 22 | B32: AMARAJABAT | C32: 665.6 | D32: 671.22 | E32: 652.88 | F32: 640.17 | G32: 621.83 | H32: 683.93 | I32: 702.27 | J32: 714.98 | K32: 689.55 | L32: 658.5 | M32: 18.27494
A33: 23 | B33: AMBUJACEM | C33: 196.8 | D33: 197.62 | E33: 193.28 | F33: 189.77 | G33: 185.43 | H33: 201.13 | I33: 205.47 | J33: 208.98 | K33: 201.95 | L33: 194.1 | M33: 40.09344
A34: 24 | B34: ANDHRABANK | C34: 19.35 | D34: 19.25 | E34: 18.80 | F34: 18.25 | G34: 17.80 | H34: 19.80 | I34: 20.25 | J34: 20.80 | K34: 19.7 | L34: 18.7 | M34: 12.74789
A35: 25 | B35: APOLLOHOSP | C35: 1365.55 | D35: 1362.68 | E35: 1343.87 | F35: 1322.18 | G35: 1303.37 | H35: 1384.37 | I35: 1403.18 | J35: 1424.87 | K35: 1381.5 | L35: 1341 | M35: 4.92611
A36: 26 | B36: APOLLOTYRE | C36: 154.15 | D36: 154.60 | E36: 151.30 | F36: 148.45 | G36: 145.15 | H36: 157.45 | I36: 160.75 | J36: 163.60 | K36: 157.9 | L36: 151.75 | M36: 26.24505
A37: 27 | B37: ASHOKLEY | C37: 68.85 | D37: 69.72 | E37: 66.28 | F37: 63.72 | G37: 60.28 | H37: 72.28 | I37: 75.72 | J37: 78.28 | K37: 73.15 | L37: 67.15 | M37: 587.74538
A38: 28 | B38: ASHOKA | C38: 119.35 | D38: 119.18 | E38: 116.42 | F38: 113.48 | G38: 110.72 | H38: 122.12 | I38: 124.88 | J38: 127.82 | K38: 121.95 | L38: 116.25 | M38: 2.54802
A39: 29 | B39: ASIANPAINT | C39: 1504.7 | D39: 1509.93 | E39: 1488.42 | F39: 1472.13 | G39: 1450.62 | H39: 1526.22 | I39: 1547.73 | J39: 1564.02 | K39: 1531.45 | L39: 1493.65 | M39: 22.63295
A40: 30 | B40: ASTERDM | C40: 121.75 | D40: 121.42 | E40: 118.83 | F40: 115.92 | G40: 113.33 | H40: 124.33 | I40: 126.92 | J40: 129.83 | K40: 124 | L40: 118.5 | M40: 1.41226
A41: 31 | B41: ASTRAZEN | C41: 1898.75 | D41: 1916.25 | E41: 1848.50 | F41: 1798.25 | G41: 1730.50 | H41: 1966.50 | I41: 2034.25 | J41: 2084.50 | K41: 1984 | L41: 1866 | M41: 0.15977
A42: 32 | B42: ASTRAL | C42: 1233.75 | D42: 1234.07 | E42: 1215.13 | F42: 1196.52 | G42: 1177.58 | H42: 1252.68 | I42: 1271.62 | J42: 1290.23 | K42: 1253 | L42: 1215.45 | M42: 0.26489
A43: 33 | B43: ATUL | C43: 3615 | D43: 3613.78 | E43: 3562.52 | F43: 3510.03 | G43: 3458.77 | H43: 3666.27 | I43: 3717.53 | J43: 3770.02 | K43: 3665.05 | L43: 3561.3 | M43: 0.26792
A44: 34 | B44: AUROPHARMA | C44: 550.6 | D44: 553.90 | E44: 540.05 | F44: 529.50 | G44: 515.65 | H44: 564.45 | I44: 578.30 | J44: 588.85 | K44: 567.75 | L44: 543.35 | M44: 24.49709
A45: 35 | B45: AVANTIFEED | C45: 307.25 | D45: 309.23 | E45: 303.02 | F45: 298.78 | G45: 292.57 | H45: 313.47 | I45: 319.68 | J45: 323.92 | K45: 315.45 | L45: 305 | M45: 2.98767
A46: 36 | B46: DMART | C46: 1483.6 | D46: 1479.53 | E46: 1444.07 | F46: 1404.53 | G46: 1369.07 | H46: 1519.07 | I46: 1554.53 | J46: 1594.07 | K46: 1515 | L46: 1440 | M46: 7.88582
A47: 37 | B47: AXISBANK | C47: 669.3 | D47: 670.90 | E47: 661.05 | F47: 652.80 | G47: 642.95 | H47: 679.15 | I47: 689.00 | J47: 697.25 | K47: 680.75 | L47: 662.65 | M47: 170.0121
A48: 38 | B48: BASF | C48: 1031.15 | D48: 1023.72 | E48: 1009.43 | F48: 987.72 | G48: 973.43 | H48: 1045.43 | I48: 1059.72 | J48: 1081.43 | K48: 1038 | L48: 1002 | M48: 0.0448
A49: 39 | B49: BEML | C49: 844.95 | D49: 843.15 | E49: 826.80 | F49: 808.65 | G49: 792.30 | H49: 861.30 | I49: 877.65 | J49: 895.80 | K49: 859.5 | L49: 825 | M49: 6.2452
A50: 40 | B50: BSE | C50: 500.6 | D50: 507.13 | E50: 492.72 | F50: 484.83 | G50: 470.42 | H50: 515.02 | I50: 529.43 | J50: 537.32 | K50: 521.55 | L50: 499.25 | M50: 1.21823
A51: 41 | B51: BAJAJ-AUTO | C51: 2537.65 | D51: 2521.28 | E51: 2489.97 | F51: 2442.28 | G51: 2410.97 | H51: 2568.97 | I51: 2600.28 | J51: 2647.97 | K51: 2552.6 | L51: 2473.6 | M51: 6.25372
A52: 42 | B52: BAJAJCON | C52: 260.25 | D52: 262.92 | E52: 253.08 | F52: 245.92 | G52: 236.08 | H52: 270.08 | I52: 279.92 | J52: 287.08 | K52: 272.75 | L52: 255.75 | M52: 1.15537
A53: 43 | B53: BAJAJELEC | C53: 358.55 | D53: 359.57 | E53: 350.98 | F53: 343.42 | G53: 334.83 | H53: 367.13 | I53: 375.72 | J53: 383.28 | K53: 368.15 | L53: 352 | M53: 1.9323
A54: 44 | B54: BAJFINANCE | C54: 3222.1 | D54: 3219.03 | E54: 3177.07 | F54: 3132.03 | G54: 3090.07 | H54: 3264.07 | I54: 3306.03 | J54: 3351.07 | K54: 3261 | L54: 3174 | M54: 18.92516
A55: 45 | B55: BAJAJFINSV | C55: 7082 | D55: 7077.45 | E55: 6975.10 | F55: 6868.20 | G55: 6765.85 | H55: 7184.35 | I55: 7286.70 | J55: 7393.60 | K55: 7179.8 | L55: 6970.55 | M55: 3.65797
A56: 46 | B56: BAJAJHLDNG | C56: 3354.25 | D56: 3373.73 | E56: 3320.52 | F56: 3286.78 | G56: 3233.57 | H56: 3407.47 | I56: 3460.68 | J56: 3494.42 | K56: 3426.95 | L56: 3340 | M56: 0.24386
A57: 47 | B57: BALKRISIND | C57: 704.35 | D57: 701.80 | E57: 694.60 | F57: 684.85 | G57: 677.65 | H57: 711.55 | I57: 718.75 | J57: 728.50 | K57: 709 | L57: 692.05 | M57: 3.60087
A58: 48 | B58: BALMLAWRIE | C58: 170.5 | D58: 170.80 | E58: 169.65 | F58: 168.80 | G58: 167.65 | H58: 171.65 | I58: 172.80 | J58: 173.65 | K58: 171.95 | L58: 169.95 | M58: 0.28146
A59: 49 | B59: BALRAMCHIN | C59: 144.15 | D59: 143.30 | E59: 141.15 | F59: 138.15 | G59: 136.00 | H59: 146.30 | I59: 148.45 | J59: 151.45 | K59: 145.45 | L59: 140.3 | M59: 6.39005
A60: 50 | B60: BANDHANBNK | C60: 480.25 | D60: 480.07 | E60: 475.23 | F60: 470.22 | G60: 465.38 | H60: 485.08 | I60: 489.92 | J60: 494.93 | K60: 484.9 | L60: 475.05 | M60: 10.55339
A61: 51 | B61: BANKBARODA | C61: 105.55 | D61: 105.17 | E61: 103.18 | F61: 100.82 | G61: 98.83 | H61: 107.53 | I61: 109.52 | J61: 111.88 | K61: 107.15 | L61: 102.8 | M61: 225.16129
A62: 52 | B62: BANKINDIA | C62: 70.2 | D62: 70.47 | E62: 68.98 | F62: 67.77 | G62: 66.28 | H62: 71.68 | I62: 73.17 | J62: 74.38 | K62: 71.95 | L62: 69.25 | M62: 86.92057
A63: 53 | B63: MAHABANK | C63: 12.75 | D63: 12.80 | E63: 12.50 | F63: 12.25 | G63: 11.95 | H63: 13.05 | I63: 13.35 | J63: 13.60 | K63: 13.1 | L63: 12.55 | M63: 4.38919
A64: 54 | B64: BATAINDIA | C64: 1301.8 | D64: 1303.38 | E64: 1290.82 | F64: 1279.83 | G64: 1267.27 | H64: 1314.37 | I64: 1326.93 | J64: 1337.92 | K64: 1315.95 | L64: 1292.4 | M64: 5.47149
A65: 55 | B65: BERGEPAINT | C65: 331.55 | D65: 330.88 | E65: 328.27 | F65: 324.98 | G65: 322.37 | H65: 334.17 | I65: 336.78 | J65: 340.07 | K65: 333.5 | L65: 327.6 | M65: 7.37911
A66: 56 | B66: BDL | C66: 291 | D66: 290.68 | E66: 287.07 | F66: 283.13 | G66: 279.52 | H66: 294.62 | I66: 298.23 | J66: 302.17 | K66: 294.3 | L66: 286.75 | M66: 0.27338
A67: 57 | B67: BEL | C67: 98.75 | D67: 99.08 | E67: 96.37 | F67: 93.98 | G67: 91.27 | H67: 101.47 | I67: 104.18 | J67: 106.57 | K67: 101.8 | L67: 96.7 | M67: 129.28194
A68: 58 | B68: BHARATFORG | C68: 420.2 | D68: 419.52 | E68: 415.33 | F68: 410.47 | G68: 406.28 | H68: 424.38 | I68: 428.57 | J68: 433.43 | K68: 423.7 | L68: 414.65 | M68: 7.72632
A69: 59 | B69: BHEL | C69: 57.55 | D69: 57.73 | E69: 56.37 | F69: 55.18 | G69: 53.82 | H69: 58.92 | I69: 60.28 | J69: 61.47 | K69: 59.1 | L69: 56.55 | M69: 66.44276
A70: 60 | B70: BPCL | C70: 343.65 | D70: 343.00 | E70: 339.85 | F70: 336.05 | G70: 332.90 | H70: 346.80 | I70: 349.95 | J70: 353.75 | K70: 346.15 | L70: 339.2 | M70: 30.63358
A71: 61 | B71: BHARTIARTL | C71: 323.9 | D71: 327.93 | E71: 317.12 | F71: 310.33 | G71: 299.52 | H71: 334.72 | I71: 345.53 | J71: 352.32 | K71: 338.75 | L71: 321.15 | M71: 97.739
A72: 62 | B72: INFRATEL | C72: 250.95 | D72: 249.63 | E72: 245.32 | F72: 239.68 | G72: 235.37 | H72: 255.27 | I72: 259.58 | J72: 265.22 | K72: 253.95 | L72: 244 | M72: 50.9797
A73: 63 | B73: BIOCON | C73: 223.55 | D73: 223.75 | E73: 221.05 | F73: 218.55 | G73: 215.85 | H73: 226.25 | I73: 228.95 | J73: 231.45 | K73: 226.45 | L73: 221.25 | M73: 34.23702
A74: 64 | B74: BIRLACORPN | C74: 580.65 | D74: 574.25 | E74: 558.75 | F74: 536.85 | G74: 521.35 | H74: 596.15 | I74: 611.65 | J74: 633.55 | K74: 589.75 | L74: 552.35 | M74: 0.66272
A75: 65 | B75: BLISSGVS | C75: 118.8 | D75: 128.10 | E75: 108.85 | F75: 98.90 | G75: 79.65 | H75: 138.05 | I75: 157.30 | J75: 167.25 | K75: 147.35 | L75: 118.15 | M75: 12.69612
A76: 66 | B76: BLUEDART | C76: 2344.7 | D76: 2311.58 | E76: 2213.17 | F76: 2081.63 | G76: 1983.22 | H76: 2443.12 | I76: 2541.53 | J76: 2673.07 | K76: 2410 | L76: 2180.05 | M76: 0.54804
A77: 67 | B77: BLUESTARCO | C77: 672 | D77: 674.03 | E77: 664.57 | F77: 657.13 | G77: 647.67 | H77: 681.47 | I77: 690.93 | J77: 698.37 | K77: 683.5 | L77: 666.6 | M77: 0.36533
A78: 68 | B78: BBTC | C78: 801.95 | D78: 809.68 | E78: 784.37 | F78: 766.78 | G78: 741.47 | H78: 827.27 | I78: 852.58 | J78: 870.17 | K78: 835 | L78: 792.1 | M78: 0.69247
A79: 69 | B79: BOMDYEING | C79: 69.2 | D79: 69.97 | E79: 67.33 | F79: 65.47 | G79: 62.83 | H79: 71.83 | I79: 74.47 | J79: 76.33 | K79: 72.6 | L79: 68.1 | M79: 12.34582
A80: 70 | B80: BOSCHLTD | C80: 14643.1 | D80: 14536.27 | E80: 14372.53 | F80: 14101.97 | G80: 13938.23 | H80: 14806.83 | I80: 14970.57 | J80: 15241.13 | K80: 14700 | L80: 14265.7 | M80: 0.15351
A81: 71 | B81: BRIGADE | C81: 258.3 | D81: 258.53 | E81: 254.72 | F81: 251.13 | G81: 247.32 | H81: 262.12 | I81: 265.93 | J81: 269.52 | K81: 262.35 | L81: 254.95 | M81: 0.42624
A82: 72 | B82: BRITANNIA | C82: 2600.9 | D82: 2598.85 | E82: 2577.10 | F82: 2553.30 | G82: 2531.55 | H82: 2622.65 | I82: 2644.40 | J82: 2668.20 | K82: 2620.6 | L82: 2575.05 | M82: 3.32895
A83: 73 | B83: CARERATING | C83: 608.75 | D83: 650.55 | E83: 562.20 | F83: 515.65 | G83: 427.30 | H83: 697.10 | I83: 785.45 | J83: 832.00 | K83: 738.9 | L83: 604 | M83: 4.88509
A84: 74 | B84: CCL | C84: 245.75 | D84: 246.92 | E84: 243.78 | F84: 241.82 | G84: 238.68 | H84: 248.88 | I84: 252.02 | J84: 253.98 | K84: 250.05 | L84: 244.95 | M84: 0.11551
A85: 75 | B85: CESC | C85: 748.85 | D85: 743.18 | E85: 734.67 | F85: 720.48 | G85: 711.97 | H85: 757.37 | I85: 765.88 | J85: 780.07 | K85: 751.7 | L85: 729 | M85: 2.73811
A86: 76 | B86: CGPOWER | C86: 18.6 | D86: 18.47 | E86: 18.18 | F86: 17.77 | G86: 17.48 | H86: 18.88 | I86: 19.17 | J86: 19.58 | K86: 18.75 | L86: 18.05 | M86: 11.5475
A87: 77 | B87: CRISIL | C87: 1261.2 | D87: 1275.13 | E87: 1241.27 | F87: 1221.33 | G87: 1187.47 | H87: 1295.07 | I87: 1328.93 | J87: 1348.87 | K87: 1309 | L87: 1255.2 | M87: 0.12754
A88: 78 | B88: CADILAHC | C88: 226.3 | D88: 225.82 | E88: 222.48 | F88: 218.67 | G88: 215.33 | H88: 229.63 | I88: 232.97 | J88: 236.78 | K88: 229.15 | L88: 222 | M88: 15.08064
A89: 79 | B89: CANFINHOME | C89: 374.3 | D89: 378.15 | E89: 367.40 | F89: 360.50 | G89: 349.75 | H89: 385.05 | I89: 395.80 | J89: 402.70 | K89: 388.9 | L89: 371.25 | M89: 3.19711
A90: 80 | B90: CANBK | C90: 231.7 | D90: 232.47 | E90: 227.73 | F90: 223.77 | G90: 219.03 | H90: 236.43 | I90: 241.17 | J90: 245.13 | K90: 237.2 | L90: 228.5 | M90: 44.24336
A91: 81 | B91: CAPLIPOINT | C91: 410.5 | D91: 413.33 | E91: 402.17 | F91: 393.83 | G91: 382.67 | H91: 421.67 | I91: 432.83 | J91: 441.17 | K91: 424.5 | L91: 405 | M91: 0.17732
A92: 82 | B92: CARBORUNIV | C92: 315.5 | D92: 318.78 | E92: 307.67 | F92: 299.83 | G92: 288.72 | H92: 326.62 | I92: 337.73 | J92: 345.57 | K92: 329.9 | L92: 310.95 | M92: 0.24669
A93: 83 | B93: CASTROLIND | C93: 118.25 | D93: 119.75 | E93: 116.30 | F93: 114.35 | G93: 110.90 | H93: 121.70 | I93: 125.15 | J93: 127.10 | K93: 123.2 | L93: 117.8 | M93: 13.93721
A94: 84 | B94: CEATLTD | C94: 811.55 | D94: 817.42 | E94: 794.83 | F94: 778.12 | G94: 755.53 | H94: 834.13 | I94: 856.72 | J94: 873.43 | K94: 840 | L94: 800.7 | M94: 5.90373
A95: 85 | B95: CENTRALBK | C95: 17.55 | D95: 17.57 | E95: 17.38 | F95: 17.22 | G95: 17.03 | H95: 17.73 | I95: 17.92 | J95: 18.08 | K95: 17.75 | L95: 17.4 | M95: 3.65442
A96: 86 | B96: CDSL | C96: 192.85 | D96: 192.18 | E96: 191.27 | F96: 189.68 | G96: 188.77 | H96: 193.77 | I96: 194.68 | J96: 196.27 | K96: 193.1 | L96: 190.6 | M96: 1.80005
A97: 87 | B97: CENTURYPLY | C97: 120.65 | D97: 122.22 | E97: 118.43 | F97: 116.22 | G97: 112.43 | H97: 124.43 | I97: 128.22 | J97: 130.43 | K97: 126 | L97: 120 | M97: 0.9426
A98: 88 | B98: CERA | C98: 2494.9 | D98: 2531.30 | E98: 2375.60 | F98: 2256.30 | G98: 2100.60 | H98: 2650.60 | I98: 2806.30 | J98: 2925.60 | K98: 2687 | L98: 2412 | M98: 0.1187
A99: 89 | B99: CHAMBLFERT | C99: 147.4 | D99: 149.10 | E99: 145.30 | F99: 143.20 | G99: 139.40 | H99: 151.20 | I99: 155.00 | J99: 157.10 | K99: 152.9 | L99: 147 | M99: 0.94624
A100: 90 | B100: CHENNPETRO | C100: 190.65 | D100: 192.53 | E100: 188.12 | F100: 185.58 | G100: 181.17 | H100: 195.07 | I100: 199.48 | J100: 202.02 | K100: 196.95 | L100: 190 | M100: 1.9135
A101: 91 | B101: CHOLAHLDNG | C101: 454 | D101: 456.97 | E101: 442.03 | F101: 430.07 | G101: 415.13 | H101: 468.93 | I101: 483.87 | J101: 495.83 | K101: 471.9 | L101: 445 | M101: 9.53012
A102: 92 | B102: CHOLAFIN | C102: 259.6 | D102: 260.70 | E102: 254.90 | F102: 250.20 | G102: 244.40 | H102: 265.40 | I102: 271.20 | J102: 275.90 | K102: 266.5 | L102: 256 | M102: 24.73592
A103: 93 | B103: CIPLA | C103: 512.45 | D103: 513.70 | E103: 507.95 | F103: 503.45 | G103: 497.70 | H103: 518.20 | I103: 523.95 | J103: 528.45 | K103: 519.45 | L103: 509.2 | M103: 12.89007
A104: 94 | B104: CUB | C104: 192.35 | D104: 192.48 | E104: 191.17 | F104: 189.98 | G104: 188.67 | H104: 193.67 | I104: 194.98 | J104: 196.17 | K104: 193.8 | L104: 191.3 | M104: 5.30809
A105: 95 | B105: COALINDIA | C105: 202.45 | D105: 202.73 | E105: 200.22 | F105: 197.98 | G105: 195.47 | H105: 204.97 | I105: 207.48 | J105: 209.72 | K105: 205.25 | L105: 200.5 | M105: 60.18424
A106: 96 | B106: COCHINSHIP | C106: 359.05 | D106: 360.15 | E106: 354.40 | F106: 349.75 | G106: 344.00 | H106: 364.80 | I106: 370.55 | J106: 375.20 | K106: 365.9 | L106: 355.5 | M106: 0.48459
A107: 97 | B107: COFFEEDAY | C107: 110.5 | D107: 110.50 | E107: 110.50 | F107: 110.50 | G107: 110.50 | H107: 110.50 | I107: 110.50 | J107: 110.50 | K107: 110.5 | L107: 110.5 | M107: 1.23261
A108: 98 | B108: COLPAL | C108: 1183.1 | D108: 1183.42 | E108: 1173.58 | F108: 1164.07 | G108: 1154.23 | H108: 1192.93 | I108: 1202.77 | J108: 1212.28 | K108: 1193.25 | L108: 1173.9 | M108: 2.38493
A109: 99 | B109: CONCOR | C109: 515.45 | D109: 511.83 | E109: 503.67 | F109: 491.88 | G109: 483.72 | H109: 523.62 | I109: 531.78 | J109: 543.57 | K109: 520 | L109: 500.05 | M109: 13.68061
A110: 100 | B110: COROMANDEL | C110: 375.9 | D110: 370.97 | E110: 362.93 | F110: 349.97 | G110: 341.93 | H110: 383.93 | I110: 391.97 | J110: 404.93 | K110: 379 | L110: 358 | M110: 1.95614
A111: 101 | B111: CORPBANK | C111: 22.15 | D111: 22.35 | E111: 21.70 | F111: 21.25 | G111: 20.60 | H111: 22.80 | I111: 23.45 | J111: 23.90 | K111: 23 | L111: 21.9 | M111: 1.85859
A112: 102 | B112: COX&KINGS | C112: 11 | D112: 11.00 | E112: 11.00 | F112: 11.00 | G112: 11.00 | H112: 11.00 | I112: 11.00 | J112: 11.00 | K112: 11 | L112: 11 | M112: 0.38659
A113: 103 | B113: CREDITACC | C113: 501.05 | D113: 504.88 | E113: 478.02 | F113: 454.98 | G113: 428.12 | H113: 527.92 | I113: 554.78 | J113: 577.82 | K113: 531.75 | L113: 481.85 | M113: 2.59447
A114: 104 | B114: CROMPTON | C114: 228.15 | D114: 229.48 | E114: 226.02 | F114: 223.88 | G114: 220.42 | H114: 231.62 | I114: 235.08 | J114: 237.22 | K114: 232.95 | L114: 227.35 | M114: 7.04825
A115: 105 | B115: CUMMINSIND | C115: 693.4 | D115: 698.15 | E115: 683.35 | F115: 673.30 | G115: 658.50 | H115: 708.20 | I115: 723.00 | J115: 733.05 | K115: 712.95 | L115: 688.1 | M115: 1.91024
A116: 106 | B116: CYIENT | C116: 440.9 | D116: 445.97 | E116: 432.98 | F116: 425.07 | G116: 412.08 | H116: 453.88 | I116: 466.87 | J116: 474.78 | K116: 458.95 | L116: 438.05 | M116: 2.72389
A117: 107 | B117: DBCORP | C117: 155.35 | D117: 156.48 | E117: 151.92 | F117: 148.48 | G117: 143.92 | H117: 159.92 | I117: 164.48 | J117: 167.92 | K117: 161.05 | L117: 153.05 | M117: 2.27242
A118: 108 | B118: DCBBANK | C118: 193.35 | D118: 193.65 | E118: 191.20 | F118: 189.05 | G118: 186.60 | H118: 195.80 | I118: 198.25 | J118: 200.40 | K118: 196.1 | L118: 191.5 | M118: 7.95167
A119: 109 | B119: DCMSHRIRAM | C119: 399.2 | D119: 399.97 | E119: 392.03 | F119: 384.87 | G119: 376.93 | H119: 407.13 | I119: 415.07 | J119: 422.23 | K119: 407.9 | L119: 392.8 | M119: 0.89347
A120: 110 | B120: DLF | C120: 172.4 | D120: 173.45 | E120: 169.30 | F120: 166.20 | G120: 162.05 | H120: 176.55 | I120: 180.70 | J120: 183.80 | K120: 177.6 | L120: 170.35 | M120: 101.07821
A121: 111 | B121: DABUR | C121: 425.4 | D121: 425.08 | E121: 422.17 | F121: 418.93 | G121: 416.02 | H121: 428.32 | I121: 431.23 | J121: 434.47 | K121: 428 | L121: 421.85 | M121: 18.48165
A122: 112 | B122: DEEPAKFERT | C122: 86.05 | D122: 85.77 | E122: 84.53 | F122: 83.02 | G122: 81.78 | H122: 87.28 | I122: 88.52 | J122: 90.03 | K122: 87 | L122: 84.25 | M122: 0.98161
A123: 113 | B123: DEEPAKNTR | C123: 282.1 | D123: 280.77 | E123: 277.38 | F123: 272.67 | G123: 269.28 | H123: 285.48 | I123: 288.87 | J123: 293.58 | K123: 284.15 | L123: 276.05 | M123: 1.01458
A124: 114 | B124: DELTACORP | C124: 146.35 | D124: 146.82 | E124: 140.13 | F124: 133.92 | G124: 127.23 | H124: 153.03 | I124: 159.72 | J124: 165.93 | K124: 153.5 | L124: 140.6 | M124: 16.28203
A125: 115 | B125: DHFL | C125: 48.65 | D125: 48.98 | E125: 47.07 | F125: 45.48 | G125: 43.57 | H125: 50.57 | I125: 52.48 | J125: 54.07 | K125: 50.9 | L125: 47.4 | M125: 142.57476
A126: 116 | B126: DBL | C126: 413.2 | D126: 412.90 | E126: 406.60 | F126: 400.00 | G126: 393.70 | H126: 419.50 | I126: 425.80 | J126: 432.40 | K126: 419.2 | L126: 406.3 | M126: 1.39785
A127: 117 | B127: DISHTV | C127: 25.7 | D127: 26.13 | E127: 24.87 | F127: 24.03 | G127: 22.77 | H127: 26.97 | I127: 28.23 | J127: 29.07 | K127: 27.4 | L127: 25.3 | M127: 316.82563
A128: 118 | B128: DCAL | C128: 207.25 | D128: 207.22 | E128: 204.38 | F128: 201.52 | G128: 198.68 | H128: 210.08 | I128: 212.92 | J128: 215.78 | K128: 210.05 | L128: 204.35 | M128: 0.53086
A129: 119 | B129: DIVISLAB | C129: 1615.35 | D129: 1620.05 | E129: 1592.60 | F129: 1569.85 | G129: 1542.40 | H129: 1642.80 | I129: 1670.25 | J129: 1693.00 | K129: 1647.5 | L129: 1597.3 | M129: 4.7013
A130: 120 | B130: DIXON | C130: 1994.35 | D130: 2035.45 | E130: 1943.90 | F130: 1893.45 | G130: 1801.90 | H130: 2085.90 | I130: 2177.45 | J130: 2227.90 | K130: 2127 | L130: 1985 | M130: 0.05124
A131: 121 | B131: LALPATHLAB | C131: 1063.9 | D131: 1071.30 | E131: 1047.60 | F131: 1031.30 | G131: 1007.60 | H131: 1087.60 | I131: 1111.30 | J131: 1127.60 | K131: 1095 | L131: 1055 | M131: 0.98452
A132: 122 | B132: DRREDDY | C132: 2533.75 | D132: 2535.60 | E132: 2498.20 | F132: 2462.65 | G132: 2425.25 | H132: 2571.15 | I132: 2608.55 | J132: 2644.10 | K132: 2573 | L132: 2500.05 | M132: 9.76249
A133: 123 | B133: EIDPARRY | C133: 144.85 | D133: 144.90 | E133: 142.00 | F133: 139.15 | G133: 136.25 | H133: 147.75 | I133: 150.65 | J133: 153.50 | K133: 147.8 | L133: 142.05 | M133: 1.03236
A134: 124 | B134: EIHOTEL | C134: 157.15 | D134: 160.02 | E134: 152.68 | F134: 148.22 | G134: 140.88 | H134: 164.48 | I134: 171.82 | J134: 176.28 | K134: 167.35 | L134: 155.55 | M134: 0.73385
A135: 125 | B135: EDELWEISS | C135: 150.35 | D135: 148.22 | E135: 144.43 | F135: 138.52 | G135: 134.73 | H135: 154.13 | I135: 157.92 | J135: 163.83 | K135: 152 | L135: 142.3 | M135: 13.53774
A136: 126 | B136: EICHERMOT | C136: 16562.8 | D136: 16369.60 | E136: 15979.20 | F136: 15395.60 | G136: 15005.20 | H136: 16953.20 | I136: 17343.60 | J136: 17927.20 | K136: 16760 | L136: 15786 | M136: 2.56828
A137: 127 | B137: ELGIEQUIP | C137: 241.9 | D137: 244.37 | E137: 238.53 | F137: 235.17 | G137: 229.33 | H137: 247.73 | I137: 253.57 | J137: 256.93 | K137: 250.2 | L137: 241 | M137: 0.09344
A138: 128 | B138: EMAMILTD | C138: 317.5 | D138: 319.80 | E138: 313.80 | F138: 310.10 | G138: 304.10 | H138: 323.50 | I138: 329.50 | J138: 333.20 | K138: 325.8 | L138: 316.1 | M138: 13.34265
A139: 129 | B139: ENDURANCE | C139: 907.9 | D139: 899.90 | E139: 872.85 | F139: 837.80 | G139: 810.75 | H139: 934.95 | I139: 962.00 | J139: 997.05 | K139: 926.95 | L139: 864.85 | M139: 0.44473
A140: 130 | B140: ENGINERSIN | C140: 97.5 | D140: 98.07 | E140: 95.38 | F140: 93.27 | G140: 90.58 | H140: 100.18 | I140: 102.87 | J140: 104.98 | K140: 100.75 | L140: 95.95 | M140: 18.62276
A141: 131 | B141: EQUITAS | C141: 114.5 | D141: 114.00 | E141: 112.10 | F141: 109.70 | G141: 107.80 | H141: 116.40 | I141: 118.30 | J141: 120.70 | K141: 115.9 | L141: 111.6 | M141: 25.80466
A142: 132 | B142: ERIS | C142: 416.9 | D142: 410.48 | E142: 399.02 | F142: 381.13 | G142: 369.67 | H142: 428.37 | I142: 439.83 | J142: 457.72 | K142: 421.95 | L142: 392.6 | M142: 0.76421
A143: 133 | B143: ESCORTS | C143: 459.6 | D143: 459.52 | E143: 451.18 | F143: 442.77 | G143: 434.43 | H143: 467.93 | I143: 476.27 | J143: 484.68 | K143: 467.85 | L143: 451.1 | M143: 24.96272
A144: 134 | B144: ESSELPACK | C144: 132.8 | D144: 132.37 | E144: 131.58 | F144: 130.37 | G144: 129.58 | H144: 133.58 | I144: 134.37 | J144: 135.58 | K144: 133.15 | L144: 131.15 | M144: 4.11257
A145: 135 | B145: EXIDEIND | C145: 182.25 | D145: 182.60 | E145: 180.20 | F145: 178.15 | G145: 175.75 | H145: 184.65 | I145: 187.05 | J145: 189.10 | K145: 185 | L145: 180.55 | M145: 10.96843
A146: 136 | B146: FDC | C146: 154.9 | D146: 155.65 | E146: 153.40 | F146: 151.90 | G146: 149.65 | H146: 157.15 | I146: 159.40 | J146: 160.90 | K146: 157.9 | L146: 154.15 | M146: 0.23223
A147: 137 | B147: FEDERALBNK | C147: 89.5 | D147: 89.73 | E147: 87.52 | F147: 85.53 | G147: 83.32 | H147: 91.72 | I147: 93.93 | J147: 95.92 | K147: 91.95 | L147: 87.75 | M147: 132.54721
A148: 138 | B148: FINEORG | C148: 1400.2 | D148: 1407.92 | E148: 1381.93 | F148: 1363.67 | G148: 1337.68 | H148: 1426.18 | I148: 1452.17 | J148: 1470.43 | K148: 1433.9 | L148: 1389.65 | M148: 0.01763
A149: 139 | B149: FINCABLES | C149: 380.7 | D149: 377.80 | E149: 371.60 | F149: 362.50 | G149: 356.30 | H149: 386.90 | I149: 393.10 | J149: 402.20 | K149: 384 | L149: 368.7 | M149: 2.30663
A150: 140 | B150: FINPIPE | C150: 515.65 | D150: 519.55 | E150: 507.90 | F150: 500.15 | G150: 488.50 | H150: 527.30 | I150: 538.95 | J150: 546.70 | K150: 531.2 | L150: 511.8 | M150: 0.70032
A151: 141 | B151: FSL | C151: 49.4 | D151: 49.35 | E151: 48.70 | F151: 48.00 | G151: 47.35 | H151: 50.05 | I151: 50.70 | J151: 51.40 | K151: 50 | L151: 48.65 | M151: 10.01764
A152: 142 | B152: FORTIS | C152: 118.65 | D152: 119.50 | E152: 116.10 | F152: 113.55 | G152: 110.15 | H152: 122.05 | I152: 125.45 | J152: 128.00 | K152: 122.9 | L152: 116.95 | M152: 18.4161
A153: 143 | B153: FCONSUMER | C153: 28.25 | D153: 28.27 | E153: 27.73 | F153: 27.22 | G153: 26.68 | H153: 28.78 | I153: 29.32 | J153: 29.83 | K153: 28.8 | L153: 27.75 | M153: 8.81419
A154: 144 | B154: FLFL | C154: 441.7 | D154: 442.95 | E154: 434.30 | F154: 426.90 | G154: 418.25 | H154: 450.35 | I154: 459.00 | J154: 466.40 | K154: 451.6 | L154: 435.55 | M154: 0.46088
A155: 145 | B155: FRETAIL | C155: 412.3 | D155: 413.50 | E155: 406.80 | F155: 401.30 | G155: 394.60 | H155: 419.00 | I155: 425.70 | J155: 431.20 | K155: 420.2 | L155: 408 | M155: 4.58017
A156: 146 | B156: GAIL | C156: 128.6 | D156: 128.47 | E156: 125.83 | F156: 123.07 | G156: 120.43 | H156: 131.23 | I156: 133.87 | J156: 136.63 | K156: 131.1 | L156: 125.7 | M156: 106.39265
A157: 147 | B157: GEPIL | C157: 772.25 | D157: 771.33 | E157: 760.92 | F157: 749.58 | G157: 739.17 | H157: 782.67 | I157: 793.08 | J157: 804.42 | K157: 781.75 | L157: 760 | M157: 0.08279
A158: 148 | B158: GET&D | C158: 147 | D158: 149.42 | E158: 144.08 | F158: 141.17 | G158: 135.83 | H158: 152.33 | I158: 157.67 | J158: 160.58 | K158: 154.75 | L158: 146.5 | M158: 0.57711
A159: 149 | B159: GHCL | C159: 208.1 | D159: 206.40 | E159: 203.90 | F159: 199.70 | G159: 197.20 | H159: 210.60 | I159: 213.10 | J159: 217.30 | K159: 208.9 | L159: 202.2 | M159: 0.73307
A160: 150 | B160: GMRINFRA | C160: 15 | D160: 15.02 | E160: 14.78 | F160: 14.57 | G160: 14.33 | H160: 15.23 | I160: 15.47 | J160: 15.68 | K160: 15.25 | L160: 14.8 | M160: 254.65414
A161: 151 | B161: GALAXYSURF | C161: 1214.15 | D161: 1212.28 | E161: 1204.47 | F161: 1194.78 | G161: 1186.97 | H161: 1221.97 | I161: 1229.78 | J161: 1239.47 | K161: 1220.1 | L161: 1202.6 | M161: 0.02493
A162: 152 | B162: GDL | C162: 107.6 | D162: 108.05 | E162: 106.35 | F162: 105.10 | G162: 103.40 | H162: 109.30 | I162: 111.00 | J162: 112.25 | K162: 109.75 | L162: 106.8 | M162: 0.1586
A163: 153 | B163: GAYAPROJ | C163: 141.3 | D163: 140.95 | E163: 139.85 | F163: 138.40 | G163: 137.30 | H163: 142.40 | I163: 143.50 | J163: 144.95 | K163: 142.05 | L163: 139.5 | M163: 0.04653
A164: 154 | B164: GICRE | C164: 186.5 | D164: 187.52 | E164: 182.28 | F164: 178.07 | G164: 172.83 | H164: 191.73 | I164: 196.97 | J164: 201.18 | K164: 192.75 | L164: 183.3 | M164: 1.0828
A165: 155 | B165: GILLETTE | C165: 7149.4 | D165: 7145.80 | E165: 7092.60 | F165: 7035.80 | G165: 6982.60 | H165: 7202.60 | I165: 7255.80 | J165: 7312.60 | K165: 7199 | L165: 7089 | M165: 0.02678
A166: 156 | B166: GSKCONS | C166: 7378.6 | D166: 7379.50 | E166: 7299.10 | F166: 7219.60 | G166: 7139.20 | H166: 7459.00 | I166: 7539.40 | J166: 7618.90 | K166: 7459.9 | L166: 7300 | M166: 0.24848
A167: 157 | B167: GLAXO | C167: 1194.6 | D167: 1195.53 | E167: 1187.12 | F167: 1179.63 | G167: 1171.22 | H167: 1203.02 | I167: 1211.43 | J167: 1218.92 | K167: 1203.95 | L167: 1188.05 | M167: 0.16296
A168: 158 | B168: GLENMARK | C168: 423.2 | D168: 424.53 | E168: 416.07 | F168: 408.93 | G168: 400.47 | H168: 431.67 | I168: 440.13 | J168: 447.27 | K168: 433 | L168: 417.4 | M168: 7.97884
A169: 159 | B169: GODFRYPHLP | C169: 691.25 | D169: 691.67 | E169: 681.38 | F169: 671.52 | G169: 661.23 | H169: 701.53 | I169: 711.82 | J169: 721.68 | K169: 701.95 | L169: 681.8 | M169: 0.21048
A170: 160 | B170: GODREJAGRO | C170: 436.45 | D170: 438.00 | E170: 431.95 | F170: 427.45 | G170: 421.40 | H170: 442.50 | I170: 448.55 | J170: 453.05 | K170: 444.05 | L170: 433.5 | M170: 0.45703
A171: 161 | B171: GODREJCP | C171: 603.55 | D171: 606.72 | E171: 593.43 | F171: 583.32 | G171: 570.03 | H171: 616.83 | I171: 630.12 | J171: 640.23 | K171: 620 | L171: 596.6 | M171: 19.71966
A172: 162 | B172: GODREJIND | C172: 453.9 | D172: 455.32 | E172: 446.63 | F172: 439.37 | G172: 430.68 | H172: 462.58 | I172: 471.27 | J172: 478.53 | K172: 464 | L172: 448.05 | M172: 4.14461
A173: 163 | B173: GODREJPROP | C173: 941.6 | D173: 944.27 | E173: 931.53 | F173: 921.47 | G173: 908.73 | H173: 954.33 | I173: 967.07 | J173: 977.13 | K173: 957 | L173: 934.2 | M173: 2.01655
A174: 164 | B174: GRANULES | C174: 91.6 | D174: 91.43 | E174: 90.47 | F174: 89.33 | G174: 88.37 | H174: 92.57 | I174: 93.53 | J174: 94.67 | K174: 92.4 | L174: 90.3 | M174: 6.60106
A175: 165 | B175: GRAPHITE | C175: 308 | D175: 309.92 | E175: 300.08 | F175: 292.17 | G175: 282.33 | H175: 317.83 | I175: 327.67 | J175: 335.58 | K175: 319.75 | L175: 302 | M175: 15.21388
A176: 166 | B176: GRASIM | C176: 774.55 | D176: 773.97 | E176: 764.93 | F176: 755.32 | G176: 746.28 | H176: 783.58 | I176: 792.62 | J176: 802.23 | K176: 783 | L176: 764.35 | M176: 10.34634
A177: 167 | B177: GESHIP | C177: 236.2 | D177: 236.20 | E177: 233.60 | F177: 231.00 | G177: 228.40 | H177: 238.80 | I177: 241.40 | J177: 244.00 | K177: 238.8 | L177: 233.6 | M177: 0.22419
A178: 168 | B178: GREAVESCOT | C178: 127.8 | D178: 129.92 | E178: 125.18 | F178: 122.57 | G178: 117.83 | H178: 132.53 | I178: 137.27 | J178: 139.88 | K178: 134.65 | L178: 127.3 | M178: 1.35699
A179: 169 | B179: GRINDWELL | C179: 541.1 | D179: 542.97 | E179: 536.08 | F179: 531.07 | G179: 524.18 | H179: 547.98 | I179: 554.87 | J179: 559.88 | K179: 549.85 | L179: 537.95 | M179: 0.04368
A180: 170 | B180: GRUH | C180: 244.7 | D180: 245.00 | E180: 241.80 | F180: 238.90 | G180: 235.70 | H180: 247.90 | I180: 251.10 | J180: 254.00 | K180: 248.2 | L180: 242.1 | M180: 11.04968
A181: 171 | B181: GUJALKALI | C181: 415.5 | D181: 415.37 | E181: 411.23 | F181: 406.97 | G181: 402.83 | H181: 419.63 | I181: 423.77 | J181: 428.03 | K181: 419.5 | L181: 411.1 | M181: 0.16083
A182: 172 | B182: GUJFLUORO
A183: 173 | B183: GUJGASLTD | C183: 170.65 | D183: 172.43 | E183: 167.52 | F183: 164.38 | G183: 159.47 | H183: 175.57 | I183: 180.48 | J183: 183.62 | K183: 177.35 | L183: 169.3 | M183: 7.17145
A184: 174 | B184: GMDCLTD | C184: 69.15 | D184: 69.62 | E184: 68.28 | F184: 67.42 | G184: 66.08 | H184: 70.48 | I184: 71.82 | J184: 72.68 | K184: 70.95 | L184: 68.75 | M184: 0.91625
A185: 175 | B185: GNFC | C185: 207.65 | D185: 208.88 | E185: 203.77 | F185: 199.88 | G185: 194.77 | H185: 212.77 | I185: 217.88 | J185: 221.77 | K185: 214 | L185: 205 | M185: 1.51179
A186: 176 | B186: GPPL | C186: 78 | D186: 77.63 | E186: 76.87 | F186: 75.73 | G186: 74.97 | H186: 78.77 | I186: 79.53 | J186: 80.67 | K186: 78.4 | L186: 76.5 | M186: 2.97536
A187: 177 | B187: GSFC | C187: 79.8 | D187: 79.45 | E187: 78.50 | F187: 77.20 | G187: 76.25 | H187: 80.75 | I187: 81.70 | J187: 83.00 | K187: 80.4 | L187: 78.15 | M187: 2.97166
A188: 178 | B188: GSPL | C188: 211.1 | D188: 211.93 | E188: 207.12 | F188: 203.13 | G188: 198.32 | H188: 215.92 | I188: 220.73 | J188: 224.72 | K188: 216.75 | L188: 207.95 | M188: 4.67793
A189: 179 | B189: GULFOILLUB | C189: 766.6 | D189: 770.98 | E189: 752.07 | F189: 737.53 | G189: 718.62 | H189: 785.52 | I189: 804.43 | J189: 818.97 | K189: 789.9 | L189: 756.45 | M189: 0.0287
A190: 180 | B190: HEG | C190: 1006.05 | D190: 1001.02 | E190: 980.03 | F190: 954.02 | G190: 933.03 | H190: 1027.03 | I190: 1048.02 | J190: 1074.03 | K190: 1022 | L190: 975 | M190: 4.74306
A191: 181 | B191: HCLTECH | C191: 1021.55 | D191: 1026.37 | E191: 1010.28 | F191: 999.02 | G191: 982.93 | H191: 1037.63 | I191: 1053.72 | J191: 1064.98 | K191: 1042.45 | L191: 1015.1 | M191: 17.45006
A192: 182 | B192: HDFCAMC | C192: 2136.4 | D192: 2150.60 | E192: 2113.80 | F192: 2091.20 | G192: 2054.40 | H192: 2173.20 | I192: 2210.00 | J192: 2232.60 | K192: 2187.4 | L192: 2128 | M192: 3.03073
A193: 183 | B193: HDFCBANK | C193: 2221.8 | D193: 2219.60 | E193: 2199.20 | F193: 2176.60 | G193: 2156.20 | H193: 2242.20 | I193: 2262.60 | J193: 2285.20 | K193: 2240 | L193: 2197 | M193: 45.60419
A194: 184 | B194: HDFCLIFE | C194: 487.95 | D194: 490.35 | E194: 478.70 | F194: 469.45 | G194: 457.80 | H194: 499.60 | I194: 511.25 | J194: 520.50 | K194: 502 | L194: 481.1 | M194: 26.261
A195: 185 | B195: HATHWAY | C195: 19.3 | D195: 19.50 | E195: 18.60 | F195: 17.90 | G195: 17.00 | H195: 20.20 | I195: 21.10 | J195: 21.80 | K195: 20.4 | L195: 18.8 | M195: 0.94103
A196: 186 | B196: HATSUN | C196: 678.6 | D196: 679.18 | E196: 668.37 | F196: 658.13 | G196: 647.32 | H196: 689.42 | I196: 700.23 | J196: 710.47 | K196: 690 | L196: 668.95 | M196: 0.0564
A197: 187 | B197: HAVELLS | C197: 647.75 | D197: 646.70 | E197: 639.40 | F197: 631.05 | G197: 623.75 | H197: 655.05 | I197: 662.35 | J197: 670.70 | K197: 654 | L197: 638.35 | M197: 17.42201
A198: 188 | B198: HEIDELBERG | C198: 185.5 | D198: 188.17 | E198: 181.33 | F198: 177.17 | G198: 170.33 | H198: 192.33 | I198: 199.17 | J198: 203.33 | K198: 195 | L198: 184 | M198: 2.63109
A199: 189 | B199: HERITGFOOD | C199: 342.3 | D199: 340.75 | E199: 331.55 | F199: 320.80 | G199: 311.60 | H199: 351.50 | I199: 360.70 | J199: 371.45 | K199: 349.95 | L199: 330 | M199: 0.22804
A200: 190 | B200: HEROMOTOCO | C200: 2368.55 | D200: 2350.32 | E200: 2319.63 | F200: 2270.72 | G200: 2240.03 | H200: 2399.23 | I200: 2429.92 | J200: 2478.83 | K200: 2381 | L200: 2301.4 | M200: 9.68967
A201: 191 | B201: HEXAWARE | C201: 354.9 | D201: 357.57 | E201: 350.53 | F201: 346.17 | G201: 339.13 | H201: 361.93 | I201: 368.97 | J201: 373.33 | K201: 364.6 | L201: 353.2 | M201: 3.22026
A202: 192 | B202: HFCL | C202: 19.15 | D202: 19.30 | E202: 18.85 | F202: 18.55 | G202: 18.10 | H202: 19.60 | I202: 20.05 | J202: 20.35 | K202: 19.75 | L202: 19 | M202: 9.05756
A203: 193 | B203: HSCL | C203: 76 | D203: 78.07 | E203: 73.33 | F203: 70.67 | G203: 65.93 | H203: 80.73 | I203: 85.47 | J203: 88.13 | K203: 82.8 | L203: 75.4 | M203: 6.11877
A204: 194 | B204: HIMATSEIDE | C204: 127.95 | D204: 129.15 | E204: 123.85 | F204: 119.75 | G204: 114.45 | H204: 133.25 | I204: 138.55 | J204: 142.65 | K204: 134.45 | L204: 125.05 | M204: 0.82958
A205: 195 | B205: HINDALCO | C205: 182.75 | D205: 184.10 | E205: 178.95 | F205: 175.15 | G205: 170.00 | H205: 187.90 | I205: 193.05 | J205: 196.85 | K205: 189.25 | L205: 180.3 | M205: 118.80072
A206: 196 | B206: HAL | C206: 651.9 | D206: 653.68 | E206: 646.22 | F206: 640.53 | G206: 633.07 | H206: 659.37 | I206: 666.83 | J206: 672.52 | K206: 661.15 | L206: 648 | M206: 0.04369
... 320 more rows

Sheet Bulk Deals
E6: Back To Main Page
A7: Subject : | B7: BULK DEAL | D7: =Main!B10 -> 2019-08-02
A9: Date | B9: Scrip code | C9: Scrip Name | D9: Client Name | E9: Buy / Sell | F9: Quantity Traded | G9: Trade Price / Wt.Avg.trade price | H9: Exchange
A10: 2019-08-01 | B10: 541302 | C10: DHRUV | D10: SAAJAN SUBHASH RATHOD | E10: BUY | F10: 80,000 | G10: 24.90 | H10: BSE
A11: 2019-08-01 | B11: 541302 | C11: DHRUV | D11: AMKOR ENTERPRISES PRIVATE LIMITED | E11: SELL | F11: 80,000 | G11: 24.04 | H11: BSE
A12: 2019-08-01 | B12: 539225 | C12: JIYAECO | D12: RAHUL SHARMA | E12: BUY | F12: 162,216 | G12: 50.31 | H12: BSE
A13: 2019-08-01 | B13: 539225 | C13: JIYAECO | D13: RAHUL SHARMA | E13: SELL | F13: 162,216 | G13: 49.31 | H13: BSE
A14: 2019-08-01 | B14: 540952 | C14: LAL | D14: TANVI GUPTA | E14: BUY | F14: 250,000 | G14: 5.76 | H14: BSE
A15: 2019-08-01 | B15: 540952 | C15: LAL | D15: RISHU AGARWAL | E15: SELL | F15: 160,000 | G15: 5.76 | H15: BSE
A16: 2019-08-01 | B16: 540952 | C16: LAL | D16: R S SERVICES PRIVATE LIMITED | E16: SELL | F16: 90,000 | G16: 5.76 | H16: BSE
A17: 2019-08-01 | B17: 539814 | C17: RADHEY | D17: RAJESH SHANTILAL VAKHARIA | E17: BUY | F17: 22,000 | G17: 18.01 | H17: BSE
A18: 2019-08-01 | B18: 500390 | C18: RELINFRA | D18: TOWER RESEARCH CAPITAL MARKETS INDIA PRIVATE LIMITED | E18: BUY | F18: 1,319,622 | G18: 50.02 | H18: BSE
A19: 2019-08-01 | B19: 500390 | C19: RELINFRA | D19: TOWER RESEARCH CAPITAL MARKETS INDIA PRIVATE LIMITED | E19: SELL | F19: 1,319,622 | G19: 50.09 | H19: BSE
A20: 2019-08-01 | B20: 542383 | C20: RITCO | D20: VIPUL MOHAN PATEL | E20: SELL | F20: 123,200 | G20: 54.44 | H20: BSE
A21: 2019-08-01 | B21: 540786 | C21: SHARIKA | D21: BIPINKUMAR KHODIDAS NADIYA | E21: SELL | F21: 57,000 | G21: 35.10 | H21: BSE
A22: 2019-08-01 | B22: 540786 | C22: SHARIKA | D22: PRAYERNA KAUL | E22: BUY | F22: 57,000 | G22: 35.10 | H22: BSE
A23: 2019-08-01 | B23: 540738 | C23: STL | D23: GOODPOINT COMMODEAL PRIVATE LIMITED | E23: BUY | F23: 42,000 | G23: 148.22 | H23: BSE
A24: 2019-08-01 | B24: 540738 | C24: STL | D24: SAJANKUMAR RAMESHWARLAL BAJAJ | E24: SELL | F24: 49,000 | G24: 147.40 | H24: BSE
A25: 2019-08-01 | B25: 530045 | C25: TITANSEC | D25: AVB SHARES TRADING PRIVATE LIMITED | E25: SELL | F25: 146,675 | G25: 3.25 | H25: BSE
A26: 2019-08-01 | B26: 530045 | C26: TITANSEC | D26: MEGHA JAIN | E26: BUY | F26: 150,000 | G26: 3.25 | H26: BSE
A27: 2019-08-01 | B27: 516072 | C27: VISHNU | D27: PRAKASHCHAND | E27: SELL | F27: 59,798 | G27: 105 | H27: BSE
A28: 2019-08-01 | B28: 516072 | C28: VISHNU | D28: CHERUKURI KUTUMBA RAO | E28: BUY | F28: 60,000 | G28: 104.99 | H28: BSE
A29: 2019-08-01 | B29: BLISSGVS | C29: Bliss GVS Pharma Ltd | D29: SHAH SIDDHARTH CHIMANLAL | E29: BUY | F29: 600,000 | G29: 118.78 | H29: NSE
A30: 2019-08-01 | B30: DHFL | C30: Dewan Housing Fin Corp | D30: TOWER RESEARCH CAPITAL MARKETS INDIA PRIVATE LIMITED | E30: BUY | F30: 1,588,640 | G30: 49.46 | H30: NSE
A31: 2019-08-01 | B31: LAKSHVILAS | C31: Lakshmi Vilas Bank Ltd | D31: PROLIFIC FINVEST PRIVATE LIMITED | E31: BUY | F31: 2,000,000 | G31: 46.33 | H31: NSE
A32: 2019-08-01 | B32: RELCAPITAL | C32: Reliance Capital Limited | D32: TOWER RESEARCH CAPITAL MARKETS INDIA PRIVATE LIMITED | E32: BUY | F32: 4,547,520 | G32: 51.99 | H32: NSE
A33: 2019-08-01 | B33: RELCAPITAL | C33: Reliance Capital Limited | D33: CROSSLAND TRADING CO | E33: BUY | F33: 1,695,169 | G33: 51.67 | H33: NSE
A34: 2019-08-01 | B34: RELCAPITAL | C34: Reliance Capital Limited | D34: DIVYA PORTFOLIO PRIVATE LIMITED | E34: BUY | F34: 1,738,109 | G34: 51.81 | H34: NSE
A35: 2019-08-01 | B35: RELINFRA | C35: Reliance Infrastructu Ltd | D35: PURITY TRADEMAX LLP | E35: BUY | F35: 1,321,226 | G35: 50.14 | H35: NSE
A36: 2019-08-01 | B36: RELINFRA | C36: Reliance Infrastructu Ltd | D36: KBC EQUITY FUND | E36: BUY | F36: 3,417,129 | G36: 50.05 | H36: NSE
A37: 2019-08-01 | B37: RELINFRA | C37: Reliance Infrastructu Ltd | D37: TOWER RESEARCH CAPITAL MARKETS INDIA PRIVATE LIMITED | E37: BUY | F37: 4,283,806 | G37: 50.07 | H37: NSE
A38: 2019-08-01 | B38: RELINFRA | C38: Reliance Infrastructu Ltd | D38: CROSSLAND TRADING CO | E38: BUY | F38: 1,650,062 | G38: 50.28 | H38: NSE
A39: 2019-08-01 | B39: STAR | C39: Strides Pharma ScienceLtd | D39: R.B.A.FINANCE & INVT. CO | E39: BUY | F39: 610,700 | G39: 393.43 | H39: NSE
A40: 2019-08-01 | B40: UJJIVAN | C40: Ujjivan Fin. Servc. Ltd. | D40: TOWER RESEARCH CAPITAL MARKETS INDIA PRIVATE LIMITED | E40: BUY | F40: 655,163 | G40: 279.09 | H40: NSE
A41: 2019-08-01 | B41: UJJIVAN | C41: Ujjivan Fin. Servc. Ltd. | D41: CROSSLAND TRADING CO | E41: BUY | F41: 624,424 | G41: 278.76 | H41: NSE
A42: 2019-08-01 | B42: YESBANK | C42: Yes Bank Limited | D42: TOWER RESEARCH CAPITAL MARKETS INDIA PRIVATE LIMITED | E42: BUY | F42: 13,884,912 | G42: 88.86 | H42: NSE
A43: 2019-08-01 | B43: DHFL | C43: Dewan Housing Fin Corp | D43: TOWER RESEARCH CAPITAL MARKETS INDIA PRIVATE LIMITED | E43: SELL | F43: 1,588,640 | G43: 49.52 | H43: NSE
A44: 2019-08-01 | B44: LAKSHVILAS | C44: Lakshmi Vilas Bank Ltd | D44: ERISKA INVESTMENT FUND LTD | E44: SELL | F44: 2,000,000 | G44: 46.33 | H44: NSE
A45: 2019-08-01 | B45: RELCAPITAL | C45: Reliance Capital Limited | D45: DIVYA PORTFOLIO PRIVATE LIMITED | E45: SELL | F45: 1,688,109 | G45: 51.96 | H45: NSE
A46: 2019-08-01 | B46: RELCAPITAL | C46: Reliance Capital Limited | D46: CROSSLAND TRADING CO | E46: SELL | F46: 1664065 | G46: 51.7 | H46: NSE
A47: 2019-08-01 | B47: RELCAPITAL | C47: Reliance Capital Limited | D47: TOWER RESEARCH CAPITAL MARKETS INDIA PRIVATE LIMITED | E47: SELL | F47: 4547520 | G47: 52.05 | H47: NSE
A48: 2019-08-01 | B48: RELINFRA | C48: Reliance Infrastructu Ltd | D48: TOWER RESEARCH CAPITAL MARKETS INDIA PRIVATE LIMITED | E48: SELL | F48: 4283806 | G48: 50.06 | H48: NSE
A49: 2019-08-01 | B49: RELINFRA | C49: Reliance Infrastructu Ltd | D49: CROSSLAND TRADING CO | E49: SELL | F49: 1705232 | G49: 50.31 | H49: NSE
A50: 2019-08-01 | B50: RELINFRA | C50: Reliance Infrastructu Ltd | D50: PURITY TRADEMAX LLP | E50: SELL | F50: 1321226 | G50: 50.18 | H50: NSE
A51: 2019-08-01 | B51: UJJIVAN | C51: Ujjivan Fin. Servc. Ltd. | D51: TOWER RESEARCH CAPITAL MARKETS INDIA PRIVATE LIMITED | E51: SELL | F51: 655163 | G51: 278.7 | H51: NSE
A52: 2019-08-01 | B52: UJJIVAN | C52: Ujjivan Fin. Servc. Ltd. | D52: CROSSLAND TRADING CO | E52: SELL | F52: 582419 | G52: 278.46 | H52: NSE
A53: 2019-08-01 | B53: YESBANK | C53: Yes Bank Limited | D53: TOWER RESEARCH CAPITAL MARKETS INDIA PRIVATE LIMITED | E53: SELL | F53: 13884912 | G53: 88.92 | H53: NSE

Sheet Call Tracker (Equity & F&O)
M5: Back To Main Page
A6: Retail Research Technical Calls & Fundamental Performance Report for the month of August-2019
M7: =Main!B10 -> 2019-08-02
B8: Positional Call
A9: Sr.no | B9: Date | D9: Company | E9: Rec | F9: Rec Price | G9: Stop Loss*** | H9: Call Closed At | I9: Target | J9: Remark | K9: Profit / Loss per Share | L9: Gain / Loss % | M9: Status | N9: Closed Date | O9: NSE Closed Price
A10: 1 | B10: 2019-07-10 | D10: TCS | E10: Buy | F10: 2110 | G10: 1973 | H10: 2211 | I10: 2295-2345 | J10: Profit of Rs.101/- | K10: =H10-F10 -> 101 | L10: =K10/F10 -> 4.79% | M10: Successful | N10: 2019-08-01 | R10: H
A11: 2 | B11: 2019-07-12 | D11: LT | E11: Buy<> | F11: 1457 | G11: 1353 | H11: 1352.5 | I11: 1630-1680 | J11: Loss of Rs.104.50/- | K11: =H11-F11 -> -104.5 | L11: =K11/F11 -> -7.17% | M11: Unsuccessful | N11: 2019-08-01 | R11: H
A12: 3 | B12: 2019-07-17 | D12: BHARTIARTL | E12: Buy | F12: 347-349 | G12: 322 | I12: 392 -396 | J12: Open | O12: =VLOOKUP(D12,Sheet2!A14:M1653,6,0) -> 337.6 | R12: R
A13: 4 | B13: 2019-07-18 | D13: NAVINFLUOR | E13: Buy | F13: 612 | G13: 570 | H13: 635 | I13: 680 -700 | J13: Part Profit of Rs.23/- | K13: =H13-F13 -> 23 | L13: =K13/F13 -> 3.76% | M13: Successful | N13: 2019-08-01 | O13: =VLOOKUP(D13,Sheet2!A9:M1648,6,0) -> 622.8 | R13: H
A14: 5 | B14: 2019-07-19 | D14: ACC | E14: Buy | F14: 1620 | G14: 1518 | H14: 1515 | I14: 1750-1800 | J14: Loss of Rs.105/- | K14: -105 | L14: -6.48% | M14: Unsuccessful | N14: 2019-08-01 | R14: H
A15: 6 | B15: 2019-07-22 | D15: MOTHERSUMI | E15: Buy | F15: 109-111 | G15: 103 | I15: 121-123 | J15: Open | O15: =VLOOKUP(D15,Sheet2!A18:M1657,6,0) -> 106.75 | R15: R
A16: 7 | B16: 2019-07-26 | D16: M&M | E16: Buy | F16: 550-555 | G16: 530 | I16: 590-600 | J16: Open | O16: =VLOOKUP(D16,Sheet2!A19:M1658,6,0) -> 550 | R16: H
A17: 8 | B17: 2019-07-26 | D17: GLENMARK | E17: Buy | F17: 424-427 | G17: 395 | I17: 490-500 | J17: Open | O17: =VLOOKUP(D17,Sheet2!A20:M1659,6,0) -> 426.05 | R17: H
A18: 9 | B18: 2019-07-31 | D18: BANKBARODA | E18: Buy | F18: 105.50-107.50 | G18: 99 | I18: 120-122 | J18: Open | O18: =VLOOKUP(D18,Sheet2!A21:M1660,6,0) -> 106.7 | R18: H
A19: 10 | B19: 2019-08-01 | D19: WIPRO | E19: Sell | F19: 275-277 | G19: 292 | I19: 250-240 | J19: Open | O19: =VLOOKUP(D19,Sheet2!A22:M1661,6,0) -> 265.3 | R19: H
A20: 11 | B20: 2019-08-01 | D20: TATASTEEL | E20: Buy | F20: 427-430 | G20: 405 | I20: 470-475 | J20: Open | O20: =VLOOKUP(D20,Sheet2!A23:M1662,6,0) -> 432.05 | R20: R
A21: 12 | B21: 2019-08-01 | D21: FEDERALBNK | E21: Buy | F21: 90-91 | G21: 84.7 | I21: 101-103 | J21: Open | O21: =VLOOKUP(D21,Sheet2!A24:M1663,6,0) -> 92.4 | R21: R
A22: 13 | B22: 2019-08-01 | D22: HDFCBANK | E22: Buy | F22: 2205-2215 | G22: 2130 | I22: 2320-2370 | J22: Open | O22: =VLOOKUP(D22,Sheet2!A25:M1664,6,0) -> 2251.65 | R22: H
A28: CLBS = Closing Basis *** | F28: Reinitiated $
A29: Dividend adjusted <> | F29: Revised stoploss #
A30: Part book {}
B32: Momentum Call
A33: Sr.no | B33: Date | D33: Company | E33: Rec | F33: Rec Price | G33: Stop Loss | H33: Call Closed At | I33: Target | J33: Remark | K33: Profit / Loss per Share/Lot | L33: Gain / Loss % | M33: Gain / Loss per Lot | N33: Lot | O33: Status | P33: Closed Date
A34: 1 | B34: 2019-08-01 | D34: KOTAKBANK AUG FUT | E34: Buy | F34: 1497-1499 | G34: 1467 | I34: 1540-1550 | J34: Open | R34: N
A35: 2 | B35: 2019-08-01 | D35: COLPAL AUG FUT | E35: Buy | F35: 1179-1182 | G35: 1163 | I35: 1210 | J35: Open | R35: N
A36: 3
A37: 4
A38: 5
A39: 6
A40: 7
A41: 8
A42: 9
A46: CLBS = Closing Basis ***
A47: Dividend adjusted <> | F47: Reinitiated $
F48: Revised stoploss #
A50: Master Trade High Risk
A51: Sr.no | B51: Date | D51: Company | E51: Rec | F51: Rec Price | G51: Stop Loss | H51: Call Closed At | I51: Target | J51: Remark | K51: Profit / Loss per share | L51: Gain / Loss per Lot | M51: Lot | N51: Status | O51: Closed Date
A52: 1 | B52: 2019-08-01 | D52: NIFTY AUG FUT | E52: Buy | F52: 11075 | G52: 10945 | H52: 10945 | I52: 11350-11400 | J52: Loss of Rs.130/- | K52: =H52-F52 -> -130 | L52: =K52*M52 -> -9750 | M52: 75 | N52: Unsuccessful | O52: 2019-08-01 | R52: H
A61: Master Trade Medium Risk
A62: Sr.no | B62: Date | D62: Company | E62: Rec | F62: Rec Price | G62: Stop Loss | H62: Call Closed At | I62: Target | J62: Remark | K62: Profit/ Loss per lot | L62: Gain / Loss per Lot | M62: Lot | N62: Status | O62: Closed Date
A63: 1 | B63: 2019-07-29 | D63: NIFTY 01-AUG 11300 CE | E63: Buy | F63: 33 | H63: 0 | I63: 60-80 | J63: Loss of Rs.33/- | K63: =H63-F63 -> -33 | L63: =K63*M63 -> -2475 | M63: 75 | N63: Unsuccessful | O63: 2019-08-01 | R63: H
A83: Techno -Funda (positional)
A84: Sr.no | B84: Date | D84: Company | E84: Rec | F84: Rec Price | G84: Stop Loss*** | H84: Call Closed At | I84: Target | J84: Remark | K84: Profit / Loss per Share | L84: Gain / Loss % | M84: Status | N84: Closed Date | O84: NSE Closed Price
A89: CLBS = Closing Basis *** | F89: Reinitiated $
A90: Dividend adjusted <> | F90: Revised stoploss #
B95: Investment Idea
A96: Sr.no | B96: Date | D96: Company | E96: Rec | F96: Rec Price | G96: Point of Review | H96: Close Rate | I96: Target | J96: Remark | K96: Profit / Loss per Share | L96: Gain / Loss % | M96: Status | N96: Closed Date
A97: 1 | B97: 2013-11-01 | D97: L&T Finance Holding | E97: Accu | F97: 82.00 | G97: - | H97: 100 | I97: 100.00 | J97: Target Achieved | K97: =H97-F97 -> 18.00 | L97: =K97/F97 -> 21.95% | M97: Successful | N97: 2016-10-14
A98: 2 | B98: 2014-06-04 | D98: Finolex Inds | E98: Buy | F98: 257.00 | G98: - | H98: 300 | I98: 300.00 | J98: Target Achieved | K98: =H98-F98 -> 43.00 | L98: 16.73% | M98: Successful | N98: 2014-07-02
A99: 3 | B99: 2014-07-08 | D99: JK Cement | E99: Buy | F99: 393.00 | G99: - | H99: 468 | I99: 468.00 | J99: Target Achieved | K99: =H99-F99 -> 75.00 | L99: 19.08% | M99: Successful | N99: 2014-08-12
A100: 4 | B100: 2014-08-06 | D100: Finolex Cables | E100: Buy | F100: 205.00 | G100: - | H100: 275 | I100: 250.00 | J100: Target Achieved | K100: 70.00 | L100: 34.15% | M100: Successful | N100: 2014-11-19
A101: 5 | B101: 2014-09-04 | D101: Exide Inds | E101: Buy | F101: 162.00 | G101: - | H101: 190 | I101: 190.00 | J101: Target Achieved | K101: 28.00 | L101: 17.28% | M101: Successful | N101: 2015-01-02
A102: 6 | B102: 2014-09-04 | D102: Deepak Nitrite | E102: Buy | F102: 75.00 | G102: - | H102: 91.5 | I102: 95-100 | J102: Profit of Rs.16.50/- | K102: 16.50 | L102: 22.00% | M102: Successful | N102: 2014-11-11
A103: 7 | B103: 2014-10-01 | D103: Mercks | E103: Buy | F103: 850.00 | G103: - | H103: 982.5 | I103: 1050.00 | J103: Profit of Rs.132.50/- | K103: 132.50 | L103: 15.59% | M103: Successful | N103: 2015-02-04
A104: 8 | B104: 2014-10-01 | D104: Grindwell Norton | E104: Buy | F104: 475.00 | G104: - | H104: 515 | I104: 600.00 | J104: Profit of Rs.40/- | K104: 40.00 | L104: 8.42% | M104: Successful | N104: 2014-10-27
A105: 9 | B105: 2014-10-01 | D105: Snowman Logistics | E105: Buy | F105: 86.00 | G105: - | H105: 99 | I105: 140.00 | J105: Profit of Rs.13.00/- | K105: 13.00 | L105: 15.12% | M105: Successful | N105: 2014-10-27
A106: 10 | B106: 2014-10-14 | D106: Birla Corp | E106: Buy | F106: 496.60 | G106: - | H106: 621 | I106: 580.00 | J106: Target Achieved | K106: 124.40 | L106: 25.05% | M106: Successful | N106: 2016-08-23
A107: 11 | B107: 2014-10-14 | D107: Ultratech Cem | E107: Buy | F107: 2481.90 | G107: - | H107: 2840 | I107: 2870.00 | J107: Profit of Rs.358.10/- | K107: 358.10 | L107: 14.43% | M107: Successful | N107: 2015-01-13
A108: 12 | B108: 2014-10-16 | D108: Sintex Inds | E108: Buy | F108: 84.50 | G108: - | H108: 93 | I108: 110.00 | J108: Profit of Rs.8.50/- | K108: 8.50 | L108: 10.06% | M108: Successful | N108: 2014-10-27
A109: 13 | B109: 2014-10-16 | D109: HSIL | E109: Buy | F109: 401.00 | G109: - | H109: 428 | I109: 450.00 | J109: Profit of Rs.27.00/- | K109: 27.00 | L109: 6.73% | M109: Successful | N109: 2015-01-16
A110: 14 | B110: 2014-10-16 | D110: Eveready Inds | E110: Buy | F110: 101.00 | G110: - | H110: 112 | I110: 120.00 | J110: Profit of Rs.11.00/- | K110: 11.00 | L110: 10.89% | M110: Successful | N110: 2014-10-27
A111: 15 | B111: 2014-11-11 | D111: Pennar Inds | E111: Buy | F111: 59.00 | G111: - | H111: 76 | I111: 76.00 | J111: Target Achieved | K111: 17.00 | L111: 28.81% | M111: Successful | N111: 2017-10-24
A112: 16 | B112: 2014-11-11 | D112: Snowman Logistics | E112: Buy | F112: 99.00 | G112: - | H112: 120 | I112: 120.00 | J112: Profit of Rs.21/- | K112: 21.00 | L112: 21.21% | M112: Successful | N112: 2014-11-17
A113: 17 | B113: 2014-11-13 | D113: Dharamsi Morarji Chem | E113: Buy | F113: 22.00 | G113: - | H113: 33.55 | I113: 32.00 | J113: Profit of Rs 11.55/- | K113: 11.55 | L113: 52.50% | M113: Successful | N113: 2015-07-03
A114: 18 | B114: 2014-12-03 | D114: Tatachem | E114: Buy | F114: 440.00 | G114: - | H114: 520 | I114: 520.00 | J114: Profit of Rs 80.00/- | K114: 80.00 | L114: 18.18% | M114: Successful | N114: 2015-07-23
A115: 19 | B115: 2014-12-03 | D115: Advanta | E115: Buy | F115: 360.00 | G115: - | H115: 427 | I115: 425.00 | J115: Profit of Rs.67.00/- | K115: 67.00 | L115: 18.61% | M115: Successful | N115: 2015-02-23
A116: 20 | B116: 2015-01-08 | D116: GDL | E116: Buy | F116: 360.00 | G116: - | H116: 455 | I116: 420.00 | J116: Profit of Rs.95.00/- | K116: 95.00 | L116: 26.39% | M116: Successful | N116: 2015-01-20
A117: 21 | B117: 2015-01-08 | D117: NRB Bearing | E117: Buy | F117: 130.00 | H117: 175.5 | I117: 165.00 | J117: Profit of Rs 45.50/- | K117: 45.50 | L117: 35.00% | M117: Successful | N117: 2017-12-19
A118: 22 | B118: 2015-02-05 | D118: GSFC | E118: Accu | F118: 98.00 | H118: 120 | I118: 120.00 | J118: Target Achieved | K118: 22.00 | L118: 22.45% | M118: Successful | N118: 2017-01-18
A119: 23 | B119: 2015-02-05 | D119: Sundrmfast | E119: Accu | F119: 196.00 | H119: 262 | I119: 255.00 | J119: Target Achieved | K119: 66.00 | L119: 33.67% | M119: Successful | N119: 2016-08-17
A120: 24 | B120: 2015-03-04 | D120: GPPL | E120: Accu | F120: 235 | H120: 77.00 | I120: 280-285 | J120: Loss of Rs.158/- | K120: =H120-F120 -> -158.00 | L120: -67.23% | M120: Unsuccessful | N120: 2019-02-26
A121: 25 | B121: 2015-03-04 | D121: ORIENTCEM | E121: Accu | F121: 185.00 | H121: 224 | I121: 220-225 | J121: Target Achieved | K121: 39.00 | L121: =K121/F121 -> 21.08% | M121: Successful | N121: 2016-10-04
A122: 26 | B122: 2015-03-27 | D122: PFS | E122: Accu | F122: 49.5 | H122: 15.85 | I122: 67.00 | J122: Loss of Rs.33.65/- | K122: =H122-F122 -> -33.65 | L122: =K122/F122 -> -68% | M122: Unsuccessful | N122: 2019-06-11
A123: 27 | B123: 2015-03-30 | D123: Walchandnagar Ind Ltd | E123: Accu | F123: 183.50 | H123: 219 | I123: 218.00 | J123: Profit of Rs.35.50/- | K123: 35.50 | L123: =K123/F123 -> 19.35% | M123: Successful | N123: 2015-04-09
A124: 28 | B124: 2015-04-20 | D124: Kalpataru Power Transmission Ltd | E124: Accu | F124: =(227+237)/2 -> 232.00 | H124: 298 | I124: 298.00 | J124: Target Achieved | K124: 66.00 | L124: 28.45% | M124: Successful | N124: 2017-03-29
A125: 29 | B125: 2015-05-04 | D125: Mastek Ltd | E125: Buy | F125: 385.00 | H125: =212.5+331 -> 543.5 | I125: 510.00 | J125: Profit of Rs 158.50/- | K125: 158.50 | L125: 41.17% | M125: Successful | N125: 2015-08-19
A126: 30 | B126: 2015-05-04 | D126: Suprajit Eng | E126: Buy | F126: 115.50 | H126: 146 | I126: 142.00 | J126: Profit of Rs 30.50/- | K126: 30.50 | L126: 26.41% | M126: Successful | N126: 2015-07-17
A127: 31 | B127: 2015-05-27 | D127: TCI | E127: Buy | F127: 237.50 | H127: 279.5 | I127: 278.00 | J127: Target Achieved | K127: 42.00 | L127: 17.68% | M127: Successful | N127: 2015-08-06
A128: 32 | B128: 2015-06-19 | D128: HSIL | E128: Accu | F128: 340.00 | H128: 448 | I128: 448.00 | J128: Target Achieved | K128: 108.00 | L128: 31.76% | M128: Successful | N128: 2017-10-10
A129: 33 | B129: 2015-07-06 | D129: Capital First | E129: Accu | F129: 390.00 | H129: 460 | I129: 460.00 | J129: Target Achieved | K129: 70.00 | L129: 17.95% | M129: Successful | N129: 2016-04-18
A130: 34 | B130: 2015-07-10 | D130: Dolphin OffShore | E130: Accu | F130: 122.5 | H130: 61.00 | I130: 172.00 | J130: Loss of Rs.61.50/- | K130: -61.50 | L130: -50.20% | M130: Unsuccessful | N130: 2018-08-21
A131: 35 | B131: 2015-08-03 | D131: Allcargo logistics | E131: Accu | F131: 297.50 | H131: 350 | I131: 360.00 | J131: Profit of Rs 52.50/- | K131: 52.50 | L131: 17.65% | M131: Successful | N131: 2015-08-16
A132: 36 | B132: 2015-08-03 | D132: Camline Fine | E132: Accu | F132: 115.50 | H132: 149 | I132: 140.00 | J132: Profit of Rs 33.50/- | K132: 33.50 | L132: 29.00% | M132: Successful | N132: 2017-01-05
A133: 37 | B133: 2015-09-04 | D133: TCI | E133: Accu | F133: 226.00 | H133: 292 | I133: 292.00 | J133: Target Achieved | K133: 66.00 | L133: 29.20% | M133: Successful | N133: 2015-10-09
A134: 38 | B134: 2015-09-07 | D134: Kalpataru Power Transmission Ltd | E134: Accu | F134: 232.50 | H134: 312.5 | I134: 310.00 | J134: Target Achieved | K134: 80.00 | L134: 34.41% | M134: Successful | N134: 2017-03-29
A135: 39 | B135: 2015-09-21 | D135: LLOYD ELECTRIC & ENG LTD | E135: Accu | F135: 196.50 | H135: 238 | I135: 238.00 | J135: Target Achieved | K135: 41.50 | L135: 21.12% | M135: Successful | N135: 2015-10-14
A136: 40 | B136: 2015-09-24 | D136: L&T Finance Holding | E136: Accu | F136: 65.00 | H136: 82 | I136: 82.00 | J136: Target Achieved | K136: 17.00 | L136: 26.15% | M136: Successful | N136: 2016-07-27
A137: 41 | B137: 2015-10-14 | D137: KEC International ltd | E137: Accu | F137: 144.00 | H137: 182.5 | I137: 181.00 | J137: Target Achieved | K137: 38.50 | L137: 26.74% | M137: Successful | N137: 2017-03-23
A138: 42 | B138: 2015-10-14 | D138: Gruh Finance | E138: Accu | F138: 264.00 | H138: 311 | I138: 311.00 | J138: Target Achieved | K138: 47.00 | L138: 17.80% | M138: Successful | N138: 2016-08-22
A139: 43 | B139: 2015-11-10 | D139: Pidilitind | E139: Buy | F139: 549.50 | H139: 630 | I139: 630.00 | J139: Target Achieved | K139: 80.50 | L139: 14.65% | M139: Successful | N139: 2016-02-19
A140: 44 | B140: 2015-12-04 | D140: Zensar Technology | E140: Accu | F140: 1027.50 | H140: 1315 | I140: 1250.00 | J140: Target Achieved | K140: =H140-F140 -> 287.50 | L140: 27.98% | M140: Successful | N140: 2018-05-24
A141: 45 | B141: 2015-12-29 | D141: Vinati Organics Ltd | E141: Accu | F141: 465.00 | H141: 540 | I141: 540.00 | J141: Target Achieved | K141: 75.00 | L141: 16.13% | M141: Successful | N141: 2016-06-09
A142: 46 | B142: 2016-01-11 | D142: GSFC | E142: Buy | F142: 81.00 | H142: 110 | I142: 110.00 | J142: Target Achieved | K142: 29.00 | L142: 35.80% | M142: Successful | N142: 2017-01-10
A143: 47 | B143: 2016-01-13 | D143: SSWL | E143: Buy | F143: 417.50 | H143: 547 | I143: 535.00 | J143: Target Achieved | K143: 129.50 | L143: 31.02% | M143: Successful | N143: 2016-07-27
A144: 48 | B144: 2016-02-08 | D144: Persistent System Ltd | E144: Accu | F144: 650.00 | H144: 800 | I144: 800.00 | J144: Target Achieved | K144: 150.00 | L144: 23.08% | M144: Successful | N144: 2018-02-23
A145: 49 | B145: 2016-03-04 | D145: UPL | E145: Accu | F145: 437.50 | H145: 504.5 | I145: 522.00 | J145: Profit of Rs.67/- | K145: 67.00 | L145: 15.31% | M145: Successful | N145: 2016-04-20
A146: 50 | B146: 2016-03-09 | D146: Ashoka Buildcon Ltd | E146: Accu | F146: 189.50 | H146: 218 | I146: 218.00 | J146: Target Achieved | K146: 28.50 | L146: 15.04% | M146: Successful | N146: 2017-10-26
A147: 51 | B147: 2016-04-11 | D147: PTC INDIA FIN SERV LTD | E147: Accu | F147: 36.5 | H147: 15.85 | I147: 60.00 | J147: Loss of Rs.20.65/- | K147: -20.65 | L147: -56.58% | M147: Unsuccessful | N147: 2019-06-11
A148: 52 | B148: 2016-04-12 | D148: CAMLINFINE $ | E148: Accu | F148: 93.00 | H148: 149 | I148: 140.00 | J148: Profit of Rs 56/- | K148: 56.00 | L148: 60.22% | M148: Successful | N148: 2017-01-05
A149: 53 | B149: 2016-04-12 | D149: Greaves Cotton Ltd. | E149: Accu | F149: 130.00 | H149: 150 | I149: 150-155 | J149: Target Achieved | K149: 20.00 | L149: 15.38% | M149: Successful | N149: 2016-07-13
A150: 54 | B150: 2016-05-02 | D150: KEC International ltd $ | E150: Accu | F150: 127.50 | H150: 148 | I150: 148-150 | J150: Target Achieved | K150: 20.50 | L150: 16.08% | M150: Successful | N150: 2016-07-13
A151: 55 | B151: 2016-05-03 | D151: Mindtree | E151: Accu | F151: 675.00 | H151: 815 | I151: 790-800 | J151: Target Achieved | K151: 140.00 | L151: 20.74% | M151: Successful | N151: 2018-02-23
A152: 56 | B152: 2016-06-06 | D152: TRITURBINE | E152: Accu | F152: 110.00 | H152: 126.5 | I152: 125.00 | J152: Profit of Rs.16.50/- | K152: 16.50 | L152: 15.00% | M152: Successful | N152: 2016-07-01
A153: 57 | B153: 2016-06-17 | D153: Pennar Industries Ltd | E153: Accu | F153: 44.00 | H153: 69.5 | I153: 69.50 | J153: Profit of Rs.25.50/- | K153: 25.50 | L153: 57.95% | M153: Successful | N153: 2017-08-30
A154: 58 | B154: 2016-07-05 | D154: Bajaj Corp Ltd | E154: Accu | F154: 395 | H154: =(468.5+342.5)/2 -> 405.50 | I154: 510.00 | J154: Profit of Rs.10.50/- | K154: 10.50 | L154: 3% | M154: Neutral | N154: 2019-05-21
A155: 59 | B155: 2016-08-02 | D155: GPPL $ | E155: Buy | F155: 169.5 | H155: 77.00 | I155: 198-200 | J155: Loss of Rs.92.5/- | K155: -92.50 | L155: -54.57% | M155: Unsuccessful | N155: 2019-02-26
A156: 60 | B156: 2016-08-04 | D156: WONDERLA HOLIDAYS LTD | E156: Accu | F156: 400 | H156: 305.00 | I156: 475.00 | J156: Loss of Rs.95/- | K156: -95.00 | L156: -23.75% | M156: Unsuccessful | N156: 2019-05-21
A157: 61 | B157: 2016-08-11 | D157: CAMLINFINE | E157: Accu | F157: 86.50 | H157: 130 | I157: 130.00 | J157: Profit of Rs.43.50/- | K157: 43.50 | L157: 50.29% | M157: Successful | N157: 2017-12-22
A158: 62 | B158: 2016-08-18 | D158: GRANULES | E158: Accu | F158: 133.5 | H158: 126.50 | I158: 178.00 | J158: Exit | K158: -7.00 | L158: -5.24% | M158: Unsuccessful | N158: 2016-09-02
A159: 63 | B159: 2016-08-31 | D159: VA TECH WABAG | E159: Accu | F159: 560.00 | H159: 725 | I159: 725.00 | J159: Target Achieved | K159: 165.00 | L159: 29.46% | M159: Successful | N159: 2016-03-27
A160: 64 | B160: 2016-09-01 | D160: SKIPPER LIMITED | E160: Accu | F160: 160.50 | H160: 210 | I160: 210.00 | J160: Target Achieved | K160: 49.50 | L160: 30.84% | M160: Successful | N160: 2017-05-16
A161: 65 | B161: 2016-10-14 | D161: ASIANTILES | E161: Accu | F161: 280.00 | H161: 345 | I161: 345.00 | J161: Target Achieved | K161: 65.00 | L161: 23.21% | M161: Successful | N161: 2017-03-20
A162: 66 | B162: 2016-10-14 | D162: DEEPIND | E162: Accu | F162: 245.00 | H162: 325.5 | I162: 330.00 | J162: Profit of Rs.80.5/- | K162: 80.50 | L162: 32.86% | M162: Successful | N162: 2017-02-03
A163: 67 | B163: 2016-10-17 | D163: DCBBANK | E163: Accu | F163: 125.00 | H163: 160 | I163: 160.00 | J163: Target Achieved | K163: =H163-F163 -> 35.00 | L163: 28.00% | M163: Successful | N163: 2017-03-09
A164: 68 | B164: 2016-10-17 | D164: ORIENTREF | E164: Accu | F164: 114.00 | H164: 145 | I164: 145.00 | J164: Target Achieved | K164: 31.00 | L164: =K164/F164 -> 27.19% | M164: Successful | N164: 2017-05-04
A165: 69 | B165: 2016-10-17 | D165: GANECOS | E165: Accu | F165: 212.00 | H165: 280 | I165: 276.00 | J165: Profit of Rs.68/- | K165: 68.00 | L165: =K165/F165 -> 32.08% | M165: Successful | N165: 2017-05-03
A166: 70 | B166: 2016-11-04 | D166: NBCC | E166: Accu | F166: 155.00 | H166: 210 | I166: 210.00 | J166: Profit of Rs.55/- | K166: 55.00 | L166: =K166/F166 -> 35.48% | M166: Successful | N166: 2017-07-28
A167: 71 | B167: 2016-12-08 | D167: INFRATEL | E167: Accu | F167: 380.00 | H167: 478 | I167: 468.00 | J167: Target Achieved | K167: 98.00 | L167: =K167/F167 -> 25.79% | M167: Successful | N167: 2017-10-17
A168: 72 | B168: 2016-12-30 | D168: GODREJPROP | E168: Accu | F168: 305.00 | H168: 375 | I168: 375.00 | J168: Target Achieved | K168: 70.00 | L168: 22.95% | M168: Successful | N168: 2017-02-02
A169: 73 | B169: 2017-01-04 | D169: DEEPAKNTR | E169: Accu | F169: 99.50 | H169: 158 | I169: 158.00 | J169: Target Achieved | K169: 58.50 | L169: 58.79% | M169: Successful | N169: 2017-06-12
A170: 74 | B170: 2017-02-20 | D170: RECLTD | E170: Accu | F170: 140.50 | H170: 220 | I170: 220.00 | J170: Target Achieved | K170: 79.50 | L170: 56.58% | M170: Successful | N170: 2017-05-09
A171: 75 | B171: 2017-03-24 | D171: VRLLOG | E171: Accu | F171: 300.50 | H171: 417.5 | I171: 420.00 | J171: Profit of Rs.117/- | K171: 117.00 | L171: 38.94% | M171: Successful | N171: 2017-12-01
A172: 76 | B172: 2017-04-05 | D172: RATNAMANI | E172: Accu | F172: 785.00 | H172: 930 | I172: 920.00 | J172: Profit of Rs.145/- | K172: 145.00 | L172: 18.47% | M172: Successful | N172: 2017-08-29
A173: 77 | B173: 2017-04-12 | D173: DABUR | E173: Accu | F173: 289.50 | H173: 354 | I173: 360.00 | J173: Profit of Rs.64.5/- | K173: 64.50 | L173: =K173/F173 -> 22.28% | M173: Successful | N173: 2017-11-01
A174: 78 | B174: 2017-04-20 | D174: KPRMILL | E174: Accu | F174: 700.00 | H174: 840 | I174: 840.00 | J174: Profit of Rs.140/- | K174: 140.00 | L174: =K174/F174 -> 20.00% | M174: Successful | N174: 2017-06-07
A175: 79 | B175: 2017-05-22 | D175: GREAVESCOT | E175: Accu | F175: 153-158 | I175: 190.00 | J175: Open
A176: 80 | B176: 2017-06-01 | D176: ESSELPACK | E176: Accu | F176: 130.00 | H176: 144.25 | I176: 170.00 | J176: Profit of Rs.14.25/- | K176: =H176-F176 -> 14.25 | L176: =K176/F176 -> 10.96% | M176: Successful | N176: 2019-07-29
A177: 81 | B177: 2017-06-15 | D177: KEI | E177: Accu | F177: 214.50 | H177: 262 | I177: 262.00 | J177: Profit of Rs.47.5/- | K177: =H177-F177 -> 47.50 | L177: 22.14% | M177: Successful | N177: 2017-08-30
A178: 82 | B178: 2017-07-17 | D178: MAYURUNIQ | E178: Accu | F178: 370.00 | H178: 447.5 | I178: 450.00 | J178: Target Achieved | K178: 77.50 | L178: 20.95% | M178: Successful | N178: 2017-10-27
A179: 83 | B179: 2017-07-27 | D179: RAMCOCEM | E179: Accu | F179: 657.50 | H179: 825 | I179: 820.00 | J179: Target Achieved | K179: 167.50 | L179: 25.48% | M179: Successful | N179: 2017-12-21
A180: 84 | B180: 2017-08-17 | D180: FINPIPE | E180: Accu | F180: 605.00 | H180: 750 | I180: 750.00 | J180: Profit of Rs.145/- | K180: 145.00 | L180: 23.97% | M180: Successful | N180: 2017-10-19
A181: 85 | B181: 2017-09-01 | D181: SHK | E181: Accu | F181: 255 | H181: 217.25 | I181: 320.00 | J181: Loss of Rs.37.75/- | K181: -37.75 | L181: -15% | M181: Unsuccessful | N181: 2019-07-15
A182: 86 | B182: 2017-09-19 | D182: SKIPPER | E182: Accu | F182: 215.00 | H182: 258 | I182: 258.00 | J182: Target Achieved | K182: 43.00 | L182: 20.00% | M182: Successful | N182: 2017-11-01
A183: 87 | B183: 2017-09-20 | D183: CAMLINFINE | E183: Accu | F183: 75.00 | H183: 90 | I183: 90.00 | J183: Profit of Rs.15.00/- | K183: 15.00 | L183: 20.00% | M183: Successful | N183: 2017-10-11
A184: 88 | B184: 2017-10-03 | D184: GNA | E184: Accu | F184: 315.00 | H184: 392 | I184: 384.00 | J184: Profit of Rs.77/- | K184: 77.00 | L184: 24.44% | M184: Successful | N184: 2017-10-09
A185: 89 | B185: 2017-10-05 | D185: NOCIL | E185: Accu | F185: 145.00 | H185: 179 | I185: 180.00 | J185: Profit of Rs.34/- | K185: 34.00 | L185: 23.45% | M185: Successful | N185: 2017-10-17
A186: 90 | B186: 2017-10-06 | D186: CENTURYPLY | E186: Accu | F186: 256.00 | H186: 323 | I186: 320.00 | J186: Target Achieved | K186: 67.00 | L186: 26.17% | M186: Successful | N186: 2017-11-28
A187: 91 | B187: 2017-10-09 | D187: RECLTD | E187: Accu | F187: 152.5 | H187: 183.50 | I187: 210.00 | J187: Part Profit of Rs.31/- | K187: 31.00 | L187: 20% | M187: Successful | N187: 2017-11-03
A188: 92 | B188: 2017-10-09 | D188: EIHOTEL | E188: Accu | F188: 137.50 | H188: 184 | I188: 183.00 | J188: Profit of Rs.46.5/- | K188: 46.50 | L188: 33.82% | M188: Successful | N188: 2018-01-08
A189: 93 | B189: 2017-10-10 | D189: NRBBEARING | E189: Accu | F189: 125.50 | H189: 158 | I189: 155.00 | J189: Profit of Rs.32.5/- | K189: 32.50 | L189: 25.90% | M189: Successful | N189: 2017-11-28
A190: 94 | B190: 2017-11-07 | D190: HATSUN | E190: Accu | F190: 740.00 | H190: 892.5 | I190: 900.00 | J190: Profit of Rs.152.5/- | K190: 152.50 | L190: 20.61% | M190: Successful | N190: 2017-11-13
A191: 95 | B191: 2017-12-04 | D191: SANGHIIND | E191: Accu | F191: 118.50 | H191: 143.5 | I191: 145.00 | J191: Profit of Rs.25/- | K191: 25.00 | L191: 21.10% | M191: Successful | N191: 2017-12-28
A192: 96 | B192: 2017-12-05 | D192: ALLCARGO | E192: Accu | F192: 177.5 | H192: 215.00 | I192: 230.00 | J192: Part Profit of Rs.37.5/- | K192: 37.50 | L192: 21% | M192: Successful | N192: 2017-12-27
A193: 97 | B193: 2017-12-21 | D193: KAJARIACER | E193: Accu | F193: 715 | H193: 500.00 | I193: 872.00 | J193: Loss of Rs.215/- | K193: =H193-F193 -> -215.00 | L193: =K193/F193 -> -30.07% | M193: Unsuccessful | N193: 2019-07-24
A194: 98 | B194: 2018-02-07 | D194: GREAVESCOT | E194: Accu | F194: 130-132 | I194: 190.00 | J194: Open
A195: 99 | B195: 2018-02-27 | D195: MOLDTKPAC | E195: Accu | F195: 320-330 | I195: 398.00 | J195: Open
A196: 100 | B196: 2018-03-05 | D196: LICHSGFIN | E196: Accu | F196: 505-515 | I196: 672.00 | J196: Open
A197: 101 | B197: 2018-04-02 | D197: EVERESTIND | E197: Accu | F197: 492.5 | H197: 589.00 | I197: 613.00 | J197: Part Profit of Rs.37.5/- | K197: =H197-F197 -> 96.50 | L197: =K197/F197 -> 20% | M197: Successful | N197: 2018-08-21
A198: 102 | B198: 2018-04-04 | D198: GPPL | E198: Accu | F198: 141.5 | H198: 77.00 | I198: 180.00 | J198: Loss of Rs.64.5/- | K198: =H198-F198 -> -64.50 | L198: =K198/F198 -> -45.58% | M198: Unsuccessful | N198: 2019-02-26
A199: 103 | B199: 2018-04-19 | D199: MANPASAND | E199: Accu | F199: 430 | H199: 220.00 | I199: 537.00 | J199: Loss of Rs.210/- | K199: =H199-F199 -> -210.00 | L199: =K199/F199 -> -48.84% | M199: Unsuccessful | N199: 2018-06-01
A200: 104 | B200: 2018-04-30 | D200: HEIDELBERG | E200: Accu | F200: 156 | H200: 196.00 | I200: 196.00 | J200: Profit of Rs.40/- | K200: =H200-F200 -> 40.00 | L200: =K200/F200 -> 26% | M200: Successful | N200: 2019-05-20
A201: 105 | B201: 2018-06-07 | D201: KEC | E201: Accu | F201: 340-345 | I201: 439.00 | J201: Open
A202: 106 | B202: 2018-07-04 | D202: ASHOKLEY | E202: Accu | F202: 125-130 | I202: 170.00 | J202: Open
A203: 107 | B203: 2018-08-06 | D203: GABRIEL | E203: Accu | F203: 150.00 | H203: 102 | I203: 182.00 | J203: Loss of Rs.48 /- | K203: =H203-F203 -> -48.00 | L203: =K203/F203 -> -32.00% | M203: Unsuccessful | N203: 2019-07-15
A204: 108 | B204: 2018-08-29 | D204: GRINDWELL | E204: Accu | F204: 525.00 | H204: 585 | I204: 635.00 | J204: Profit of Rs.60- | K204: =H204-F204 -> 60.00 | L204: =K204/F204 -> 11.43% | N204: 2019-07-16
A205: 109 | B205: 2018-10-22 | D205: FINPIPE | E205: Accu | F205: 475.00 | H205: 574 | I205: 570.00 | J205: Target Achieved | K205: =H205-F205 -> 99.00 | L205: =K205/F205 -> 20.84% | M205: Successful | N205: 2018-10-30
A206: 110 | B206: 2018-10-23 | D206: JKPAPER | E206: Accu | F206: 158-162 | I206: 191.00 | J206: Open
A207: 111 | B207: 2018-10-24 | D207: GULFOILLUB | E207: Accu | F207: 707.50 | H207: 872 | I207: 872.00 | J207: Target Achieved | K207: =H207-F207 -> 164.50 | L207: =K207/F207 -> 23.25% | M207: Successful | N207: 2019-01-17
A208: 112 | B208: 2018-10-25 | D208: GODREJCP | E208: Accu | F208: 707.5 | H208: 850.00 | I208: 890.00 | J208: Part Profit of Rs.142.5/- | K208: =H208-F208 -> 142.50 | L208: =K208/F208 -> 20% | M208: Successful | N208: 2018-12-19
A209: 113 | B209: 2018-10-25 | D209: DBCORP | E209: Accu | F209: 164.00 | H209: 204 | I209: 209.00 | J209: Profit of Rs.40/- | K209: =H209-F209 -> 40.00 | L209: =K209/F209 -> 24.39% | M209: Successful | N209: 2019-03-15
A210: 114 | B210: 2018-10-26 | D210: RITES | E210: Accu | F210: 240.00 | H210: 297 | I210: 297.00 | J210: Target Achieved | K210: =H210-F210 -> 57.00 | L210: =K210/F210 -> 23.75% | M210: Successful | N210: 2018-11-13
A211: 115 | B211: 2018-12-05 | D211: CCL | E211: Accu | F211: 260-270 | I211: 321.00 | J211: Open
A212: 116 | B212: 2018-12-05 | D212: BRIGADE | E212: Accu | F212: 202.50 | H212: 255 | I212: 252.00 | J212: Target Achieved | K212: =H212-F212 -> 52.50 | L212: =K212/F212 -> 25.93% | M212: Successful | N212: 2019-03-18
A213: 117 | B213: 2018-12-31 | D213: JKCEMENT | E213: Accu | F213: 710.00 | H213: 866 | I213: 866.00 | J213: Target Achieved | K213: =H213-F213 -> 156.00 | L213: =K213/F213 -> 21.97% | M213: Successful | N213: 2019-03-29
A214: 118 | B214: 2019-01-04 | D214: MGL | E214: Accu | F214: 890-900 | I214: 1185.00 | J214: Open
A215: 119 | B215: 2019-02-26 | D215: MARICO | E215: Accu | F215: 335-345 | I215: 411.00 | J215: Open
A216: 120 | B216: 2019-04-04 | D216: ITDCEM | E216: Accu | F216: 128-132 | I216: 158.00 | J216: Open
A217: 121 | B217: 2019-04-04 | D217: COCHINSHIP | E217: Accu | F217: 384-390 | I217: 490.00 | J217: Open
F221: Reinitiated $
B223: Instituitonal Investment Idea
A224: Sr.no | B224: Date | D224: Company | E224: Rec | F224: Rec Price | G224: Point of Review | H224: Close Rate | I224: Target | J224: Remark | K224: Profit / Loss per Share | L224: Gain / Loss % | M224: Status | N224: Closed Date
A225: 1 | B225: 2016-04-13 | D225: DHFL | E225: Accu | F225: 196.00 | H225: 299 | I225: 299.00 | J225: Target Achieved | K225: 103.00 | L225: 52.55% | M225: Successful | N225: 2016-09-07
A226: 2 | B226: 2016-04-13 | D226: Magma | E226: Accu | F226: 88.00 | H226: 103 | I226: 103.00 | J226: Target Achieved | K226: 15.00 | L226: 17.05% | M226: Successful | N226: 2016-06-09
A227: 3 | B227: 2016-06-01 | D227: Atulauto | E227: Accu | F227: 495-505 | I227: 565-570 | J227: Open
A228: 4 | B228: 2016-06-28 | D228: EVEREADY | E228: Accu | F228: 262.50 | H228: 340 | I228: 333.00 | J228: Profit of Rs.77.50/- | K228: 77.50 | L228: 29.52% | M228: Successful | N228: 2017-10-09
A229: 5 | B229: 2016-06-28 | D229: FIEMIND | E229: Accu | F229: 840.00 | H229: 1230 | I229: 1230.00 | J229: Target Achieved | K229: 390.00 | L229: 46.43% | M229: Successful | N229: 2016-10-06
A230: 6 | B230: 2016-10-03 | D230: IFBIND | E230: Accu | F230: 430.00 | H230: 596 | I230: 575.00 | J230: Profit of Rs.166/- | K230: 166.00 | L230: 38.60% | M230: Successful | N230: 2017-02-03
A231: 7 | B231: 2016-12-06 | D231: PRECAM | E231: Accu | F231: 150.5 | H231: 72.50 | I231: 174.00 | J231: Loss of Rs.78/- | K231: -78.00 | L231: -51.83% | M231: Unsuccessful | N231: 2018-08-21
A232: 8 | B232: 2017-01-04 | D232: DEEPAKNTR | E232: Accu | F232: 99.50 | H232: 158 | I232: 158.00 | J232: Target Achieved | K232: 58.50 | L232: 58.79% | M232: Successful | N232: 2017-06-12
A233: 9 | B233: 2017-02-20 | D233: SUBROS | E233: Accu | F233: 202.50 | H233: 234 | I233: 234.00 | J233: Target Achieved | K233: 31.50 | L233: 15.56% | M233: Successful | N233: 2017-04-11
A234: 10 | B234: 2017-03-24 | D234: FIEMIND | E234: Accu | F234: 850.00 | H234: 1042.5 | I234: 1023.00 | J234: Profit of Rs 192.50/- | K234: 192.50 | L234: 22.65% | M234: Successful | N234: 2017-04-05
A235: 11 | B235: 2017-04-06 | D235: ZEEMEDIA | E235: Accu | F235: 40 | H235: 13.10 | I235: 60.00 | J235: Loss of Rs.26.9/- | K235: -26.90 | L235: -67.25% | M235: Unsuccessful | N235: 2018-02-07
A236: 12 | B236: 2017-09-19 | D236: SKIPPER | E236: Accu | F236: 215.00 | H236: 258 | I236: 258.00 | J236: Target Achieved | K236: 43.00 | L236: 20.00% | M236: Successful | N236: 2017-11-01
A237: 13 | B237: 2017-10-10 | D237: BOROSIL | E237: Accu | F237: 895.00 | H237: 1122.5 | I237: 1078.00 | J237: Profit of Rs.227.5/- | K237: 227.50 | L237: 25.42% | M237: Successful | N237: 2018-01-17
A238: 14 | B238: 2017-10-12 | D238: CYIENT | E238: Accu | F238: 525.00 | H238: 629 | I238: 629.00 | J238: Target Achieved | K238: 104.00 | L238: 19.81% | M238: Successful | N238: 2018-01-19
A239: 15 | B239: 2017-12-29 | D239: GNA | E239: Accu | F239: 435.00 | H239: 542.5 | I239: 539.00 | J239: Target Achieved | K239: 107.50 | L239: 24.71% | M239: Successful | N239: 2018-04-16
A240: 16 | B240: 2017-12-29 | D240: ZENSARTECH | E240: Accu | F240: 885.00 | H240: 1090 | I240: 1084.00 | J240: Target Achieved | K240: 205.00 | L240: 23.16% | M240: Successful | N240: 2018-04-23
A241: 17 | B241: 2018-05-17 | D241: PHILIPCARB | E241: Accu | F241: 230-240 | I241: 348.00 | J241: Open
A242: 18 | B242: 2018-07-13 | D242: FCONSUMER | E242: Accu | F242: 46-47 | I242: 59.00 | J242: Open
A243: 19 | B243: 2018-07-25 | D243: ZEEMEDIA | E243: Accu | F243: 27.5 | H243: 13.10 | I243: 60.00 | J243: Loss of Rs.14.40/- | K243: -14.40 | L243: -52.36% | M243: Unsuccessful | N243: 2018-02-07
A244: 20 | B244: 2018-08-23 | D244: INDIANHUME | E244: Accu | F244: 285.00 | H244: 355 | I244: 364.00 | J244: Profit of Rs.70/- | K244: 70.00 | L244: 24.56% | M244: Successful | N244: 2018-12-21
A245: 21 | B245: 2018-12-05 | D245: VARROC | E245: Accu | F245: 710-720 | I245: 840.00 | J245: Open
A246: 22 | B246: 2019-04-23 | D246: MAHINDCIE | E246: Buy | F246: 215-225 | I246: 284.00 | J246: Open
A247: 23 | B247: 2019-06-06 | D247: RADICO | E247: Buy | F247: 334.00 | I247: 419.00 | J247: Open
A248: 24 | B248: 2019-06-25 | D248: M&MFIN | E248: Accu | F248: 390-395 | I248: 452.00 | J248: Open

Sheet Sheet2 (hidden)
A1: SYMBOL | B1: SERIES | C1: OPEN | D1: HIGH | E1: LOW | F1: CLOSE | G1: LAST | H1: PREVCLOSE | I1: TOTTRDQTY | J1: TOTTRDVAL | K1: TIMESTAMP | L1: TOTALTRADES | M1: ISIN | N1: ISIN
A2: 20MICRONS | B2: EQ | C2: 34 | D2: 34.6 | E2: 33.55 | F2: 33.8 | G2: 34.05 | H2: 34.1 | I2: 13555 | J2: 460021.1 | K2: 2019-07-31 | L2: 132 | M2: INE144J01027
A3: 21STCENMGM | B3: EQ | C3: 15.35 | D3: 15.35 | E3: 15.05 | F3: 15.05 | G3: 15.05 | H3: 15.35 | I3: 114 | J3: 1716 | K3: 2019-07-31 | L3: 6 | M3: INE253B01015
A4: 3IINFOTECH | B4: EQ | C4: 2.4 | D4: 2.4 | E4: 2.25 | F4: 2.25 | G4: 2.25 | H4: 2.35 | I4: 1549806 | J4: 3552923.15 | K4: 2019-07-31 | L4: 843 | M4: INE748C01020
A5: 3MINDIA | B5: EQ | C5: 20990 | D5: 21222 | E5: 20669.25 | F5: 21107.9 | G5: 21100 | H5: 20989.85 | I5: 846 | J5: 17699531.05 | K5: 2019-07-31 | L5: 406 | M5: INE470A01017
A6: 5PAISA | B6: EQ | C6: 168.75 | D6: 176 | E6: 168.75 | F6: 169.4 | G6: 171.5 | H6: 177.6 | I6: 4945 | J6: 836353.35 | K6: 2019-07-31 | L6: 158 | M6: INE618L01018
A7: 63MOONS | B7: EQ | C7: 92 | D7: 95.45 | E7: 90.75 | F7: 95.4 | G7: 95.45 | H7: 90.95 | I7: 232053 | J7: 21875477.95 | K7: 2019-07-31 | L7: 1761 | M7: INE111B01023
A8: 8KMILES | B8: EQ | C8: 56.95 | D8: 59.4 | E8: 56.95 | F8: 57.1 | G8: 56.95 | H8: 59.9 | I8: 145870 | J8: 8324452.55 | K8: 2019-07-31 | L8: 910 | M8: INE650K01021
A9: A2ZINFRA | B9: EQ | C9: 10.45 | D9: 10.9 | E9: 10.15 | F9: 10.35 | G9: 10.3 | H9: 10.85 | I9: 450921 | J9: 4769285.7 | K9: 2019-07-31 | L9: 632 | M9: INE619I01012
A10: AARTIDRUGS | B10: EQ | C10: 472 | D10: 479.2 | E10: 456 | F10: 462.25 | G10: 459.5 | H10: 475.3 | I10: 9047 | J10: 4191166.45 | K10: 2019-07-31 | L10: 668 | M10: INE767A01016
A11: AARTIIND | B11: EQ | C11: 1620 | D11: 1679 | E11: 1617.05 | F11: 1666 | G11: 1675 | H11: 1630.55 | I11: 26257 | J11: 43147191.35 | K11: 2019-07-31 | L11: 4547 | M11: INE769A01020
A12: AARVEEDEN | B12: EQ | C12: 16.95 | D12: 16.95 | E12: 15.15 | F12: 16 | G12: 15.6 | H12: 16.4 | I12: 11966 | J12: 188979.5 | K12: 2019-07-31 | L12: 181 | M12: INE273D01019
A13: AAVAS | B13: EQ | C13: 1411.05 | D13: 1512.6 | E13: 1391 | F13: 1491.2 | G13: 1470 | H13: 1430.2 | I13: 32101 | J13: 46194431.05 | K13: 2019-07-31 | L13: 4624 | M13: INE216P01012
A14: ABAN | B14: EQ | C14: 29.8 | D14: 29.8 | E14: 28.05 | F14: 28.45 | G14: 28.4 | H14: 29.5 | I14: 217898 | J14: 6185231.3 | K14: 2019-07-31 | L14: 2893 | M14: INE421A01028
A15: ABB | B15: EQ | C15: 1361 | D15: 1374 | E15: 1337.9 | F15: 1363.1 | G15: 1370 | H15: 1358.3 | I15: 53331 | J15: 72442909.25 | K15: 2019-07-31 | L15: 4741 | M15: INE117A01022
A16: ABBOTINDIA | B16: EQ | C16: 8500 | D16: 8500 | E16: 8278 | F16: 8363.6 | G16: 8340 | H16: 8490.8 | I16: 3723 | J16: 31063639.65 | K16: 2019-07-31 | L16: 1458 | M16: INE358A01014
A17: ABCAPITAL | B17: EQ | C17: 80.25 | D17: 82.35 | E17: 80 | F17: 82.05 | G17: 82.25 | H17: 81 | I17: 1050413 | J17: 85020802.85 | K17: 2019-07-31 | L17: 13541 | M17: INE674K01013
A18: ABFRL | B18: EQ | C18: 188.5 | D18: 189.75 | E18: 182.2 | F18: 188.25 | G18: 188.5 | H18: 190 | I18: 638547 | J18: 118563540.9 | K18: 2019-07-31 | L18: 32866 | M18: INE647O01011
A19: ABSLNN50ET | B19: EQ | C19: 257.9 | D19: 261.23 | E19: 257.9 | F19: 261.23 | G19: 261.23 | H19: 257.9 | I19: 10 | J19: 2608.76 | K19: 2019-07-31 | L19: 8 | M19: INF209KB1B87
A20: ACC | B20: EQ | C20: 1540.9 | D20: 1564 | E20: 1516.5 | F20: 1560.4 | G20: 1562 | H20: 1540.9 | I20: 630274 | J20: 971244692.7 | K20: 2019-07-31 | L20: 23162 | M20: INE012A01025
A21: ACCELYA | B21: EQ | C21: 787.05 | D21: 794.55 | E21: 769 | F21: 778.65 | G21: 781 | H21: 787.05 | I21: 2628 | J21: 2037887.75 | K21: 2019-07-31 | L21: 452 | M21: INE793A01012
A22: ACE | B22: EQ | C22: 75 | D22: 79.4 | E22: 74.45 | F22: 77.6 | G22: 76.05 | H22: 76 | I22: 97600 | J22: 7450229.1 | K22: 2019-07-31 | L22: 1296 | M22: INE731H01025
A23: ADANIENT | B23: EQ | C23: 125 | D23: 129.3 | E23: 124.2 | F23: 128.8 | G23: 128.3 | H23: 125.35 | I23: 3665392 | J23: 466671990.9 | K23: 2019-07-31 | L23: 18409 | M23: INE423A01024
A24: ADANIGAS | B24: EQ | C24: 158.1 | D24: 161.6 | E24: 148.55 | F24: 153.05 | G24: 149.75 | H24: 157.55 | I24: 569728 | J24: 88813130.1 | K24: 2019-07-31 | L24: 7413 | M24: INE399L01023
A25: ADANIGREEN | B25: EQ | C25: 45.6 | D25: 47.8 | E25: 45.4 | F25: 46.8 | G25: 46.7 | H25: 46.4 | I25: 473057 | J25: 22061912.5 | K25: 2019-07-31 | L25: 2464 | M25: INE364U01010
A26: ADANIPORTS | B26: EQ | C26: 373 | D26: 381.8 | E26: 368.65 | F26: 377.55 | G26: 377.6 | H26: 373.45 | I26: 2429787 | J26: 914487643.7 | K26: 2019-07-31 | L26: 46164 | M26: INE742F01042
A27: ADANIPOWER | B27: EQ | C27: 60.6 | D27: 62.1 | E27: 59.7 | F27: 61 | G27: 60.8 | H27: 60.65 | I27: 10839824 | J27: 659774574.2 | K27: 2019-07-31 | L27: 21857 | M27: INE814H01011
A28: ADANITRANS | B28: EQ | C28: 201.45 | D28: 208.65 | E28: 198 | F28: 207.35 | G28: 207.3 | H28: 203.95 | I28: 92349 | J28: 18766704.75 | K28: 2019-07-31 | L28: 3838 | M28: INE931S01010
A29: ADFFOODS | B29: EQ | C29: 251.2 | D29: 254.75 | E29: 246.1 | F29: 250.7 | G29: 250.25 | H29: 252.95 | I29: 14615 | J29: 3659264.15 | K29: 2019-07-31 | L29: 488 | M29: INE982B01019
A30: ADHUNIK | B30: EQ | C30: 1.3 | D30: 1.4 | E30: 1.3 | F30: 1.35 | G30: 1.4 | H30: 1.35 | I30: 58759 | J30: 78673.3 | K30: 2019-07-31 | L30: 75 | M30: INE400H01019
A31: ADHUNIKIND | B31: EQ | C31: 93.5 | D31: 94.5 | E31: 84.8 | F31: 87.05 | G31: 88 | H31: 94.2 | I31: 24670 | J31: 2126379.6 | K31: 2019-07-31 | L31: 428 | M31: INE452L01012
A32: ADLABS | B32: EQ | C32: 4.15 | D32: 4.15 | E32: 3.85 | F32: 4.05 | G32: 4.05 | H32: 4 | I32: 83946 | J32: 332075.75 | K32: 2019-07-31 | L32: 370 | M32: INE172N01012
A33: ADORWELD | B33: EQ | C33: 294 | D33: 299.85 | E33: 286.55 | F33: 294.9 | G33: 295 | H33: 297.5 | I33: 2005 | J33: 591100.8 | K33: 2019-07-31 | L33: 173 | M33: INE045A01017
A34: ADROITINFO | B34: EQ | C34: 9.8 | D34: 10.1 | E34: 9.35 | F34: 10 | G34: 10 | H34: 9.7 | I34: 20073 | J34: 199045.85 | K34: 2019-07-31 | L34: 49 | M34: INE737B01033
A35: ADSL | B35: EQ | C35: 12.25 | D35: 12.65 | E35: 12 | F35: 12.55 | G35: 12.5 | H35: 12.65 | I35: 10230 | J35: 127236 | K35: 2019-07-31 | L35: 69 | M35: INE102I01027
A36: ADVANIHOTR | B36: EQ | C36: 55.85 | D36: 56 | E36: 54 | F36: 55.15 | G36: 54.8 | H36: 56.65 | I36: 3944 | J36: 216436.05 | K36: 2019-07-31 | L36: 93 | M36: INE199C01026
A37: ADVENZYMES | B37: EQ | C37: 152.8 | D37: 153.15 | E37: 148 | F37: 148.95 | G37: 148.4 | H37: 152.95 | I37: 37977 | J37: 5694832.7 | K37: 2019-07-31 | L37: 1243 | M37: INE837H01020
A38: AEGISCHEM | B38: EQ | C38: 189.95 | D38: 190 | E38: 184.7 | F38: 186.45 | G38: 186.9 | H38: 190 | I38: 84078 | J38: 15648862.55 | K38: 2019-07-31 | L38: 4109 | M38: INE208C01025
A39: AGARIND | B39: EQ | C39: 114 | D39: 115.85 | E39: 112.4 | F39: 114 | G39: 114.15 | H39: 116.95 | I39: 2064 | J39: 234332.3 | K39: 2019-07-31 | L39: 61 | M39: INE204E01012
A40: AGCNET | B40: EQ | C40: 85 | D40: 87.5 | E40: 82.45 | F40: 86.1 | G40: 87.5 | H40: 85 | I40: 1035 | J40: 87814 | K40: 2019-07-31 | L40: 54 | M40: INE676A01019
A41: AGLSL | B41: EQ | C41: 45 | D41: 49.55 | E41: 43.1 | F41: 46.6 | G41: 44.8 | H41: 46.8 | I41: 612 | J41: 28379.1 | K41: 2019-07-31 | L41: 158 | M41: INE517U01013
A42: AGRITECH | B42: EQ | C42: 48.55 | D42: 52.6 | E42: 48.5 | F42: 52.2 | G42: 52.4 | H42: 48.9 | I42: 10006 | J42: 508447.85 | K42: 2019-07-31 | L42: 177 | M42: INE449G01018
A43: AGROPHOS | B43: BE | C43: 87.35 | D43: 93 | E43: 87.35 | F43: 91.55 | G43: 91.6 | H43: 91.9 | I43: 776 | J43: 70062.75 | K43: 2019-07-31 | L43: 17 | M43: INE740V01019
A44: AHLEAST | B44: EQ | C44: 161.05 | D44: 164.9 | E44: 158.3 | F44: 161.85 | G44: 161 | H44: 165.7 | I44: 2581 | J44: 414807.6 | K44: 2019-07-31 | L44: 92 | M44: INE926K01017
A45: AHLUCONT | B45: EQ | C45: 299.05 | D45: 299.9 | E45: 293.25 | F45: 294.05 | G45: 294 | H45: 300.55 | I45: 714 | J45: 211324.3 | K45: 2019-07-31 | L45: 80 | M45: INE758C01029
A46: AHLWEST | B46: EQ | C46: 256 | D46: 268 | E46: 251.55 | F46: 263.25 | G46: 263 | H46: 265.65 | I46: 466 | J46: 120610.95 | K46: 2019-07-31 | L46: 100 | M46: INE915K01010
A47: AIAENG | B47: EQ | C47: 1733.2 | D47: 1733.2 | E47: 1700 | F47: 1705.05 | G47: 1714.95 | H47: 1747.35 | I47: 18950 | J47: 32437032.8 | K47: 2019-07-31 | L47: 1912 | M47: INE212H01026
A48: AIONJSW | B48: EQ | C48: 15.2 | D48: 16.05 | E48: 15.2 | F48: 15.65 | G48: 15.95 | H48: 16.1 | I48: 19616 | J48: 306606.25 | K48: 2019-07-31 | L48: 252 | M48: INE743C01021
A49: AIRAN | B49: EQ | C49: 21.25 | D49: 21.45 | E49: 21 | F49: 21.05 | G49: 21 | H49: 21.35 | I49: 10327 | J49: 218552.85 | K49: 2019-07-31 | L49: 30 | M49: INE645W01026
A50: AJANTPHARM | B50: EQ | C50: 875 | D50: 889.95 | E50: 825 | F50: 881.85 | G50: 886.2 | H50: 880.6 | I50: 127621 | J50: 111104054.9 | K50: 2019-07-31 | L50: 5089 | M50: INE031B01049
A51: AJMERA | B51: EQ | C51: 123.45 | D51: 123.45 | E51: 119.1 | F51: 121.85 | G51: 121.45 | H51: 123.2 | I51: 25410 | J51: 3074952.3 | K51: 2019-07-31 | L51: 690 | M51: INE298G01027
A52: AKSHARCHEM | B52: EQ | C52: 212.3 | D52: 227.9 | E52: 204.8 | F52: 222.95 | G52: 221.15 | H52: 225 | I52: 5616 | J52: 1200741.95 | K52: 2019-07-31 | L52: 327 | M52: INE542B01011
A53: AKSHOPTFBR | B53: EQ | C53: 8.85 | D53: 9.45 | E53: 8.5 | F53: 9.35 | G53: 9.3 | H53: 8.9 | I53: 422493 | J53: 3809283.6 | K53: 2019-07-31 | L53: 993 | M53: INE523B01011
A54: AKZOINDIA | B54: EQ | C54: 1705 | D54: 1780 | E54: 1690 | F54: 1747.6 | G54: 1745.55 | H54: 1724.7 | I54: 5247 | J54: 9062945.6 | K54: 2019-07-31 | L54: 877 | M54: INE133A01011
A55: ALANKIT | B55: EQ | C55: 23.7 | D55: 25.5 | E55: 22.1 | F55: 25.35 | G55: 25 | H55: 23.7 | I55: 598297 | J55: 14626320.85 | K55: 2019-07-31 | L55: 2931 | M55: INE914E01040
A56: ALBERTDAVD | B56: EQ | C56: 351.2 | D56: 367 | E56: 351.15 | F56: 363.8 | G56: 367 | H56: 358.85 | I56: 822 | J56: 294942.75 | K56: 2019-07-31 | L56: 63 | M56: INE155C01010
A57: ALBK | B57: EQ | C57: 38.95 | D57: 41.15 | E57: 36.3 | F57: 37.95 | G57: 36.8 | H57: 39.05 | I57: 6082176 | J57: 238281830.6 | K57: 2019-07-31 | L57: 18388 | M57: INE428A01015
A58: ALCHEM | B58: BE | C58: 1.05 | D58: 1.1 | E58: 1.05 | F58: 1.05 | G58: 1.05 | H58: 1.1 | I58: 987 | J58: 1057.4 | K58: 2019-07-31 | L58: 17 | M58: INE964B01033
A59: ALEMBICLTD | B59: EQ | C59: 42.6 | D59: 43.2 | E59: 42.4 | F59: 42.75 | G59: 42.85 | H59: 42.85 | I59: 183761 | J59: 7870943.8 | K59: 2019-07-31 | L59: 348 | M59: INE426A01027
A60: ALICON | B60: EQ | C60: 385.1 | D60: 417.2 | E60: 382.7 | F60: 392.5 | G60: 388 | H60: 401.9 | I60: 5827 | J60: 2294572.15 | K60: 2019-07-31 | L60: 540 | M60: INE062D01024
A61: ALKALI | B61: EQ | C61: 35.35 | D61: 36.4 | E61: 35.35 | F61: 35.6 | G61: 35.35 | H61: 36.1 | I61: 4595 | J61: 163601.2 | K61: 2019-07-31 | L61: 49 | M61: INE773I01017
A62: ALKEM | B62: EQ | C62: 1760.4 | D62: 1802.8 | E62: 1728.9 | F62: 1741.95 | G62: 1731.05 | H62: 1760.4 | I62: 32978 | J62: 57985626 | K62: 2019-07-31 | L62: 4003 | M62: INE540L01014
A63: ALKYLAMINE | B63: EQ | C63: 725 | D63: 729.9 | E63: 692.55 | F63: 713.25 | G63: 711 | H63: 729.05 | I63: 5026 | J63: 3530126.45 | K63: 2019-07-31 | L63: 503 | M63: INE150B01021
A64: ALLCARGO | B64: EQ | C64: 93 | D64: 97.55 | E64: 92.5 | F64: 96.55 | G64: 97.2 | H64: 93.35 | I64: 161944 | J64: 15444863.9 | K64: 2019-07-31 | L64: 3040 | M64: INE418H01029
A65: ALLSEC | B65: EQ | C65: 295 | D65: 309.75 | E65: 293 | F65: 304.35 | G65: 309 | H65: 295 | I65: 1615 | J65: 477722.05 | K65: 2019-07-31 | L65: 44 | M65: INE835G01018
A66: ALMONDZ | B66: EQ | C66: 13 | D66: 13 | E66: 12.65 | F66: 12.65 | G66: 12.65 | H66: 13.3 | I66: 4086 | J66: 51722.9 | K66: 2019-07-31 | L66: 21 | M66: INE326B01027
A67: ALOKTEXT | B67: EQ | C67: 2.95 | D67: 3 | E67: 2.85 | F67: 2.85 | G67: 2.85 | H67: 2.95 | I67: 3750578 | J67: 10876116.85 | K67: 2019-07-31 | L67: 1172 | M67: INE270A01011
A68: ALPA | B68: EQ | C68: 17 | D68: 17 | E68: 15.3 | F68: 16.1 | G68: 16.2 | H68: 16.5 | I68: 14962 | J68: 239005.7 | K68: 2019-07-31 | L68: 99 | M68: INE385I01010
A69: ALPHAGEO | B69: EQ | C69: 287 | D69: 307.9 | E69: 280 | F69: 303.55 | G69: 306 | H69: 287.35 | I69: 5472 | J69: 1610067.4 | K69: 2019-07-31 | L69: 559 | M69: INE137C01018
A70: ALPSINDUS | B70: BE | C70: 0.5 | D70: 0.55 | E70: 0.5 | F70: 0.5 | G70: 0.5 | H70: 0.55 | I70: 6475 | J70: 3287.5 | K70: 2019-07-31 | L70: 7 | M70: INE093B01015
A71: AMARAJABAT | B71: EQ | C71: 645 | D71: 681.1 | E71: 644 | F71: 675.8 | G71: 680.5 | H71: 650.5 | I71: 1846356 | J71: 1235243063 | K71: 2019-07-31 | L71: 27896 | M71: INE885A01032
A72: AMBER | B72: EQ | C72: 790 | D72: 795.95 | E72: 773.1 | F72: 785.45 | G72: 792.8 | H72: 782.5 | I72: 5643 | J72: 4410230.45 | K72: 2019-07-31 | L72: 550 | M72: INE371P01015
A73: AMBIKCO | B73: EQ | C73: 898.7 | D73: 899 | E73: 883.05 | F73: 894.8 | G73: 890 | H73: 894.95 | I73: 1676 | J73: 1495954.35 | K73: 2019-07-31 | L73: 209 | M73: INE540G01014
A74: AMBUJACEM | B74: EQ | C74: 201.6 | D74: 202.95 | E74: 197.8 | F74: 201.9 | G74: 201.15 | H74: 202.1 | I74: 4384931 | J74: 880192309.8 | K74: 2019-07-31 | L74: 41514 | M74: INE079A01024
A75: AMDIND | B75: EQ | C75: 15.9 | D75: 15.9 | E75: 13.65 | F75: 14.2 | G75: 14.1 | H75: 14.85 | I75: 10393 | J75: 146591.9 | K75: 2019-07-31 | L75: 132 | M75: INE005I01014
A76: AMJLAND | B76: EQ | C76: 16.5 | D76: 17.9 | E76: 16.25 | F76: 16.8 | G76: 17.1 | H76: 17.2 | I76: 7218 | J76: 119920.25 | K76: 2019-07-31 | L76: 60 | M76: INE606A01024
A77: AMRUTANJAN | B77: EQ | C77: 282.25 | D77: 287 | E77: 280.15 | F77: 283.85 | G77: 285.15 | H77: 283.3 | I77: 7295 | J77: 2071699.9 | K77: 2019-07-31 | L77: 516 | M77: INE098F01031
A78: ANANTRAJ | B78: EQ | C78: 26.2 | D78: 27.6 | E78: 25.7 | F78: 27.05 | G78: 27.5 | H78: 26.35 | I78: 278124 | J78: 7433159.65 | K78: 2019-07-31 | L78: 821 | M78: INE242C01024
A79: ANDHRABANK | B79: EQ | C79: 21.2 | D79: 21.35 | E79: 18.5 | F79: 19.4 | G79: 18.7 | H79: 21.05 | I79: 1568693 | J79: 31011897.55 | K79: 2019-07-31 | L79: 3357 | M79: INE434A01013
A80: ANDHRACEMT | B80: EQ | C80: 2.6 | D80: 2.6 | E80: 2.6 | F80: 2.6 | G80: 2.6 | H80: 2.7 | I80: 21027 | J80: 54670.2 | K80: 2019-07-31 | L80: 33 | M80: INE666E01012
A81: ANDHRSUGAR | B81: EQ | C81: 274.95 | D81: 275.6 | E81: 263.25 | F81: 269.05 | G81: 268 | H81: 274.95 | I81: 20380 | J81: 5526177.55 | K81: 2019-07-31 | L81: 762 | M81: INE715B01013
A82: ANIKINDS | B82: EQ | C82: 8.4 | D82: 8.4 | E82: 7.8 | F82: 7.85 | G82: 8 | H82: 8.1 | I82: 3351 | J82: 26639.3 | K82: 2019-07-31 | L82: 36 | M82: INE087B01017
A83: ANKITMETAL | B83: BE | C83: 0.6 | D83: 0.65 | E83: 0.6 | F83: 0.65 | G83: 0.65 | H83: 0.65 | I83: 17035 | J83: 10769.55 | K83: 2019-07-31 | L83: 18 | M83: INE106I01010
A84: ANSALAPI | B84: EQ | C84: 4.3 | D84: 4.4 | E84: 4.2 | F84: 4.2 | G84: 4.2 | H84: 4.4 | I84: 21178 | J84: 89053 | K84: 2019-07-31 | L84: 63 | M84: INE436A01026
A85: ANSALHSG | B85: EQ | C85: 3.9 | D85: 4.2 | E85: 3.6 | F85: 4 | G85: 4.05 | H85: 3.95 | I85: 59150 | J85: 231473.85 | K85: 2019-07-31 | L85: 257 | M85: INE880B01015
A86: ANTGRAPHIC | B86: BE | C86: 0.85 | D86: 0.9 | E86: 0.85 | F86: 0.9 | G86: 0.9 | H86: 0.9 | I86: 130931 | J86: 111501.65 | K86: 2019-07-31 | L86: 30 | M86: INE414B01021
A87: ANUP | B87: EQ | C87: 442.5 | D87: 462.3 | E87: 442.5 | F87: 459.9 | G87: 459.2 | H87: 451.4 | I87: 1757 | J87: 804999.9 | K87: 2019-07-31 | L87: 265 | M87: INE294Z01018
A88: APARINDS | B88: EQ | C88: 491 | D88: 503.5 | E88: 482.6 | F88: 487.15 | G88: 495 | H88: 509.8 | I88: 9612 | J88: 4769054.45 | K88: 2019-07-31 | L88: 552 | M88: INE372A01015
A89: APCL | B89: EQ | C89: 149.05 | D89: 155 | E89: 149.05 | F89: 149.95 | G89: 149.45 | H89: 150.55 | I89: 3206 | J89: 481140.5 | K89: 2019-07-31 | L89: 119 | M89: INE071F01012
A90: APCOTEXIND | B90: EQ | C90: 185 | D90: 192.95 | E90: 180.25 | F90: 190.6 | G90: 192.95 | H90: 185.1 | I90: 12678 | J90: 2373133.5 | K90: 2019-07-31 | L90: 313 | M90: INE116A01032
A91: APEX | B91: EQ | C91: 214.8 | D91: 248 | E91: 206.45 | F91: 241.55 | G91: 240 | H91: 217.95 | I91: 139063 | J91: 32277374.25 | K91: 2019-07-31 | L91: 7033 | M91: INE346W01013
A92: APLAPOLLO | B92: EQ | C92: 1350 | D92: 1407.25 | E92: 1315.9 | F92: 1392.9 | G92: 1400 | H92: 1355.25 | I92: 22319 | J92: 30480001.8 | K92: 2019-07-31 | L92: 2566 | M92: INE702C01019
A93: APLLTD | B93: EQ | C93: 507 | D93: 534.05 | E93: 502.5 | F93: 523.9 | G93: 521.3 | H93: 504.5 | I93: 133387 | J93: 69775715.9 | K93: 2019-07-31 | L93: 3971 | M93: INE901L01018
A94: APOLLO | B94: EQ | C94: 87.45 | D94: 90.5 | E94: 85.95 | F94: 90.1 | G94: 90 | H94: 88.6 | I94: 12671 | J94: 1117243.25 | K94: 2019-07-31 | L94: 509 | M94: INE713T01010
A95: APOLLOHOSP | B95: EQ | C95: 1327 | D95: 1356.5 | E95: 1319.15 | F95: 1351.6 | G95: 1352.7 | H95: 1333.6 | I95: 343969 | J95: 460431938.5 | K95: 2019-07-31 | L95: 23132 | M95: INE437A01024
A96: APOLLOTYRE | B96: EQ | C96: 149.05 | D96: 158.35 | E96: 148.4 | F96: 157.5 | G96: 157.7 | H96: 149.7 | I96: 7616628 | J96: 1176415348 | K96: 2019-07-31 | L96: 64050 | M96: INE438A01022
A97: APOLSINHOT | B97: EQ | C97: 888.95 | D97: 889 | E97: 855.9 | F97: 862.2 | G97: 860.5 | H97: 866.5 | I97: 617 | J97: 533291 | K97: 2019-07-31 | L97: 116 | M97: INE451F01024
A98: APTECHT | B98: EQ | C98: 124.2 | D98: 127.9 | E98: 123.5 | F98: 126.4 | G98: 125.9 | H98: 124.4 | I98: 103948 | J98: 12986774.85 | K98: 2019-07-31 | L98: 2833 | M98: INE266F01018
A99: ARCHIDPLY | B99: EQ | C99: 25.65 | D99: 25.95 | E99: 24.35 | F99: 25.8 | G99: 25.9 | H99: 25.95 | I99: 9301 | J99: 232993.55 | K99: 2019-07-31 | L99: 251 | M99: INE877I01016
A100: ARCHIES | B100: EQ | C100: 17.6 | D100: 17.8 | E100: 16.2 | F100: 17 | G100: 17.1 | H100: 16.7 | I100: 21866 | J100: 367596.7 | K100: 2019-07-31 | L100: 208 | M100: INE731A01020
A101: ARCOTECH | B101: EQ | C101: 2.4 | D101: 2.5 | E101: 2.4 | F101: 2.4 | G101: 2.45 | H101: 2.5 | I101: 40300 | J101: 97577.4 | K101: 2019-07-31 | L101: 68 | M101: INE574I01035
A102: ARIES | B102: EQ | C102: 46.95 | D102: 46.95 | E102: 43.6 | F102: 45.35 | G102: 45 | H102: 46.15 | I102: 20913 | J102: 941961.9 | K102: 2019-07-31 | L102: 342 | M102: INE298I01015
A103: ARIHANT | B103: EQ | C103: 19.6 | D103: 20.85 | E103: 17.2 | F103: 17.65 | G103: 18.3 | H103: 19.05 | I103: 7942 | J103: 147958.15 | K103: 2019-07-31 | L103: 74 | M103: INE413D01011
A104: ARIHANTSUP | B104: EQ | C104: 32.9 | D104: 35.45 | E104: 32.9 | F104: 35.1 | G104: 35.15 | H104: 33.85 | I104: 42712 | J104: 1496424.15 | K104: 2019-07-31 | L104: 146 | M104: INE643K01018
A105: ARMANFIN | B105: EQ | C105: 370 | D105: 370 | E105: 356.6 | F105: 363.05 | G105: 361 | H105: 372.95 | I105: 12472 | J105: 4484970.8 | K105: 2019-07-31 | L105: 430 | M105: INE109C01017
A106: AROGRANITE | B106: EQ | C106: 38.6 | D106: 38.7 | E106: 31.85 | F106: 34.1 | G106: 34 | H106: 36.55 | I106: 32214 | J106: 1101795.1 | K106: 2019-07-31 | L106: 401 | M106: INE210C01013
A107: ARROWGREEN | B107: BE | C107: 46.8 | D107: 51.2 | E107: 46.8 | F107: 51.2 | G107: 51.2 | H107: 48.8 | I107: 6031 | J107: 298612.45 | K107: 2019-07-31 | L107: 64 | M107: INE570D01018
A108: ARROWTEX | B108: EQ | C108: 11.9 | D108: 11.95 | E108: 9.4 | F108: 10.05 | G108: 10 | H108: 10.25 | I108: 15887 | J108: 166685 | K108: 2019-07-31 | L108: 172 | M108: INE933J01015
A109: ARSHIYA | B109: EQ | C109: 17.95 | D109: 19.5 | E109: 17 | F109: 18.25 | G109: 18.25 | H109: 17.95 | I109: 36184 | J109: 660848.85 | K109: 2019-07-31 | L109: 107 | M109: INE968D01022
A110: ARSSINFRA | B110: EQ | C110: 29.85 | D110: 29.85 | E110: 27.4 | F110: 27.6 | G110: 27.5 | H110: 28.8 | I110: 10797 | J110: 298146.45 | K110: 2019-07-31 | L110: 113 | M110: INE267I01010
A111: ARVIND | B111: EQ | C111: 54 | D111: 55.95 | E111: 52.6 | F111: 54.95 | G111: 54.8 | H111: 54.1 | I111: 3738607 | J111: 204247209.8 | K111: 2019-07-31 | L111: 14085 | M111: INE034A01011
A112: ARVINDFASN | B112: EQ | C112: 606 | D112: 610 | E112: 590.9 | F112: 601.65 | G112: 600.05 | H112: 616.15 | I112: 20615 | J112: 12369547.35 | K112: 2019-07-31 | L112: 2190 | M112: INE955V01021
A113: ARVSMART | B113: EQ | C113: 88.4 | D113: 91.4 | E113: 88.4 | F113: 90 | G113: 89.6 | H113: 90.45 | I113: 16765 | J113: 1502121.35 | K113: 2019-07-31 | L113: 464 | M113: INE034S01021
A114: ASAHIINDIA | B114: EQ | C114: 195.05 | D114: 200 | E114: 192.05 | F114: 197.25 | G114: 195.65 | H114: 200.2 | I114: 50629 | J114: 9921181 | K114: 2019-07-31 | L114: 1305 | M114: INE439A01020
A115: ASAHISONG | B115: EQ | C115: 123 | D115: 124.95 | E115: 117 | F115: 118.05 | G115: 117.35 | H115: 124.75 | I115: 12304 | J115: 1464951.8 | K115: 2019-07-31 | L115: 375 | M115: INE228I01012
A116: ASAL | B116: EQ | C116: 36.5 | D116: 38.55 | E116: 33 | F116: 33.55 | G116: 34.2 | H116: 37.25 | I116: 17736 | J116: 617073.7 | K116: 2019-07-31 | L116: 245 | M116: INE900C01027
A117: ASHAPURMIN | B117: EQ | C117: 21.55 | D117: 22.5 | E117: 21.45 | F117: 21.5 | G117: 21.5 | H117: 22.55 | I117: 16553 | J117: 355897.7 | K117: 2019-07-31 | L117: 82 | M117: INE348A01023
A118: ASHIANA | B118: EQ | C118: 115 | D118: 115 | E118: 105.7 | F118: 107.4 | G118: 107.4 | H118: 111.55 | I118: 27141 | J118: 2937759.6 | K118: 2019-07-31 | L118: 915 | M118: INE365D01021
A119: ASHIMASYN | B119: EQ | C119: 6.5 | D119: 8.3 | E119: 6.5 | F119: 8.05 | G119: 8.2 | H119: 6.95 | I119: 114253 | J119: 882117.75 | K119: 2019-07-31 | L119: 338 | M119: INE440A01010
A120: ASHOKA | B120: EQ | C120: 119.1 | D120: 121.8 | E120: 111.6 | F120: 120.9 | G120: 120.85 | H120: 119.25 | I120: 361587 | J120: 43110603.75 | K120: 2019-07-31 | L120: 6365 | M120: INE442H01029
A121: ASHOKLEY | B121: EQ | C121: 67.95 | D121: 70.85 | E121: 67.55 | F121: 69.85 | G121: 69.75 | H121: 68.55 | I121: 30181821 | J121: 2100387348 | K121: 2019-07-31 | L121: 83369 | M121: INE208A01029
A122: ASIANHOTNR | B122: EQ | C122: 107.05 | D122: 112.55 | E122: 107.05 | F122: 110 | G122: 110 | H122: 110.05 | I122: 489 | J122: 53558.45 | K122: 2019-07-31 | L122: 169 | M122: INE363A01022
A123: ASIANPAINT | B123: EQ | C123: 1507 | D123: 1525 | E123: 1495.15 | F123: 1521.1 | G123: 1522 | H123: 1508.75 | I123: 1249734 | J123: 1888515175 | K123: 2019-07-31 | L123: 78338 | M123: INE021A01026
A124: ASIANTILES | B124: EQ | C124: 217.45 | D124: 221.7 | E124: 212.05 | F124: 213 | G124: 212.05 | H124: 217.45 | I124: 72162 | J124: 15479180.7 | K124: 2019-07-31 | L124: 1151 | M124: INE022I01019
A125: ASPINWALL | B125: EQ | C125: 130.6 | D125: 138.5 | E125: 125 | F125: 128.6 | G125: 125.65 | H125: 135.65 | I125: 1470 | J125: 190142.55 | K125: 2019-07-31 | L125: 89 | M125: INE991I01015
A126: ASSAMCO | B126: BE | C126: 1 | D126: 1.1 | E126: 1 | F126: 1.1 | G126: 1.1 | H126: 1.05 | I126: 41079 | J126: 43432.95 | K126: 2019-07-31 | L126: 59 | M126: INE442A01024
A127: ASTEC | B127: EQ | C127: 343.85 | D127: 358 | E127: 333 | F127: 351.15 | G127: 353.05 | H127: 346.35 | I127: 26313 | J127: 9024578.05 | K127: 2019-07-31 | L127: 1801 | M127: INE563J01010
A128: ASTERDM | B128: EQ | C128: 122.05 | D128: 123.75 | E128: 120.8 | F128: 123.5 | G128: 123.7 | H128: 123.15 | I128: 133147 | J128: 16342426.75 | K128: 2019-07-31 | L128: 2346 | M128: INE914M01019
A129: ASTRAL | B129: EQ | C129: 1240 | D129: 1249.85 | E129: 1216 | F129: 1245 | G129: 1240 | H129: 1241.85 | I129: 32851 | J129: 40570017.8 | K129: 2019-07-31 | L129: 10043 | M129: INE006I01046
A130: ASTRAMICRO | B130: EQ | C130: 76 | D130: 80.55 | E130: 76 | F130: 79.35 | G130: 79.4 | H130: 76.8 | I130: 204470 | J130: 15942345.4 | K130: 2019-07-31 | L130: 1663 | M130: INE386C01029
A131: ASTRAZEN | B131: EQ | C131: 1974.5 | D131: 1979.95 | E131: 1906.1 | F131: 1930.15 | G131: 1931 | H131: 1988.15 | I131: 15206 | J131: 29551010.2 | K131: 2019-07-31 | L131: 2810 | M131: INE203A01020
A132: ASTRON | B132: EQ | C132: 86.9 | D132: 86.9 | E132: 78.5 | F132: 79.45 | G132: 79.95 | H132: 85.45 | I132: 609657 | J132: 49243405.9 | K132: 2019-07-31 | L132: 5006 | M132: INE646X01014
A133: ATFL | B133: EQ | C133: 501 | D133: 515 | E133: 495.95 | F133: 510.2 | G133: 514 | H133: 500.35 | I133: 6790 | J133: 3397631.9 | K133: 2019-07-31 | L133: 216 | M133: INE209A01019
A134: ATLANTA | B134: EQ | C134: 8.2 | D134: 8.5 | E134: 7.85 | F134: 8.05 | G134: 8 | H134: 8.25 | I134: 17160 | J134: 135725.45 | K134: 2019-07-31 | L134: 105 | M134: INE285H01022
A135: ATLASCYCLE | B135: BE | C135: 39.1 | D135: 40 | E135: 38.5 | F135: 40 | G135: 40 | H135: 40.2 | I135: 3139 | J135: 123197.2 | K135: 2019-07-31 | L135: 55 | M135: INE446A01025
A136: ATNINTER | B136: BE | C136: 0.15 | D136: 0.25 | E136: 0.15 | F136: 0.2 | G136: 0.2 | H136: 0.2 | I136: 4607 | J136: 763.25 | K136: 2019-07-31 | L136: 15 | M136: INE803A01027
A137: ATUL | B137: EQ | C137: 3672 | D137: 3687.45 | E137: 3630.35 | F137: 3641.1 | G137: 3638.95 | H137: 3646.8 | I137: 155024 | J137: 565709994.1 | K137: 2019-07-31 | L137: 7547 | M137: INE100A01010
A138: ATULAUTO | B138: EQ | C138: 234 | D138: 234 | E138: 226 | F138: 228.5 | G138: 227 | H138: 234.7 | I138: 8619 | J138: 1972342.45 | K138: 2019-07-31 | L138: 567 | M138: INE951D01028
A139: AUBANK | B139: EQ | C139: 654.9 | D139: 689.95 | E139: 634.95 | F139: 678.3 | G139: 674 | H139: 654.55 | I139: 240472 | J139: 156842831.4 | K139: 2019-07-31 | L139: 16958 | M139: INE949L01017
A140: AURIONPRO | B140: EQ | C140: 94.55 | D140: 100.6 | E140: 93 | F140: 96.35 | G140: 97.75 | H140: 96.75 | I140: 21002 | J140: 2056099.65 | K140: 2019-07-31 | L140: 385 | M140: INE132H01018
A141: AUROPHARMA | B141: EQ | C141: 556 | D141: 574.25 | E141: 542 | F141: 571.25 | G141: 568.2 | H141: 551.95 | I141: 2751306 | J141: 1541337171 | K141: 2019-07-31 | L141: 54119 | M141: INE406A01037
A142: AUSOMENT | B142: EQ | C142: 30.25 | D142: 31.95 | E142: 30.25 | F142: 31.75 | G142: 31.85 | H142: 31.7 | I142: 202 | J142: 6256.9 | K142: 2019-07-31 | L142: 31 | M142: INE218C01016
A143: AUTOAXLES | B143: EQ | C143: 787 | D143: 823.95 | E143: 773 | F143: 804.9 | G143: 807 | H143: 787.25 | I143: 11496 | J143: 9105791.55 | K143: 2019-07-31 | L143: 1224 | M143: INE449A01011
A144: AUTOIND | B144: EQ | C144: 40.25 | D144: 41.2 | E144: 36.2 | F144: 39.65 | G144: 39.9 | H144: 41.35 | I144: 12585 | J144: 489143.55 | K144: 2019-07-31 | L144: 358 | M144: INE718H01014
A145: AUTOLITIND | B145: EQ | C145: 22.8 | D145: 24.9 | E145: 22.8 | F145: 24.85 | G145: 24.85 | H145: 23.95 | I145: 1393 | J145: 31773.55 | K145: 2019-07-31 | L145: 12 | M145: INE448A01013
A146: AVADHSUGAR | B146: EQ | C146: 238 | D146: 244.9 | E146: 222.65 | F146: 238.65 | G146: 237.8 | H146: 237.6 | I146: 98067 | J146: 22940572.9 | K146: 2019-07-31 | L146: 3303 | M146: INE349W01017
A147: AVANTIFEED | B147: EQ | C147: 308 | D147: 314.5 | E147: 301.05 | F147: 309.1 | G147: 308.6 | H147: 308 | I147: 335156 | J147: 103259063.5 | K147: 2019-07-31 | L147: 11900 | M147: INE871C01038
A148: AVTNPL | B148: EQ | C148: 21 | D148: 21.15 | E148: 20.6 | F148: 20.7 | G148: 20.8 | H148: 21.15 | I148: 11289 | J148: 235081.85 | K148: 2019-07-31 | L148: 126 | M148: INE488D01021
A149: AXISBANK | B149: EQ | C149: 694 | D149: 694.9 | E149: 657.8 | F149: 674.1 | G149: 674.8 | H149: 707.6 | I149: 55836793 | J149: 3.788182736e+10 | K149: 2019-07-31 | L149: 770467 | M149: INE238A01034
A150: AXISCADES | B150: EQ | C150: 64.85 | D150: 66 | E150: 63.1 | F150: 64.2 | G150: 63.6 | H150: 64.65 | I150: 553895 | J150: 35749477.15 | K150: 2019-07-31 | L150: 7162 | M150: INE555B01013
A151: AXISGOLD | B151: EQ | C151: 3061 | D151: 3061 | E151: 3031.05 | F151: 3039 | G151: 3039 | H151: 3060.15 | I151: 285 | J151: 866781.6 | K151: 2019-07-31 | L151: 39 | M151: INF846K01347
A152: AXISNIFTY | B152: EQ | C152: 1140.12 | D152: 1146.52 | E152: 1135 | F152: 1146.02 | G152: 1145.52 | H152: 1142.77 | I152: 75 | J152: 85465.91 | K152: 2019-07-31 | L152: 9 | M152: INF846K01ZL0
A153: AYMSYNTEX | B153: EQ | C153: 28.6 | D153: 29.95 | E153: 27.4 | F153: 29.55 | G153: 29.25 | H153: 28.3 | I153: 8147 | J153: 237650.95 | K153: 2019-07-31 | L153: 139 | M153: INE193B01039
A154: BAFNAPHARM | B154: BE | C154: 5.95 | D154: 5.95 | E154: 5.7 | F154: 5.7 | G154: 5.7 | H154: 5.95 | I154: 561 | J154: 3197.95 | K154: 2019-07-31 | L154: 7 | M154: INE878I01014
A155: BAGFILMS | B155: EQ | C155: 3 | D155: 3.3 | E155: 2.95 | F155: 3.1 | G155: 3.05 | H155: 3 | I155: 61300 | J155: 192038.15 | K155: 2019-07-31 | L155: 85 | M155: INE116D01028
A156: BAJAJ-AUTO | B156: EQ | C156: 2463 | D156: 2536 | E156: 2442.2 | F156: 2516.5 | G156: 2505.6 | H156: 2463.85 | I156: 651778 | J156: 1630912158 | K156: 2019-07-31 | L156: 45344 | M156: INE917I01010
A157: BAJAJCON | B157: EQ | C157: 268.5 | D157: 268.5 | E157: 249.6 | F157: 259.7 | G157: 260 | H157: 269.1 | I157: 248282 | J157: 64454138.55 | K157: 2019-07-31 | L157: 12900 | M157: INE933K01021
A158: BAJAJELEC | B158: EQ | C158: 353.75 | D158: 367.7 | E158: 338.45 | F158: 364.75 | G158: 364 | H158: 355.85 | I158: 539277 | J158: 194664895.3 | K158: 2019-07-31 | L158: 7094 | M158: INE193E01025
A159: BAJAJFINSV | B159: EQ | C159: 7088 | D159: 7123.2 | E159: 6895 | F159: 7097.85 | G159: 7089.9 | H159: 7078.05 | I159: 356118 | J159: 2501582970 | K159: 2019-07-31 | L159: 41618 | M159: INE918I01018
A160: BAJAJHIND | B160: EQ | C160: 6.3 | D160: 6.3 | E160: 5.95 | F160: 6 | G160: 6 | H160: 6.3 | I160: 2072553 | J160: 12579498.55 | K160: 2019-07-31 | L160: 1961 | M160: INE306A01021
A161: BAJAJHLDNG | B161: EQ | C161: 3526 | D161: 3559.95 | E161: 3384 | F161: 3400.5 | G161: 3395 | H161: 3562.9 | I161: 24113 | J161: 82970130.3 | K161: 2019-07-31 | L161: 6736 | M161: INE118A01012
A162: BAJFINANCE | B162: EQ | C162: 3233.05 | D162: 3267.65 | E162: 3160.1 | F162: 3252.05 | G162: 3252.1 | H162: 3249.95 | I162: 2438130 | J162: 7842334026 | K162: 2019-07-31 | L162: 148858 | M162: INE296A01024
A163: BALAJITELE | B163: EQ | C163: 54.2 | D163: 56.5 | E163: 53.2 | F163: 54.55 | G163: 54.5 | H163: 56.65 | I163: 88394 | J163: 4821240.5 | K163: 2019-07-31 | L163: 294 | M163: INE794B01026
A164: BALAMINES | B164: EQ | C164: 227 | D164: 240 | E164: 225 | F164: 234.65 | G164: 235 | H164: 227.05 | I164: 61875 | J164: 14568967.9 | K164: 2019-07-31 | L164: 1638 | M164: INE050E01027
A165: BALAXI | B165: BE | C165: 68 | D165: 68 | E165: 64.6 | F165: 66.9 | G165: 66.95 | H165: 68 | I165: 300 | J165: 19782.55 | K165: 2019-07-31 | L165: 15 | M165: INE618N01014
A166: BALKRISHNA | B166: EQ | C166: 18 | D166: 18.3 | E166: 16.25 | F166: 16.65 | G166: 17 | H166: 18.85 | I166: 34240 | J166: 576830.7 | K166: 2019-07-31 | L166: 556 | M166: INE875R01011
A167: BALKRISIND | B167: EQ | C167: 699 | D167: 707.05 | E167: 691.45 | F167: 702.35 | G167: 704.75 | H167: 700.8 | I167: 461397 | J167: 322922858.9 | K167: 2019-07-31 | L167: 11410 | M167: INE787D01026
A168: BALLARPUR | B168: EQ | C168: 0.75 | D168: 0.75 | E168: 0.75 | F168: 0.75 | G168: 0.75 | H168: 0.8 | I168: 1804060 | J168: 1353045 | K168: 2019-07-31 | L168: 249 | M168: INE294A01037
A169: BALMLAWRIE | B169: EQ | C169: 170.1 | D169: 172.5 | E169: 168.1 | F169: 171 | G169: 172.5 | H169: 170.25 | I169: 45630 | J169: 7745341.2 | K169: 2019-07-31 | L169: 2760 | M169: INE164A01016
A170: BALPHARMA | B170: EQ | C170: 43 | D170: 43 | E170: 39.9 | F170: 40.95 | G170: 40.7 | H170: 43.5 | I170: 15824 | J170: 648594.55 | K170: 2019-07-31 | L170: 332 | M170: INE083D01012
A171: BALRAMCHIN | B171: EQ | C171: 145.95 | D171: 145.95 | E171: 138.8 | F171: 141.65 | G171: 142 | H171: 146.35 | I171: 1375366 | J171: 194273744.4 | K171: 2019-07-31 | L171: 30039 | M171: INE119A01028
A172: BANARBEADS | B172: EQ | C172: 41.05 | D172: 41.9 | E172: 41 | F172: 41 | G172: 41 | H172: 41.1 | I172: 3246 | J172: 133158.35 | K172: 2019-07-31 | L172: 18 | M172: INE655B01011
A173: BANARISUG | B173: EQ | C173: 1394 | D173: 1394 | E173: 1350 | F173: 1374 | G173: 1374 | H173: 1361.15 | I173: 62 | J173: 83794 | K173: 2019-07-31 | L173: 9 | M173: INE459A01010
A174: BANCOINDIA | B174: EQ | C174: 96.4 | D174: 98.8 | E174: 94.05 | F174: 97.9 | G174: 98.8 | H174: 97.2 | I174: 13994 | J174: 1349654.9 | K174: 2019-07-31 | L174: 553 | M174: INE213C01025
A175: BANDHANBNK | B175: EQ | C175: 476 | D175: 484.65 | E175: 465 | F175: 480.75 | G175: 477 | H175: 480.7 | I175: 1401988 | J175: 668909875.9 | K175: 2019-07-31 | L175: 74694 | M175: INE545U01014
A176: BANG | B176: EQ | C176: 32 | D176: 32.6 | E176: 30 | F176: 31.5 | G176: 32 | H176: 32.55 | I176: 15423 | J176: 486310.45 | K176: 2019-07-31 | L176: 378 | M176: INE863I01016
A177: BANKBARODA | B177: EQ | C177: 102.35 | D177: 107.4 | E177: 101.7 | F177: 106.7 | G177: 106.75 | H177: 102.65 | I177: 24435796 | J177: 2570856517 | K177: 2019-07-31 | L177: 77186 | M177: INE028A01039
A178: BANKBEES | B178: EQ | C178: 2933.07 | D178: 2949 | E178: 2917.37 | F178: 2938.98 | G178: 2936.9 | H178: 2943.11 | I178: 10257 | J178: 30089721.32 | K178: 2019-07-31 | L178: 564 | M178: INF732E01078
A179: BANKINDIA | B179: EQ | C179: 70.95 | D179: 72.5 | E179: 70.3 | F179: 72.2 | G179: 72.15 | H179: 70.8 | I179: 9210827 | J179: 659449621.6 | K179: 2019-07-31 | L179: 24883 | M179: INE084A01016
A180: BANSWRAS | B180: EQ | C180: 57.05 | D180: 63 | E180: 56 | F180: 58.5 | G180: 57.6 | H180: 59.95 | I180: 5198 | J180: 303898.9 | K180: 2019-07-31 | L180: 126 | M180: INE629D01012
A181: BARTRONICS | B181: EQ | C181: 2.95 | D181: 3.1 | E181: 2.8 | F181: 3 | G181: 3.05 | H181: 3.05 | I181: 10116 | J181: 29439.35 | K181: 2019-07-31 | L181: 49 | M181: INE855F01034
A182: BASF | B182: EQ | C182: 1065.05 | D182: 1068 | E182: 1013.8 | F182: 1022.75 | G182: 1020 | H182: 1064.05 | I182: 8458 | J182: 8810129.3 | K182: 2019-07-31 | L182: 1165 | M182: INE373A01013
A183: BASML | B183: EQ | C183: 121.05 | D183: 132 | E183: 120.05 | F183: 128.45 | G183: 132 | H183: 124 | I183: 1381 | J183: 174339.2 | K183: 2019-07-31 | L183: 90 | M183: INE186H01014
A184: BATAINDIA | B184: EQ | C184: 1296 | D184: 1319 | E184: 1263.7 | F184: 1307.55 | G184: 1309 | H184: 1301.9 | I184: 681325 | J184: 880937664.1 | K184: 2019-07-31 | L184: 24671 | M184: INE176A01028
A185: BAYERCROP | B185: EQ | C185: 3088.2 | D185: 3088.2 | E185: 3033.05 | F185: 3068.1 | G185: 3050.85 | H185: 3124.85 | I185: 43291 | J185: 133494472.8 | K185: 2019-07-31 | L185: 1583 | M185: INE462A01022
A186: BBL | B186: EQ | C186: 897.05 | D186: 906.75 | E186: 873.15 | F186: 893 | G186: 890 | H186: 896.35 | I186: 2640 | J186: 2350705.85 | K186: 2019-07-31 | L186: 440 | M186: INE464A01028
A187: BBTC | B187: EQ | C187: 817.4 | D187: 825 | E187: 790 | F187: 813.95 | G187: 825 | H187: 819.9 | I187: 82498 | J187: 66104975.2 | K187: 2019-07-31 | L187: 5017 | M187: INE050A01025
A188: BCG | B188: EQ | C188: 3.2 | D188: 3.35 | E188: 3.1 | F188: 3.35 | G188: 3.35 | H188: 3.25 | I188: 263555 | J188: 838158.55 | K188: 2019-07-31 | L188: 196 | M188: INE425B01027
A189: BDL | B189: EQ | C189: 294.95 | D189: 298 | E189: 289 | F189: 294 | G189: 293 | H189: 297.35 | I189: 28334 | J189: 8286101.65 | K189: 2019-07-31 | L189: 1517 | M189: INE171Z01018
A190: BEARDSELL | B190: EQ | C190: 14.4 | D190: 15.05 | E190: 13.8 | F190: 15 | G190: 15 | H190: 14.3 | I190: 532 | J190: 7633 | K190: 2019-07-31 | L190: 15 | M190: INE520H01022
A191: BEDMUTHA | B191: EQ | C191: 15.1 | D191: 15.1 | E191: 14 | F191: 14.25 | G191: 14.2 | H191: 14.5 | I191: 4469 | J191: 64332.25 | K191: 2019-07-31 | L191: 38 | M191: INE844K01012
A192: BEL | B192: EQ | C192: 97.4 | D192: 103.5 | E192: 97 | F192: 102.7 | G192: 102.8 | H192: 98.4 | I192: 22866137 | J192: 2295536746 | K192: 2019-07-31 | L192: 84488 | M192: INE263A01024
A193: BEML | B193: EQ | C193: 844 | D193: 856 | E193: 828 | F193: 841.9 | G193: 843.5 | H193: 856.7 | I193: 562371 | J193: 472942662.9 | K193: 2019-07-31 | L193: 21713 | M193: INE258A01016
A194: BEPL | B194: EQ | C194: 60 | D194: 60 | E194: 49.6 | F194: 55.8 | G194: 55.5 | H194: 60.45 | I194: 610537 | J194: 34019615.25 | K194: 2019-07-31 | L194: 4393 | M194: INE922A01025
A195: BERGEPAINT | B195: EQ | C195: 330.7 | D195: 336.85 | E195: 329.05 | F195: 330.8 | G195: 329.8 | H195: 332.4 | I195: 1217878 | J195: 405011613.1 | K195: 2019-07-31 | L195: 26915 | M195: INE463A01038
A196: BFINVEST | B196: EQ | C196: 258 | D196: 258 | E196: 242.35 | F196: 246.75 | G196: 246.05 | H196: 259.45 | I196: 38453 | J196: 9550263.85 | K196: 2019-07-31 | L196: 1893 | M196: INE878K01010
A197: BFUTILITIE | B197: EQ | C197: 176.1 | D197: 182.35 | E197: 175.1 | F197: 178.25 | G197: 177.5 | H197: 181.7 | I197: 905758 | J197: 161610204.2 | K197: 2019-07-31 | L197: 16055 | M197: INE243D01012
A198: BGLOBAL | B198: BE | C198: 1.05 | D198: 1.1 | E198: 1.05 | F198: 1.05 | G198: 1.1 | H198: 1.1 | I198: 13371 | J198: 14434.55 | K198: 2019-07-31 | L198: 17 | M198: INE224M01013
A199: BGRENERGY | B199: EQ | C199: 42.8 | D199: 42.8 | E199: 40 | F199: 40.9 | G199: 40.85 | H199: 42.55 | I199: 87039 | J199: 3545550.7 | K199: 2019-07-31 | L199: 951 | M199: INE661I01014
A200: BHAGERIA | B200: EQ | C200: 104.85 | D200: 110 | E200: 100.1 | F200: 107.75 | G200: 108 | H200: 104.85 | I200: 27855 | J200: 2883975.2 | K200: 2019-07-31 | L200: 448 | M200: INE354C01027
... 1469 more rows

Sheet Sheet1 (hidden)

Sheet Sheet3 (hidden)

Sheet Sheet4 (hidden)
